{"text_format":"1","workbook":"xlsx","n_sheets":13,"sheets":["Hoofdmenu","Toelichting","Voorblad","Mededelingen","NAW_gegevens","Kostenverzamelstaat","Specifieke informatie A","Specifieke informatie C","Contractinformatie","Wanbetalers","Controleoverzicht","Blad1","Parameters"],"not_rendered":{"charts":0,"images":1,"macros":1,"external_links":0,"defined_names":92,"comments":0,"pivot_tables":0},"unopened":[],"bounds":{"document_bytes":16777216,"sheet_cells":100000,"rows_first":2000,"rows_last":500,"rows_between":2000,"halvings":0,"cell_chars":16384,"cell_head_chars":4096},"cells_cut":0,"cells_raw":0,"read":"whole","date_system":"1900"}

{"sheet":"Hoofdmenu","index":0,"n_rows":3,"n_cols":2,"rows_kept":3,"cut":false,"hidden":false,"merged":[[0,0,0,1],[1,0,1,1]]}
[" "]
[{"$f":"CONCATENATE(\"KWARTAALSTAAT ZVW \", jaar_id,\" \",kwartaal_id,\"E KWARTAAL\")","v":"KWARTAALSTAAT ZVW 2019 2E KWARTAAL"}]
["Navigatie","Afdrukken"]

{"sheet":"Toelichting","index":1,"n_rows":4,"n_cols":2,"rows_kept":4,"cut":false,"hidden":false,"merged":[]}
[]
[]
[]
[null,{"$f":"CONCATENATE(\" KWARTAALSTAAT ZVW \",jaar_id,\" \",kwartaal_id,\"E KWARTAAL (VERSIE: \",revisie_id,\")\")","v":" KWARTAALSTAAT ZVW 2019 2E KWARTAAL (VERSIE: D)"}]

{"sheet":"Voorblad","index":2,"n_rows":35,"n_cols":4,"rows_kept":35,"cut":false,"hidden":false,"merged":[[15,3,16,11],[13,3,14,11],[17,3,18,11]]}
[null,null,"VOORBLAD"]
[]
[]
[]
[]
["Pagina 1",null,null," "]
[]
[]
[]
[]
[]
[]
[]
[null,null,null,{"$f":"CONCATENATE(\"KWARTAALSTAAT ZVW \",jaar_id)","v":"KWARTAALSTAAT ZVW 2019"}]
[]
[null,null,null,{"$f":"CONCATENATE(kwartaal_id,\"E KWARTAAL\")","v":"2E KWARTAAL"}]
[]
[null,null,null,"SPECIFIEKE INFORMATIE"]
[]
[]
[]
[null,null,null,"    KOSTENVERZAMELSTAAT (SPECIFIEKE INFORMATIE A)"]
[null,null,null,"     ● Informatie risicoverevening (pagina 1 t/m 4)"]
[]
[null,null,null,"    SPECIFIEKE INFORMATIE A"]
[null,null,null,"     ● Informatie risicoverevening (pagina 1 t/m 2)"]
[]
[null,null,null,"    SPECIFIEKE INFORMATIE C"]
[null,null,null,"     ● Specificaties van kosten en productie (pagina 1 t/m 7)"]
[]
[null,null,null,"    CONTRACTINFORMATIE (SPECIFIEKE INFORMATIE C)"]
[null,null,null,"     ● Specificaties van kosten en productie (pagina 1 & 2)"]
[]
[null,null,null,"    WANBETALERS (SPECIFIEKE INFORMATIE C)"]
[null,null,null,"     ● Specificaties van aantallen (pagina 1)"]

{"sheet":"Mededelingen","index":3,"n_rows":49,"n_cols":12,"rows_kept":49,"cut":false,"hidden":false,"merged":[[48,3,48,4]]}
[]
[]
[]
[]
[]
["Pagina 1",null,null,{"$f":"CONCATENATE(\"KWARTAALSTAAT ZVW \", jaar_id,\" \",kwartaal_id,\"E KWARTAAL\")","v":"KWARTAALSTAAT ZVW 2019 2E KWARTAAL"}]
[null,null,null,{"$f":"IF(naw_uzovi_zorgverzekeraar<>\"0000\",CONCATENATE(UPPER(naw_naam_zorgverzekeraar),\", \",UPPER(naw_plaats_zorgverzekeraar)),\"\")","v":""},null,null,null,null,null,null,null,{"$f":"CONCATENATE(\"UZOVI: \",naw_uzovi_zorgverzekeraar)","v":"UZOVI: 0000"}]
[null,null,null,"MEDEDELINGEN :"]
[]
[]
[]
[]
[]
[]
[]
[]
[]
[]
[]
[]
[]
[]
[]
[]
[]
[]
[]
[]
[]
[]
[]
[]
[]
[]
[]
[]
[]
[]
[]
[]
[]
[]
[]
[]
[]
[]
[]
[]
[null,null,null,{"$f":"NOW()","v":"2019-07-11T16:15:17.690"},null,null,null,null,null,null,null,{"$f":"CONCATENATE(\"Mededelingen \",LOWER(A6))","v":"Mededelingen pagina 1"}]

{"sheet":"NAW_gegevens","index":4,"n_rows":42,"n_cols":6,"rows_kept":42,"cut":false,"hidden":false,"merged":[[2,1,2,2],[3,1,3,2]]}
[]
[]
[null,"NAW-GEGEVENS"]
[null,{"$f":"CONCATENATE(\"KWARTAALSTAAT ZVW \", jaar_id,\" \",kwartaal_id,\"E KWARTAAL\")","v":"KWARTAALSTAAT ZVW 2019 2E KWARTAAL"}]
[null," Selecteer uw nummer:","0000 KIES UW UZOVI-NUMMER"]
[null," Uzovi-nummer:",{"$f":"MID(keuze_uzovi_nummer,1,4)","v":"0000"}]
[null," Zorgverzekeraar:"]
[null," Plaats:"]
[null," Contactpersoon:"]
[null," Telefoonnummer:"]
[null," E-mail:"]
[]
[null,"Let op dat u het goede UZOVI-nummer invult, zie onderstaand overzicht:"]
[]
[null,"UZOVI","NAAM",null,null,"PLAATS"]
[null,"0101","N.V. UNIVÉ ZORG",null,null,"ARNHEM"]
[null,"0104","CENTRALE ZIEKTEKOSTENVERZEKERING NZV N.V.",null,null,"TILBURG"]
[null,"0201","OHRA ZIEKTEKOSTENVERZEKERINGEN N.V. ",null,null,"TILBURG"]
[null,"0211","FBTO ZORGVERZEKERINGEN N.V.",null,null,"LEEUWARDEN"]
[null,"0403","ASR BASIS ZIEKTENKOSTENVERZEKERINGEN N.V. ",null,null,"AMERSFOORT"]
[null,"0420","ZORGVERZEKERAAR CARES GOUDA  N.V.",null,null,"ARNHEM"]
[null,"0699","IZA ZORGVERZEKERAAR N.V.",null,null,"ARNHEM"]
[null,"0736","N.V. ZORGVERZEKERAAR UMC",null,null,"ARNHEM"]
[null,"3311","ZILVEREN KRUIS ACHMEA ZORGVERZEKERINGEN N.V.",null,null,"AMSTERDAM"]
[null,"3313","INTERPOLIS ZORGVERZEKERINGEN N.V.",null,null,"AMSTERDAM"]
[null,3329,"AVÉRO ACHMEA ZORGVERZEKERINGEN N.V.",null,null,"AMSTERDAM"]
[null,3332,"MENZIS ZORGVERZEKERAAR NV",null,null,"WAGENINGEN"]
[null,3333,"ANDERZORG NV",null,null,"GRONINGEN"]
[null,3343,"ONVZ ZIEKTEKOSTENVERZEKERAAR N.V.",null,null,"HOUTEN"]
[null,3351,"FBTO ZORGVERZEKERINGEN N.V.",null,null,"LEEUWARDEN"]
[null,3352,"IPTIQ LIFE S.A.",null,null,"AMSTELVEEN"]
[null,3358,"DE FRIESLAND ZORGVERZEKERAAR N.V.",null,null,"LEEUWARDEN"]
[null,3359,"EUCARE INSURANCE PCC LTD",null,null,"TA' XBIEX"]
[null,"7029","OWM ZORGVERZEKERAAR 'DSW' U.A.",null,null,"SCHIEDAM"]
[null,"7032","ENO ZORGVERZEKERAAR N.V.",null,null,"DEVENTER"]
[null,"7037","STAD HOLLAND ZORGVERZEKERAAR OWM U.A.",null,null,"SCHIEDAM"]
[null,"7053","OHRA ZORGVERZEKERINGEN  N.V.",null,null,"TILBURG"]
[null,7084,"DE FRIESLAND ZORGVERZEKERAAR N.V.",null,null,"LEEUWARDEN"]
[null,"7085","OWM ZORGVERZEKERAAR ZORG EN ZEKERHEID U.A.",null,null,"LEIDEN"]
[null,"7095","VGZ ZORGVERZEKERAAR N.V.",null,null,"ARNHEM"]
[null,"7119","OWM CENTRALE ZORGVERZEKRAARS GROEP, ZORGVERZEKERAAR UA'",null,null,"TILBURG"]
[null,"9015","VGZ VOOR DE ZORG N.V.",null,null,"ARNHEM"]

{"sheet":"Kostenverzamelstaat","index":5,"n_rows":126,"n_cols":14,"rows_kept":126,"cut":false,"hidden":false,"merged":[[10,8,11,9],[15,3,15,6],[12,7,13,7],[19,3,19,6],[12,9,13,9],[12,8,13,8],[17,3,17,6],[48,11,49,11],[48,13,49,13],[10,12,11,13],[12,12,13,12],[12,13,13,13],[10,10,11,11],[12,11,13,11],[12,10,13,10],[46,10,47,11],[46,12,47,13],[48,12,49,12],[20,3,20,6],[21,3,21,6],[22,3,22,6],[24,3,24,7],[46,8,47,9],[36,3,36,7],[82,12,83,13],[75,3,75,4],[71,3,71,6],[58,3,58,6],[67,3,67,7],[68,3,68,7],[70,3,70,7],[73,3,73,6],[59,3,59,6],[69,3,69,6],[82,8,83,9],[82,10,83,11],[14,3,14,7],[16,3,16,6],[18,3,18,6],[53,3,53,6],[48,10,49,10],[35,3,35,6],[34,3,34,6],[23,3,23,7],[50,3,50,7],[48,7,49,7],[48,8,49,8],[48,9,49,9],[39,3,39,4],[31,3,31,6],[32,3,32,7],[33,3,33,7],[25,3,25,6],[28,3,28,7],[26,3,26,7],[27,3,27,6],[93,3,93,6],[94,3,94,6],[106,3,106,6],[97,3,97,6],[98,3,98,7],[101,3,101,6],[125,3,125,4],[120,3,120,6],[121,3,121,6],[122,3,122,6],[123,3,123,6],[104,3,104,6],[105,3,105,6],[92,3,92,7],[29,3,29,6],[30,3,30,6],[52,3,52,6],[57,3,57,6],[54,3,54,6],[88,3,88,6],[86,3,86,7],[89,3,89,6],[90,3,90,6],[87,3,87,6],[84,7,85,7],[51,3,51,6],[55,3,55,6],[56,3,56,6],[72,3,72,6],[84,10,85,10],[118,11,119,11],[118,13,119,13],[118,12,119,12],[118,10,119,10],[84,9,85,9],[118,9,119,9],[108,3,108,6],[118,8,119,8],[119,3,119,6],[118,3,118,7],[84,13,85,13],[84,12,85,12],[84,8,85,8],[99,3,99,6],[84,11,85,11],[111,3,111,4],[107,3,107,7],[100,3,100,6],[109,3,109,7],[103,3,103,7],[102,3,102,6],[95,3,95,6],[96,3,96,7]]}
[null,null,"INVULSPECIFICATIES SPECIFIEKE INFORMATIE A"]
[]
[]
[]
[]
["Pagina 1",null,null,{"$f":"CONCATENATE(\"KWARTAALSTAAT ZVW \", jaar_id,\" \",kwartaal_id,\"E KWARTAAL\")","v":"KWARTAALSTAAT ZVW 2019 2E KWARTAAL"}]
[null,null,null,"KOSTENVERZAMELSTAAT (SPECIFIEKE INFORMATIE A)"]
[null,null,null,{"$f":"IF(naw_uzovi_zorgverzekeraar<>\"0000\",CONCATENATE(UPPER(naw_naam_zorgverzekeraar),\", \",UPPER(naw_plaats_zorgverzekeraar)),\"\")","v":""},null,null,null,null,null,null,null,null,null,{"$f":"CONCATENATE(\"UZOVI: \",naw_uzovi_zorgverzekeraar)","v":"UZOVI: 0000"}]
[null,null,null,"SPECIFICATIES INFORMATIE RISICOVEREVENING"]
[null,null,null,"KOSTENVERZAMELSTAAT"]
[null,null,null,null,null,null,null,null,{"$f":"CONCATENATE(\"LASTEN \",jaar_id,)","v":"LASTEN 2019"},null,{"$f":"CONCATENATE(\"LASTEN \",jaar_id-1,)","v":"LASTEN 2018"},null,{"$f":"CONCATENATE(\"LASTEN \",jaar_id-2,\" EN OUDER\")","v":"LASTEN 2017 EN OUDER"}]
[]
[null,null,null,null,null,null,null,"\ncode","Lasten 2019 inclusief balanspost ","Ontvangen en geaccepteerde declaraties t/m 2e kwartaal 2019","Lasten 2018 inclusief balanspost","Ontvangen en geaccepteerde declaraties m.b.t. 2018","Lasten 2017 en ouder inclusief balanspost","Ontvangen en geaccepteerde declaraties m.b.t. 2017 en ouder"]
[null,null,null," KOSTENRUBRIEK"]
[null,null,null," 01  HUISARTSENZORG en MDZ"]
[null,null,null," Bijzondere betalingen",null,null,null,"503   "]
[null,null,null," Avond-, nacht- en weekenddiensten",null,null,null,"504   "]
[null,null,null," Inschrijftarieven",null,null,null,"505   "]
[null,null,null," Consulttarieven",null,null,null,"506   "]
[null,null,null," Overige tarieven",null,null,null,"507   "]
[null,null,null," Multidisciplinaire zorg",null,null,null,"510   "]
[null,null,null," Resultaatbeloning en zorgvernieuwing huisartsen",null,null,null,"515   "]
[null,null,null," Resultaatbeloning en zorgvernieuwing MDZ",null,null,null,"516   "]
[null,null,null," TOTAAL RUBRIEK 01",null,null,null,null,{"$f":"SUM(I16:I23)","v":0},{"$f":"SUM(J16:J23)","v":0},0,0,0,0]
[null,null,null," 02 FARMACEUTISCHE ZORG"]
[null,null,null," TOTAAL RUBRIEK 02",null,null,null,"520   "]
[null,null,null," 03 VERPLEGING EN VERZORGING "]
[null,null,null," Kosten van verpleging en verzorging ",null,null,null,"530   "]
[null,null,null," 04  MONDZORG"]
[null,null,null," Kosten mondzorg volwassen verzekerden",null,null,null,"560.1"]
[null,null,null," Kosten mondzorg jeugdige verzekerden",null,null,null,"560.2"]
[null,null,null," Kosten gebitsprothesen",null,null,null,"561   "]
[null,null,null," TOTAAL RUBRIEK 04",null,null,null,null,{"$f":"SUM(I30:I32)","v":0},{"$f":"SUM(J30:J32)","v":0},0,0,0,0]
[null,null,null," 05  VERLOSKUNDIGE ZORG"]
[null,null,null," Kosten verloskundige zorg door verloskundigen",null,null,null,"580   "]
[null,null,null," Kosten verloskundige zorg door huisartsen",null,null,null,"581   "]
[null,null,null," TOTAAL RUBRIEK 05",null,null,null,null,{"$f":"SUM(I35:I36)","v":0},0,0,0,0,0]
[]
[]
[null,null,null,{"$f":"NOW()","v":"2019-07-11T16:15:17.690"},null,null,null,null,null,null,null,null,null,{"$f":"CONCATENATE(\"Specifieke informatie A, \",LOWER(A6))","v":"Specifieke informatie A, pagina 1"}]
[]
["Pagina 2",null,null,{"$f":"CONCATENATE(\"KWARTAALSTAAT ZVW \", jaar_id,\" \",kwartaal_id,\"E KWARTAAL\")","v":"KWARTAALSTAAT ZVW 2019 2E KWARTAAL"}]
[null,null,null,"KOSTENVERZAMELSTAAT (SPECIFIEKE INFORMATIE A)"]
[null,null,null,{"$f":"IF(naw_uzovi_zorgverzekeraar<>\"0000\",CONCATENATE(UPPER(naw_naam_zorgverzekeraar),\", \",UPPER(naw_plaats_zorgverzekeraar)),\"\")","v":""},null,null,null,null,null,null,null,null,null,{"$f":"CONCATENATE(\"UZOVI: \",naw_uzovi_zorgverzekeraar)","v":"UZOVI: 0000"}]
[null,null,null,"SPECIFICATIES INFORMATIE RISICOVEREVENING"]
[null,null,null,"KOSTENVERZAMELSTAAT - vervolg"]
[null,null,null,null,null,null,null,null,{"$f":"CONCATENATE(\"LASTEN \",jaar_id,)","v":"LASTEN 2019"},null,{"$f":"CONCATENATE(\"LASTEN \",jaar_id-1,)","v":"LASTEN 2018"},null,{"$f":"CONCATENATE(\"LASTEN \",jaar_id-2,\" EN OUDER\")","v":"LASTEN 2017 EN OUDER"}]
[]
[null,null,null,null,null,null,null,"\ncode","Lasten 2019 inclusief balanspost ","Ontvangen en geaccepteerde declaraties t/m 2e kwartaal 2019","Lasten 2018 inclusief balanspost","Ontvangen en geaccepteerde declaraties m.b.t. 2018","Lasten 2017 en ouder inclusief balanspost","Ontvangen en geaccepteerde declaraties m.b.t. 2017 en ouder"]
[null,null,null," KOSTENRUBRIEK"]
[null,null,null," 06  MEDISCH SPECIALISTISCHE ZORG"]
[null,null,null," Kosten specialisten mondziekten en kaakchirurgie",null,null,null,"545   "]
[null,null,null," Overige kosten ziekenhuiszorg en curatieve zorg",null,null,null,"610   "]
[null,null,null," Overige zorgproducten",null,null,null,"611   "]
[null,null,null," Kosten add-ons ",null,null,null,"612   "]
[null,null,null," Kosten add-ons - Dure geneesmiddelen",null,null,null,"612.1"]
[null,null,null," Kosten add-ons - IC",null,null,null,"612.2"]
[null,null,null," Integrale kosten van DBC-zorgproduct \n gereguleerde segment  ",null,null,null,"613.1 "]
[null,null,null," Integrale kosten DBC-zorgproduct vrije segment",null,null,null,"615.1 "]
[null,null,null," Integrale kosten extramuraal werkende \n specialisten",null,null,null,"619   "]
[null,null,null," TOTAAL RUBRIEK 06",null,null,null,null,{"$f":"SUM(I52:I60)","v":0},0,0,0,0,0]
[null,null,null," 07  PARAMEDISCHE ZORG"]
[null,null,null," Kosten fysiotherapie",null,null,null,"620   "]
[null,null,null," Kosten oefentherapie Mensendieck/Cesar",null,null,null,"621   "]
[null,null,null," Kosten logopedie",null,null,null,"623   "]
[null,null,null," Kosten ergotherapie",null,null,null,"624   "]
[null,null,null," Kosten dieetadvisering",null,null,null,"625   "]
[null,null,null," TOTAAL RUBRIEK 07",null,null,null,null,{"$f":"SUM(I63:I67)","v":0},{"$f":"SUM(J63:J67)","v":0},0,0,0,0]
[null,null,null," 08  HULPMIDDELENZORG"]
[null,null,null," TOTAAL RUBRIEK 08",null,null,null,"640   "]
[null,null,null," 09  ZIEKENVERVOER"]
[null,null,null," Kosten vervoer per ambulance/helikopter",null,null,null,"650   "]
[null,null,null," Opbrengstenverrekeningen regionale ambulance-\n voorzieningen",null,null,null,"650.1"]
[null,null,null," Kosten vervoer per openbaar vervoer, taxi \n en eigen auto",null,null,null,"651   "]
[null,null,null," TOTAAL RUBRIEK 09",null,null,null,null,{"$f":"SUM(I72:I74)","v":0},{"$f":"SUM(J72:J74)","v":0},0,0,0,0]
[null,null,null,{"$f":"NOW()","v":"2019-07-11T16:15:17.690"},null,null,null,null,null,null,null,null,null,{"$f":"CONCATENATE(\"Specifieke informatie A, \",LOWER(A42))","v":"Specifieke informatie A, pagina 2"}]
[]
["Pagina 3",null,null,{"$f":"CONCATENATE(\"KWARTAALSTAAT ZVW \", jaar_id,\" \",kwartaal_id,\"E KWARTAAL\")","v":"KWARTAALSTAAT ZVW 2019 2E KWARTAAL"}]
[null,null,null,"KOSTENVERZAMELSTAAT (SPECIFIEKE INFORMATIE A)"]
[null,null,null,{"$f":"IF(naw_uzovi_zorgverzekeraar<>\"0000\",CONCATENATE(UPPER(naw_naam_zorgverzekeraar),\", \",UPPER(naw_plaats_zorgverzekeraar)),\"\")","v":""},null,null,null,null,null,null,null,null,null,{"$f":"CONCATENATE(\"UZOVI: \",naw_uzovi_zorgverzekeraar)","v":"UZOVI: 0000"}]
[null,null,null,"SPECIFICATIES INFORMATIE RISICOVEREVENING"]
[null,null,null,"KOSTENVERZAMELSTAAT - vervolg"]
[null,null,null,null,null,null,null,null,{"$f":"CONCATENATE(\"LASTEN \",jaar_id,)","v":"LASTEN 2019"},null,{"$f":"CONCATENATE(\"LASTEN \",jaar_id-1,)","v":"LASTEN 2018"},null,{"$f":"CONCATENATE(\"LASTEN \",jaar_id-2,\" EN OUDER\")","v":"LASTEN 2017 EN OUDER"}]
[]
[null,null,null,null,null,null,null,"\ncode","Lasten 2019 inclusief balanspost ","Ontvangen en geaccepteerde declaraties t/m 2e kwartaal 2019","Lasten 2018 inclusief balanspost","Ontvangen en geaccepteerde declaraties m.b.t. 2018","Lasten 2017 en ouder inclusief balanspost","Ontvangen en geaccepteerde declaraties m.b.t. 2017 en ouder"]
[null,null,null," KOSTENRUBRIEK"]
[null,null,null," 10 GENEESKUNDIGE GEESTELIJKE GEZONDHEIDSZORG"]
[null,null,null," Kosten specialistische GGZ met verblijf",null,null,null,"661   "]
[null,null,null," Kosten LGGZ (langdurige GGZ, jaar 2 en 3)",null,null,null,"661.1 "]
[null,null,null," Kosten specialistische GGZ zonder verblijf",null,null,null,"662   "]
[null,null,null," Generalistische basis GGZ",null,null,null,"665"]
[null,null,null," TOTAAL RUBRIEK 10",null,null,null,null,{"$f":"SUM(I88:I91)","v":0},{"$f":"SUM(J88:J91)","v":0},0,0,0,0]
[null,null,null," 11  GERIATRISCHE REVALIDATIEZORG"]
[null,null,null," Geriatrische Revalidatie",null,null,null,"670   "]
[null,null,null," Eerstelijnsverblijf ",null,null,null,"671   "]
[null,null,null," TOTAAL RUBRIEK 11",null,null,null,null,{"$f":"SUM(I94:I95)","v":0},0,0,0,0,0]
[null,null,null," 12  KRAAMZORG"]
[null,null,null," TOTAAL RUBRIEK 12",null,null,null,"680   "]
[null,null,null," 13  DIVERSE OVERIGE KOSTEN"]
[null,null,null," Overige kosten",null,null,null,"700   "]
[null,null,null," Overige geneeskundige zorg",null,null,null,"701"]
[null,null,null," Kosten van zorg zintuiglijk gehandicapten ",null,null,null,"702"]
[null,null,null," TOTAAL RUBRIEK 13",null,null,null,null,{"$f":"SUM(I100:I102)","v":0},{"$f":"SUM(J100:J102)","v":0},0,0,0,0]
[null,null,null," 15  GRENSOVERSCHRIJDENDE ZORG"]
[null,null,null," Kosten via verzekeraar",null,null,null,"720"]
[null,null,null," Kosten via verbindingsorgaan",null,null,null,"721"]
[null,null,null," TOTAAL RUBRIEK 15",null,null,null," ",{"$f":"SUM(I105:I106)","v":0},{"$f":"SUM(J105:J106)","v":0},0,0,0,0]
[null,null,null," 16  KWALITEITSGELDEN"]
[null,null,null," TOTAAL RUBRIEK 16",null,null,null,"730   "]
[null,null,null," TOTAAL LASTEN   (bruto-schade, definitie ZIN)",null,null,null,null,{"$f":"SUM(I24,I26,I28,I33,I37,I61,I68,I70,I75,I92,I96,I98,I103,I107,I109)","v":0},{"$f":"SUM(J24,J26,J28,J33,J37,J61,J68,J70,J75,J92,J96,J98,J103,J107,J109)","v":0},0,0,0,0]
[]
[null,null,null,{"$f":"NOW()","v":"2019-07-11T16:15:17.690"},null,null,null,null,null,null,null,null,null,{"$f":"CONCATENATE(\"Specifieke informatie A, \",LOWER(A78))","v":"Specifieke informatie A, pagina 3"}]
[]
["Pagina 4",null,null,{"$f":"CONCATENATE(\"KWARTAALSTAAT ZVW \", jaar_id,\" \",kwartaal_id,\"E KWARTAAL\")","v":"KWARTAALSTAAT ZVW 2019 2E KWARTAAL"}]
[null,null,null,"KOSTENVERZAMELSTAAT (SPECIFIEKE INFORMATIE A)"]
[null,null,null,{"$f":"IF(naw_uzovi_zorgverzekeraar<>\"0000\",CONCATENATE(UPPER(naw_naam_zorgverzekeraar),\", \",UPPER(naw_plaats_zorgverzekeraar)),\"\")","v":""},null,null,null,null,null,null,null,null,null,{"$f":"CONCATENATE(\"UZOVI: \",naw_uzovi_zorgverzekeraar)","v":"UZOVI: 0000"}]
[null,null,null,"SPECIFICATIES INFORMATIE RISICOVEREVENING"]
[null,null,null,"KOSTENVERZAMELSTAAT - vervolg"]
[null,null,null," BATEN ZVW",null,null,null,null,"Totale baten 2019 inclusief balanspost ","waarvan ontvangen  t/m 2e kwartaal 2019","Totale baten 2018 inclusief balanspost ","waarvan ontvangen m.b.t. 2018","Totale baten 2017 inclusief balanspost ","waarvan ontvangen m.b.t. 2017 en ouder"]
[null,null,null,null,null,null,null,"code"]
[null,null,null," OPBRENGSTEN VERHAAL",null,null,null,"890.1"]
[null,null,null," SCHADE T.L.V. HET VRIJWILLIG EIGEN RISICO",null,null,null,"910   "]
[null,null,null," SCHADE T.L.V. HET VERPLICHT EIGEN RISICO",null,null,null,"915   "]
[null,null,null," NETTO PREMIEOPBRENGSTEN",null,null,null,"940"]
[]
[null,null,null,{"$f":"NOW()","v":"2019-07-11T16:15:17.690"},null,null,null,null,null,null,null,null,null,{"$f":"CONCATENATE(\"Specifieke informatie A, \",LOWER(A114))","v":"Specifieke informatie A, pagina 4"}]

{"sheet":"Specifieke informatie A","index":6,"n_rows":184,"n_cols":12,"rows_kept":184,"cut":false,"hidden":false,"merged":[[11,11,12,11],[13,3,13,10],[14,3,14,10],[11,3,12,10],[92,3,92,4],[15,3,15,10],[56,9,56,10],[16,3,16,10],[86,9,88,11],[47,3,47,4],[56,11,57,11],[177,9,179,11],[183,3,183,4],[101,9,101,10],[101,11,102,11],[131,9,133,11],[138,3,138,4],[147,9,147,10],[147,11,148,11]]}
[null,null,"INVULSPECIFICATIES SPECIFIEKE INFORMATIE A"]
[]
[]
[]
[]
["Pagina 1",null,null,{"$f":"CONCATENATE(\"KWARTAALSTAAT ZVW \", jaar_id,\" \",kwartaal_id,\"E KWARTAAL\")","v":"KWARTAALSTAAT ZVW 2019 2E KWARTAAL"}]
[null,null,null,"SPECIFIEKE INFORMATIE A"]
[null,null,null,{"$f":"IF(naw_uzovi_zorgverzekeraar<>\"0000\",CONCATENATE(UPPER(naw_naam_zorgverzekeraar),\", \",UPPER(naw_plaats_zorgverzekeraar)),\"\")","v":""},null,null,null,null,null,null,null,{"$f":"CONCATENATE(\"UZOVI: \",naw_uzovi_zorgverzekeraar)","v":"UZOVI: 0000"}]
[]
[null,null,null,"SPECIFICATIES INFORMATIE RISICOVEREVENING"]
[null,null,null,"KOSTEN NAAR DEELBIJDRAGE"]
[null,null,null," KOSTEN NAAR DEELBIJDRAGE",null,null,null,null,null,null,null,"Lasten 2019 inclusief balanspost "]
[]
[null,null,null," Variabele zorgkosten ",null,null,null,null,null,null,null," "]
[null,null,null," Vaste zorgkosten"]
[null,null,null," Kosten geneeskundige geestelijke gezondheidszorg "]
[null,null,null," TOTAAL lasten (bruto-schade, definitie ZIN)",null,null,null,null,null,null,null,{"$f":"SUM(L14:L16)","v":0}]
[]
[]
[]
[]
[]
[]
[]
[]
[]
[]
[]
[]
[]
[]
[]
[]
[]
[]
[]
[]
[]
[]
[]
[]
[]
[]
[]
[]
[]
[]
[null,null,null,{"$f":"NOW()","v":"2019-07-11T16:15:17.690"},null,null,null,null,null,null,null,{"$f":"CONCATENATE(\"Specifieke informatie A, \",LOWER(A6))","v":"Specifieke informatie A, pagina 1"}]
[]
["Pagina 2",null,null,{"$f":"CONCATENATE(\"KWARTAALSTAAT ZVW \", jaar_id,\" \",kwartaal_id,\"E KWARTAAL\")","v":"KWARTAALSTAAT ZVW 2019 2E KWARTAAL"}]
[null,null,null,"SPECIFIEKE INFORMATIE A"]
[null,null,null,{"$f":"IF(naw_uzovi_zorgverzekeraar<>\"0000\",CONCATENATE(UPPER(naw_naam_zorgverzekeraar),\", \",UPPER(naw_plaats_zorgverzekeraar)),\"\")","v":""},null,null,null,null,null,null,null,{"$f":"CONCATENATE(\"UZOVI: \",naw_uzovi_zorgverzekeraar)","v":"UZOVI: 0000"}]
[]
[null,null,null,"SPECIFICATIES INFORMATIE RISICOVEREVENING"]
[null,null,null,"VERZEKERDENSTAND NAAR RISICOKLASSE",null,null,null,null,null,null,null,"Peildatum: datum van nominale premieprolongatie"]
[null,null,null,null,null,null,null,null,null,null,null,"voor de maand MEI 2019"]
[null,null,null," LEEFTIJD",null,null,null,null,null,"AANTAL NAAR GESLACHT",null,"TOTAAL \nAANTAL"]
[null,null,null,null,null,null,null,null,null,"MAN","VROUW"]
[null,null,null,"  1a.   0  t/m   1",null,null,null,null,null,null,null,{"$f":"SUM(J59:K59)","v":0}]
[null,null,null,"  1b.   2  t/m   4",null,null,null,null,null,null,null,{"$f":"SUM(J60:K60)","v":0}]
[null,null,null,"  2.     5  t/m   9",null,null,null,null,null,null,null,0]
[null,null,null,"  3.   10  t/m 14",null,null,null,null,null,null,null,0]
[null,null,null,"  4.   15  t/m 19",null,null,null,null,null,null,null,0]
[null,null,null,"  5.   20  t/m 24",null,null,null,null,null,null,null,0]
[null,null,null,"  6.   25  t/m 29",null,null,null,null,null,null,null,0]
[null,null,null,"  7.   30  t/m 34",null,null,null,null,null,null,null,0]
[null,null,null,"  8.   35  t/m 39",null,null,null,null,null,null,null,0]
[null,null,null,"  9.   40  t/m 44",null,null,null,null,null,null,null,0]
[null,null,null," 10.  45  t/m 49",null,null,null,null,null,null,null,0]
[null,null,null," 11.  50  t/m 54",null,null,null,null,null,null,null,0]
[null,null,null," 12.  55  t/m 59",null,null,null,null,null,null,null,0]
[null,null,null," 13.  60  t/m 64",null,null,null,null,null,null,null,0]
[null,null,null," 14.  65  t/m 69",null,null,null,null,null,null,null,0]
[null,null,null," 15.  70  t/m 74",null,null,null,null,null,null,null,0]
[null,null,null," 16.  75  t/m 79",null,null,null,null,null,null,null,0]
[null,null,null," 17.  80  t/m 84",null,null,null,null,null,null,null,0]
[null,null,null," 18.  85  t/m 89",null,null,null,null,null,null,null,0]
[null,null,null," 19.  90 en ouder",null,null,null,null,null,null,null,0]
[null,null,null," TOTAAL",null,null,null,null,null,{"$f":"SUM(J59:J78)","v":0},{"$f":"SUM(K59:K78)","v":0},0]
[]
[null,null,null,"VERZEKERDENSTAND NAAR NOMINALE PREMIE",null,null,null,null,null,null,null,"Peildatum: datum van nominale premieprolongatie"]
[null,null,null,null,null,null,null,null,null,null,null,"voor de maand MEI 2019"]
[null,null,null,null,null,null,null,null,null,null,null,"AANTAL"]
[null,null,null," Verzekerden met nominale premie Zvw"]
[null,null,null," Verzekerden zonder nominale premie Zvw"]
[null,null,null," TOTAAL",null,null,null,null,null,null,null,{"$f":"SUM(L84:L85)","v":0}]
[null,null,null,null,null,null,null,null,null,{"$f":"IF(AND(ISBLANK(K78)=FALSE,ISBLANK(L84)=FALSE),IF(L84<SUM(L64:L78),\"ATTENTIE: is het juist dat het aantal verzekerden \nmet nominale premie kleiner is dan het totaal\naantal verzekerden van 20 jaar en ouder?\",\"\"),\"\")","v":""}]
[]
[]
[]
[]
[]
[null,null,null,{"$f":"NOW()","v":"2019-07-11T16:15:17.690"},null,null,null,null,null,null,null,{"$f":"CONCATENATE(\"Specifieke informatie A, \",LOWER(A50))","v":"Specifieke informatie A, pagina 2"}]
[]
["Pagina 3",null,null,{"$f":"CONCATENATE(\"KWARTAALSTAAT ZVW \", jaar_id,\" \",kwartaal_id,\"E KWARTAAL\")","v":"KWARTAALSTAAT ZVW 2019 2E KWARTAAL"}]
[null,null,null,"SPECIFIEKE INFORMATIE A"]
[null,null,null,{"$f":"IF(naw_uzovi_zorgverzekeraar<>\"0000\",CONCATENATE(UPPER(naw_naam_zorgverzekeraar),\", \",UPPER(naw_plaats_zorgverzekeraar)),\"\")","v":""},null,null,null,null,null,null,null,{"$f":"CONCATENATE(\"UZOVI: \",naw_uzovi_zorgverzekeraar)","v":"UZOVI: 0000"}]
[]
[null,null,null,"SPECIFICATIES INFORMATIE RISICOVEREVENING"]
[null,null,null,"VERZEKERDENSTAND NAAR RISICOKLASSE",null,null,null,null,null,null,null,"Peildatum: datum van nominale premieprolongatie"]
[null,null,null,null,null,null,null,null,null,null,null,"voor de maand JUNI 2019"]
[null,null,null," LEEFTIJD",null,null,null,null,null,"AANTAL NAAR GESLACHT",null,"TOTAAL \nAANTAL"]
[null,null,null,null,null,null,null,null,null,"MAN","VROUW"]
[null,null,null,"  1a.   0  t/m   1",null,null,null,null,null,null,null,{"$f":"SUM(J104:K104)","v":0}]
[null,null,null,"  1b.   2  t/m   4",null,null,null,null,null,null,null,{"$f":"SUM(J105:K105)","v":0}]
[null,null,null,"  2.     5  t/m   9",null,null,null,null,null,null,null,0]
[null,null,null,"  3.   10  t/m 14",null,null,null,null,null,null,null,0]
[null,null,null,"  4.   15  t/m 19",null,null,null,null,null,null,null,0]
[null,null,null,"  5.   20  t/m 24",null,null,null,null,null,null,null,0]
[null,null,null,"  6.   25  t/m 29",null,null,null,null,null,null,null,0]
[null,null,null,"  7.   30  t/m 34",null,null,null,null,null,null,null,0]
[null,null,null,"  8.   35  t/m 39",null,null,null,null,null,null,null,0]
[null,null,null,"  9.   40  t/m 44",null,null,null,null,null,null,null,0]
[null,null,null," 10.  45  t/m 49",null,null,null,null,null,null,null,0]
[null,null,null," 11.  50  t/m 54",null,null,null,null,null,null,null,0]
[null,null,null," 12.  55  t/m 59",null,null,null,null,null,null,null,0]
[null,null,null," 13.  60  t/m 64",null,null,null,null,null,null,null,0]
[null,null,null," 14.  65  t/m 69",null,null,null,null,null,null,null,0]
[null,null,null," 15.  70  t/m 74",null,null,null,null,null,null,null,0]
[null,null,null," 16.  75  t/m 79",null,null,null,null,null,null,null,0]
[null,null,null," 17.  80  t/m 84",null,null,null,null,null,null,null,0]
[null,null,null," 18.  85  t/m 89",null,null,null,null,null,null,null,0]
[null,null,null," 19.  90 en ouder",null,null,null,null,null,null,null,0]
[null,null,null," TOTAAL",null,null,null,null,null,{"$f":"SUM(J104:J123)","v":0},{"$f":"SUM(K104:K123)","v":0},{"$f":"SUM(L104:L123)","v":0}]
[]
[null,null,null,"VERZEKERDENSTAND NAAR NOMINALE PREMIE",null,null,null,null,null,null,null,"Peildatum: datum van nominale premieprolongatie"]
[null,null,null,null,null,null,null,null,null,null,null,"voor de maand JUNI 2019"]
[null,null,null,null,null,null,null,null,null,null,null,"AANTAL"]
[null,null,null," Verzekerden met nominale premie Zvw"]
[null,null,null," Verzekerden zonder nominale premie Zvw"]
[null,null,null," TOTAAL",null,null,null,null,null,null,null,{"$f":"SUM(L129:L130)","v":0}]
[null,null,null,null,null,null,null,null,null,{"$f":"IF(AND(ISBLANK(K123)=FALSE,ISBLANK(L129)=FALSE),IF(L84<SUM(L109:L123),\"ATTENTIE: is het juist dat het aantal verzekerden \nmet nominale premie kleiner is dan het totaal\naantal verzekerden van 20 jaar en ouder?\",\"\"),\"\")","v":""}]
[]
[]
[]
[]
[]
[]
[null,null,null,{"$f":"NOW()","v":"2019-07-11T16:15:17.690"},null,null,null,null,null,null,null,{"$f":"CONCATENATE(\"Specifieke informatie A, \",LOWER(A95))","v":"Specifieke informatie A, pagina 3"}]
[]
["Pagina 4",null,null,{"$f":"CONCATENATE(\"KWARTAALSTAAT ZVW \", jaar_id,\" \",kwartaal_id,\"E KWARTAAL\")","v":"KWARTAALSTAAT ZVW 2019 2E KWARTAAL"}]
[null,null,null,"SPECIFIEKE INFORMATIE A"]
[null,null,null,{"$f":"IF(naw_uzovi_zorgverzekeraar<>\"0000\",CONCATENATE(UPPER(naw_naam_zorgverzekeraar),\", \",UPPER(naw_plaats_zorgverzekeraar)),\"\")","v":""},null,null,null,null,null,null,null,{"$f":"CONCATENATE(\"UZOVI: \",naw_uzovi_zorgverzekeraar)","v":"UZOVI: 0000"}]
[]
[null,null,null,"SPECIFICATIES INFORMATIE RISICOVEREVENING"]
[null,null,null,"VERZEKERDENSTAND NAAR RISICOKLASSE",null,null,null,null,null,null,null,"Peildatum: datum van nominale premieprolongatie"]
[null,null,null,null,null,null,null,null,null,null,null,"voor de maand JULI 2019"]
[null,null,null," LEEFTIJD",null,null,null,null,null,"AANTAL NAAR GESLACHT",null,"TOTAAL \nAANTAL"]
[null,null,null,null,null,null,null,null,null,"MAN","VROUW"]
[null,null,null,"  1a.   0  t/m   1",null,null,null,null,null,null,null,{"$f":"SUM(J150:K150)","v":0}]
[null,null,null,"  1b.   2  t/m   4",null,null,null,null,null,null,null,{"$f":"SUM(J151:K151)","v":0}]
[null,null,null,"  2.     5  t/m   9",null,null,null,null,null,null,null,0]
[null,null,null,"  3.   10  t/m 14",null,null,null,null,null,null,null,0]
[null,null,null,"  4.   15  t/m 19",null,null,null,null,null,null,null,0]
[null,null,null,"  5.   20  t/m 24",null,null,null,null,null,null,null,0]
[null,null,null,"  6.   25  t/m 29",null,null,null,null,null,null,null,0]
[null,null,null,"  7.   30  t/m 34",null,null,null,null,null,null,null,0]
[null,null,null,"  8.   35  t/m 39",null,null,null,null,null,null,null,0]
[null,null,null,"  9.   40  t/m 44",null,null,null,null,null,null,null,0]
[null,null,null," 10.  45  t/m 49",null,null,null,null,null,null,null,0]
[null,null,null," 11.  50  t/m 54",null,null,null,null,null,null,null,0]
[null,null,null," 12.  55  t/m 59",null,null,null,null,null,null,null,0]
[null,null,null," 13.  60  t/m 64",null,null,null,null,null,null,null,0]
[null,null,null," 14.  65  t/m 69",null,null,null,null,null,null,null,0]
[null,null,null," 15.  70  t/m 74",null,null,null,null,null,null,null,0]
[null,null,null," 16.  75  t/m 79",null,null,null,null,null,null,null,0]
[null,null,null," 17.  80  t/m 84",null,null,null,null,null,null,null,0]
[null,null,null," 18.  85  t/m 89",null,null,null,null,null,null,null,0]
[null,null,null," 19.  90 en ouder",null,null,null,null,null,null,null,0]
[null,null,null," TOTAAL",null,null,null,null,null,{"$f":"SUM(J150:J169)","v":0},{"$f":"SUM(K150:K169)","v":0},{"$f":"SUM(L150:L169)","v":0}]
[]
[null,null,null,"VERZEKERDENSTAND NAAR NOMINALE PREMIE",null,null,null,null,null,null,null,"Peildatum: datum van nominale premieprolongatie"]
[null,null,null,null,null,null,null,null,null,null,null,"voor de maand JULI 2019"]
[null,null,null,null,null,null,null,null,null,null,null,"AANTAL"]
[null,null,null," Verzekerden met nominale premie Zvw"]
[null,null,null," Verzekerden zonder nominale premie Zvw"]
[null,null,null," TOTAAL",null,null,null,null,null,null,null,{"$f":"SUM(L175:L176)","v":0}]
[null,null,null,null,null,null,null,null,null,{"$f":"IF(AND(ISBLANK(K169)=FALSE,ISBLANK(L175)=FALSE),IF(L175<SUM(L155:L169),\"ATTENTIE: is het juist dat het aantal verzekerden \nmet nominale premie kleiner is dan het totaal\naantal verzekerden van 20 jaar en ouder?\",\"\"),\"\")","v":""}]
[]
[]
[]
[]
[]
[null,null,null,{"$f":"NOW()","v":"2019-07-11T16:15:17.690"},null,null,null,null,null,null,null,{"$f":"CONCATENATE(\"Specifieke informatie A, \",LOWER(A141))","v":"Specifieke informatie A, pagina 4"}]

{"sheet":"Specifieke informatie C","index":7,"n_rows":304,"n_cols":12,"rows_kept":304,"cut":false,"hidden":false,"merged":[[196,3,196,5],[197,3,197,5],[203,3,203,5],[202,3,202,5],[191,9,192,9],[191,10,192,10],[191,11,192,11],[193,3,193,5],[194,3,194,5],[199,6,199,7],[199,3,201,5],[200,7,201,7],[200,9,201,9],[199,10,199,11],[200,11,201,11],[182,11,183,11],[181,10,181,11],[182,8,183,8],[190,6,190,7],[190,8,190,9],[190,10,190,11],[191,6,192,6],[191,7,192,7],[195,3,195,5],[241,11,242,11],[228,3,228,5],[229,3,229,5],[250,3,250,10],[268,3,269,10],[272,3,272,10],[270,3,270,10],[230,3,230,5],[247,11,248,11],[268,11,269,11],[249,3,249,10],[247,3,248,10],[241,3,242,10],[237,3,237,10],[235,3,236,10],[235,11,236,11],[174,3,174,4],[181,8,181,9],[181,6,181,7],[182,7,183,7],[182,9,183,9],[182,6,183,6],[181,3,183,5],[182,10,183,10],[191,8,192,8],[299,3,299,10],[295,11,296,11],[277,11,278,11],[303,3,303,4],[291,3,291,10],[292,3,292,10],[293,3,293,10],[295,3,296,10],[288,3,288,10],[286,3,286,10],[287,3,287,10],[297,3,297,10],[298,3,298,10],[300,3,300,10],[289,3,289,10],[290,3,290,10],[277,3,278,10],[279,3,279,10],[280,3,280,10],[281,3,281,10],[284,3,285,10],[284,11,285,11],[204,3,204,5],[205,3,205,5],[206,3,206,5],[200,10,201,10],[200,6,201,6],[200,8,201,8],[231,3,231,5],[232,3,232,5],[261,3,261,4],[261,10,261,12],[218,3,218,4],[225,3,227,5],[225,6,225,7],[225,8,225,9],[225,10,225,11],[226,6,227,6],[226,7,227,7],[226,8,227,8],[226,9,227,9],[226,10,227,10],[226,11,227,11],[244,3,244,10],[254,3,254,10],[253,3,253,10],[160,3,160,5],[156,7,157,7],[155,8,155,9],[273,3,273,10],[271,3,271,10],[252,3,252,10],[274,3,274,10],[243,3,243,10],[245,3,245,10],[251,3,251,10],[238,3,238,10],[239,3,239,10],[167,3,167,5],[168,3,168,5],[169,3,169,5],[170,3,170,5],[171,3,171,5],[199,8,199,9],[188,3,188,5],[184,3,184,5],[185,3,185,5],[186,3,186,5],[187,3,187,5],[190,3,192,5],[142,3,142,10],[149,3,150,4],[147,11,148,11],[156,11,157,11],[164,10,165,10],[127,3,128,10],[130,3,130,10],[131,3,131,10],[163,10,163,11],[163,8,163,9],[163,3,165,5],[163,6,163,7],[164,9,165,9],[155,3,157,5],[159,3,159,5],[158,3,158,5],[155,6,155,7],[161,3,161,5],[164,11,165,11],[164,7,165,7],[127,11,128,11],[149,5,149,10],[164,6,165,6],[164,8,165,8],[58,11,59,11],[70,3,71,3],[71,4,71,10],[70,4,70,10],[67,3,67,10],[65,3,66,10],[65,11,66,11],[115,3,115,10],[117,3,117,10],[116,3,116,10],[110,3,110,10],[108,3,109,10],[60,3,60,10],[58,3,59,10],[61,3,61,10],[69,3,69,10],[74,3,74,10],[72,3,72,10],[68,3,68,10],[102,3,102,10],[101,3,101,10],[62,3,62,10],[82,3,82,10],[80,3,80,10],[120,3,120,10],[156,6,157,6],[145,3,145,10],[150,5,150,10],[141,3,141,10],[122,3,122,10],[125,3,125,10],[123,3,123,10],[121,3,121,10],[143,3,143,10],[132,3,132,4],[151,3,152,4],[151,5,151,10],[152,5,152,10],[124,3,124,10],[156,9,157,9],[139,3,140,10],[129,3,129,10],[147,3,148,10],[144,3,144,10],[155,10,155,11],[156,10,157,10],[156,8,157,8],[139,11,140,11],[26,3,26,10],[42,3,42,10],[22,5,22,10],[22,3,23,4],[19,5,19,10],[56,3,56,10],[54,3,54,10],[21,5,21,10],[43,3,43,10],[24,3,24,10],[31,3,31,10],[55,3,55,10],[25,3,25,10],[33,3,33,10],[40,3,40,10],[45,3,45,4],[41,3,41,10],[20,5,20,10],[34,3,34,10],[19,3,20,4],[21,3,21,4],[98,3,99,4],[95,3,96,10],[78,3,78,10],[76,3,77,10],[100,3,100,10],[10,11,11,11],[12,3,12,10],[17,11,18,11],[17,3,18,10],[10,3,11,10],[13,3,13,10],[15,3,15,10],[14,3,14,10],[52,11,53,11],[23,5,23,10],[37,11,38,11],[37,3,38,10],[32,3,32,10],[28,11,29,11],[39,3,39,10],[35,3,35,10],[30,3,30,10],[28,3,29,10],[52,3,53,10],[166,3,166,5],[166,6,166,8],[166,9,166,11],[282,3,282,10],[73,3,73,10],[81,3,81,10],[111,3,111,10],[119,3,119,10],[118,3,118,10],[114,3,114,10],[113,3,113,10],[112,3,112,10],[108,11,109,11],[106,8,106,10],[106,3,106,7],[104,3,105,10],[104,11,105,11],[97,3,97,10],[88,3,88,4],[76,11,77,11],[95,11,96,11],[79,3,79,10],[99,5,99,10],[98,5,98,10]]}
[null,null,"INVULSPECIFICATIES SPECIFIEKE INFORMATIE C"]
[]
[]
[]
[]
["Pagina 1",null,null,{"$f":"CONCATENATE(\"KWARTAALSTAAT ZVW \", jaar_id,\" \",kwartaal_id,\"E KWARTAAL\")","v":"KWARTAALSTAAT ZVW 2019 2E KWARTAAL"}]
[null,null,null,"SPECIFIEKE INFORMATIE C"]
[null,null,null,{"$f":"IF(naw_uzovi_zorgverzekeraar<>\"0000\",CONCATENATE(UPPER(naw_naam_zorgverzekeraar),\", \",UPPER(naw_plaats_zorgverzekeraar)),\"\")","v":""},null,null,null,null,null,null,null,{"$f":"CONCATENATE(\"UZOVI: \",naw_uzovi_zorgverzekeraar)","v":"UZOVI: 0000"}]
[null,null,null,"SPECIFICATIES VAN KOSTEN EN PRODUCTIE"]
[null,null,null,"RUBRIEK 01 HUISARTSENZORG"]
[null,null,null,"  CODE 503 - BIJZONDERE BETALINGEN",null,null,null,null,null,null,null,"Ontvangen en geaccepteerde declaraties tot en met 2e kwartaal 2019"]
[]
[null,null,null," Module achterstandsfonds"]
[null,null,null," Module modernisering en innovatie"]
[null,null,null," Overige kosten"]
[null,null,null," TOTAAL code 503",null,null,null,null,null,null,null,{"$f":"SUM(L13:L15)","v":0}]
[]
[null,null,null,"  CODE 506 - CONSULTTARIEVEN",null,null,null,null,null,null,null,"Ontvangen en geaccepteerde declaraties tot en met 2e kwartaal 2019"]
[]
[null,null,null," Kosten consulten huisartsen",null," korter dan 5 minuten"]
[null,null,null,null,null," van 5 tot 20 minuten"]
[null,null,null,null,null," 20 minuten en langer"]
[null,null,null," Kosten visites huisartsen",null," ≤ 20 minuten"]
[null,null,null,null,null," > 20 minuten"]
[null,null,null," Kosten consulttarieven POH GGZ"]
[null,null,null," Kosten huisartsenzorg ELV en Intensieve zorg "]
[null,null,null," TOTAAL code 506",null,null,null,null,null,null,null,{"$f":"SUM(L20:L26)","v":0}]
[]
[null,null,null,"  CODE 507 - OVERIGE TARIEVEN",null,null,null,null,null,null,null,"Ontvangen en geaccepteerde declaraties tot en met 2e kwartaal 2019"]
[null,null,null,null,null,null,null,null,null,null,null,"Ontvangen en geaccepteerde declaraties mbt jaar T"]
[null,null,null," Module POH GGZ"]
[null,null,null," S1 Verrichtingen "]
[null,null,null," Vaccinaties"]
[null,null,null," Passantentarieven"]
[null,null,null," Verloskundige zorg door huisartsen"]
[null,null,null," TOTAAL code 507",null,null,null,null,null,null,null,{"$f":"SUM(L31:L35)","v":0}]
[]
[null,null,null,"  CODE 510 - MULTIDISCIPLINAIRE ZORG",null,null,null,null,null,null,null,"Ontvangen en geaccepteerde declaraties tot en met 2e kwartaal 2019"]
[null,null,null,null,null,null,null,null,null,null,null,"Ontvangen en geaccepteerde declaraties mbt jaar T"]
[null,null,null," Multidisciplinaire zorgverlening Diabetes Mellitus type 2 en multidisciplinaire zorgverlening Cardiovasculair risicomanagement \n (vergoedingscomponent te verzekeren prestatie Zvw)"]
[null,null,null," Multidisciplinaire zorgverlening COPD (vergoedingscomponent te verzekeren prestatie Zvw) "]
[null,null,null," Ondersteuning en infrastructuur"]
[null,null,null," Programma stoppen met roken"]
[null,null,null," TOTAAL code 510",null,null,null,null,null,null,null,{"$f":"SUM(L40:L43)","v":0}]
[]
[null,null,null,{"$f":"NOW()","v":"2019-07-11T16:15:17.690"},null,null,null,null,null,null,null,{"$f":"CONCATENATE(\"Specifieke informatie C, \",LOWER(A6))","v":"Specifieke informatie C, pagina 1"}]
[]
["Pagina 2",null,null,{"$f":"CONCATENATE(\"KWARTAALSTAAT ZVW \", jaar_id,\" \",kwartaal_id,\"E KWARTAAL\")","v":"KWARTAALSTAAT ZVW 2019 2E KWARTAAL"}]
[null,null,null,"SPECIFIEKE INFORMATIE C"]
[null,null,null,{"$f":"IF(naw_uzovi_zorgverzekeraar<>\"0000\",CONCATENATE(UPPER(naw_naam_zorgverzekeraar),\", \",UPPER(naw_plaats_zorgverzekeraar)),\"\")","v":""},null,null,null,null,null,null,null,{"$f":"CONCATENATE(\"UZOVI: \",naw_uzovi_zorgverzekeraar)","v":"UZOVI: 0000"}]
[null,null,null,"SPECIFICATIES VAN KOSTEN EN PRODUCTIE"]
[null,null,null,"RUBRIEK 01 HUISARTSENZORG"]
[null,null,null,"  CODE 515 - RESULTAATBELONING EN ZORGVERNIEUWING HUISARTSEN",null,null,null,null,null,null,null,"Ontvangen en geaccepteerde declaraties tot en met 2e kwartaal 2019"]
[null,null,null,null,null,null,null,null,null,null,null,"Ontvangen en geaccepteerde declaraties mbt jaar T"]
[null,null,null," Kosten resultaatbeloning huisartsen"]
[null,null,null," Kosten zorgvernieuwing huisartsen"]
[null,null,null," TOTAAL code 515",null,null,null,null,null,null,null,{"$f":"SUM(L55:L56)","v":0}]
[]
[null,null,null,"  CODE 516 - RESULTAATBELONING EN ZORGVERNIEUWING MDZ",null,null,null,null,null,null,null,"Ontvangen en geaccepteerde declaraties tot en met 2e kwartaal 2019"]
[null,null,null,null,null,null,null,null,null,null,null,"Ontvangen en geaccepteerde declaraties mbt jaar T"]
[null,null,null," Kosten resultaatbeloning MDZ"]
[null,null,null," Kosten zorgvernieuwing MDZ"]
[null,null,null," TOTAAL code 516",null,null,null,null,null,null,null,{"$f":"SUM(L61:L62)","v":0}]
[]
[null,null,null,"RUBRIEK 03 VERPLEGING EN VERZORGING"]
[null,null,null,"  CODE 530 - VERPLEGING EN VERZORGING ",null,null,null,null,null,null,null,"Ontvangen en geaccepteerde declaraties tot en met 2e kwartaal 2019"]
[null,null,null,null,null,null,null,null,null,null,null,"Ontvangen en geaccepteerde declaraties mbt jaar T"]
[null,null,null," Kosten verpleging"]
[null,null,null," Kosten verzorging"]
[null,null,null," Kosten PGB"]
[null,null,null," Overige kosten"," Prestatie AIV, Beloning op maat, Experiment bekostiging VenV (prestaties op verzekerdenniveau)"]
[null,null,null,null," Wijkgericht werken, Experiment regelarme instelling, Regionale beschikbaarheidsfunctie, Experimenten \n ketenzorg dementie (prestaties niet op verzekerdenniveau)"]
[null,null,null," Kosten verpleegkundige dagopvang en verblijf bij Intensieve kindzorg"]
[null,null,null," Kosten verpleging en verzorging voor kinderen tot 18 jaar"]
[null,null,null," TOTAAL code 530",null,null,null,null,null,null,null,{"$f":"SUM(L68:L74)","v":0}]
[]
[null,null,null,"  CODE 530 - VERPLEGING EN VERZORGING ",null,null,null,null,null,null,null,"AANTAL tot en met 2e kwartaal 2019"]
[null,null,null,null,null,null,null,null,null,null,null,"Ontvangen en geaccepteerde declaraties mbt jaar T"]
[null,null,null," Verpleging"]
[null,null,null," Verzorging"]
[null,null,null," PGB"]
[null,null,null," Verpleegkundige dagopvang en verblijf bij Intensieve kindzorg"]
[null,null,null," Verpleging en verzorging voor kinderen tot 18 jaar"]
[]
[]
[]
[]
[]
[null,null,null,{"$f":"NOW()","v":"2019-07-11T16:15:17.690"},null,null,null,null,null,null,null,{"$f":"CONCATENATE(\"Specifieke informatie C, \",LOWER(A48))","v":"Specifieke informatie C, pagina 2"}]
[]
["Pagina 3",null,null,{"$f":"CONCATENATE(\"KWARTAALSTAAT ZVW \", jaar_id,\" \",kwartaal_id,\"E KWARTAAL\")","v":"KWARTAALSTAAT ZVW 2019 2E KWARTAAL"}]
[null,null,null,"SPECIFIEKE INFORMATIE C"]
[null,null,null,{"$f":"IF(naw_uzovi_zorgverzekeraar<>\"0000\",CONCATENATE(UPPER(naw_naam_zorgverzekeraar),\", \",UPPER(naw_plaats_zorgverzekeraar)),\"\")","v":""},null,null,null,null,null,null,null,{"$f":"CONCATENATE(\"UZOVI: \",naw_uzovi_zorgverzekeraar)","v":"UZOVI: 0000"}]
[null,null,null,"SPECIFICATIES VAN KOSTEN EN PRODUCTIE"]
[null,null,null,"RUBRIEK 04 MONDZORG "]
[null,null,null,"  CODE 560.1 - MONDZORG VOLWASSEN VERZEKERDEN",null,null,null,null,null,null,null,"Ontvangen en geaccepteerde declaraties tot en met 2e kwartaal 2019"]
[]
[null,null,null," X   Maken en beoordelen foto's (Röntgendiagnostiek)"]
[null,null,null," Bijzondere tandheelkundige zorg \n (art. 2.7, lid 1, sub a)",null," Implantaten "]
[null,null,null,null,null," Overig"]
[null,null,null," Bijzondere tandheelkundige zorg (art. 2.7, lid 1, b en c)"]
[null,null,null," Bijzondere tandheelkundige zorg (art. 2.7, lid 3), Orthodontie"]
[null,null,null," TOTAAL code 560.1",null,null,null,null,null,null,null,{"$f":"SUM(L98:L102)","v":0}]
[]
[null,null,null,"  CODE 560.1 - MONDZORG VOLWASSEN VERZEKERDEN - vervolg",null,null,null,null,null,null,null,"AANTAL tot en met 2e kwartaal 2019"]
[null,null,null,null,null,null,null,null,null,null,null,"Ontvangen en geaccepteerde declaraties mbt jaar T"]
[null,null,null," Bijzondere tandheelkundige zorg (art. 2.7, lid 1, sub a)",null,null,null,null," Implantaten"]
[]
[null,null,null,"  CODE 560.2 - MONDZORG JEUGDIGE VERZEKERDEN",null,null,null,null,null,null,null,"Ontvangen en geaccepteerde declaraties tot en met 2e kwartaal 2019"]
[null,null,null,null,null,null,null,null,null,null,null,"Ontvangen en geaccepteerde declaraties mbt jaar T"]
[null,null,null," C        Consultatie en diagnostiek"]
[null,null,null," X        Maken en beoordelen foto's"]
[null,null,null," M        Preventieve mondzorg"]
[null,null,null," A+B    Verdoving"]
[null,null,null," V        Vullingen"]
[null,null,null," E        Wortelkanaalbehandelingen"]
[null,null,null," R        Kronen en bruggen"]
[null,null,null," G        Kaakgewrichtbehandelingen "]
[null,null,null," H        Chirurgische ingrepen"]
[null,null,null," P        Uitneembare prothetische voorzieningen"]
[null,null,null," T        Tandvleesbehandelingen "]
[null,null,null," J        Implantaten"]
[null,null,null," Z       Abbonementstarieven"]
[null,null,null," Bijzondere tandheelkundige zorg (art. 2.7, lid 1, sub a,b en c)"]
[null,null,null," Bijzondere tandheelkundige zorg (art. 2.7, lid 3), Orthodontie"]
[null,null,null," TOTAAL code 560.2",null,null,null,null,null,null,null,{"$f":"SUM(L111:L125)","v":0}]
[]
[null,null,null,"  CODE 560.2 - MONDZORG JEUGDIGE VERZEKERDEN - vervolg",null,null,null,null,null,null,null,"AANTAL tot en met 2e kwartaal 2019"]
[null,null,null,null,null,null,null,null,null,null,null,"Ontvangen en geaccepteerde declaraties mbt jaar T"]
[null,null,null," C     Consultatie en diagnostiek (C11, Periodieke controle)"]
[null,null,null," M     Preventieve mondzorg (M01, Preventieve voorlichting en/of instructie) "]
[null,null,null," M     Preventieve mondzorg (M02, Consult voor evaluatie van preventie)"]
[null,null,null,{"$f":"NOW()","v":"2019-07-11T16:15:17.690"},null,null,null,null,null,null,null,{"$f":"CONCATENATE(\"Specifieke informatie C, \",LOWER(A91))","v":"Specifieke informatie C, pagina 3"}]
[]
["Pagina 4",null,null,{"$f":"CONCATENATE(\"KWARTAALSTAAT ZVW \", jaar_id,\" \",kwartaal_id,\"E KWARTAAL\")","v":"KWARTAALSTAAT ZVW 2019 2E KWARTAAL"}]
[null,null,null,"SPECIFIEKE INFORMATIE C "]
[null,null,null,{"$f":"IF(naw_uzovi_zorgverzekeraar<>\"0000\",CONCATENATE(UPPER(naw_naam_zorgverzekeraar),\", \",UPPER(naw_plaats_zorgverzekeraar)),\"\")","v":""},null,null,null,null,null,null,null,{"$f":"CONCATENATE(\"UZOVI: \",naw_uzovi_zorgverzekeraar)","v":"UZOVI: 0000"}]
[null,null,null,"SPECIFICATIES VAN KOSTEN EN PRODUCTIE"]
[null,null,null,"RUBRIEK 04 MONDZORG - vervolg"]
[null,null,null,"  CODE 561 - GEBITSPROTHESEN",null,null,null,null,null,null,null,"Ontvangen en geaccepteerde declaraties tot en met 2e kwartaal 2019"]
[null,null,null,null,null,null,null,null,null,null,null,"Ontvangen en geaccepteerde declaraties mbt jaar T"]
[null,null,null," Volledige conventionele gebitsprothesen voor onder- en/of bovenkaak"]
[null,null,null," Rebasings en reparaties van de conventionele gebitsprothesen "]
[null,null,null," Volledige implantaat gedragen gebitsprothesen voor onder- en/of bovenkaak"]
[null,null,null," Rebasings en reparaties implantaat gedragen gebitsprothesen "]
[null,null,null," TOTAAL code 561",null,null,null,null,null,null,null,{"$f":"SUM(L142:L145)","v":0}]
[]
[null,null,null,"  CODE 561 - GEBITSPROTHESEN - vervolg",null,null,null,null,null,null,null,"AANTAL tot en met 2e kwartaal 2019"]
[null,null,null,null,null,null,null,null,null,null,null,"Ontvangen en geaccepteerde declaraties mbt jaar T"]
[null,null,null," Volledige conventionele \n gebitsprothesen \n ",null," onder en boven"]
[null,null,null,null,null," onder of boven (tellen per kaak) "]
[null,null,null," Volledige implantaat gedragen  \n gebitsprothesen \n ",null," onder en boven"]
[null,null,null,null,null," onder of boven (tellen per kaak) "]
[]
[null,null,null,"RUBRIEK 06 MEDISCH SPECIALISTISCHE ZORG"]
[null,null,null," CODE 610 - OVERIGE KOSTEN \n ZIEKENHUISZORG EN CURATIEVE ZORG",null,null,"Lasten 2019 t/m 2e kwartaal",null,"Lasten 2018 ",null,"Lasten 2017 en ouder"]
[null,null,null,null,null,null,"Lasten 2019 inclusief balanspost","Ontvangen en geaccepteerde declaraties t/m 2e kwartaal 2019","Lasten 2018 inclusief balanspost","Ontvangen en geaccepteerde declaraties m.b.t. 2018","Lasten 2017 en ouder inclusief balanspost ","Ontvangen en geaccepteerde declaraties m.b.t. 2017 en ouder"]
[null,null,null,null,null,null,null,null,"Ontvangen en geaccepteerde declaraties mbt jaar T","Ontvangen en geaccepteerde declaraties mbt jaar T","Ontvangen en geaccepteerde declaraties mbt jaar T","Ontvangen en geaccepteerde declaraties mbt jaar T"]
[null,null,null," Kosten van eerstelijnsdiagnostiek \n aangevraagd door eerstelijnszorg-\n aanbieders geleverd door \n huisartsenlaboratoria "]
[null,null,null," Trombosediensten "]
[null,null,null," SKION en NTS"]
[null,null,null," TOTAAL code 610",null,null,{"$f":"SUM(G159:G161)","v":0},{"$f":"SUM(H159:H161)","v":0},0,0,0,0]
[]
[null,null,null,"  CODE 611 - NAAR INSTELLING",null,null,"Lasten 2019 t/m 2e kwartaal",null,"Lasten 2018 ",null,"Lasten 2017 en ouder"]
[null,null,null,null,null,null,"Lasten 2019 inclusief balanspost","Ontvangen en geaccepteerde declaraties t/m 2e kwartaal 2019","Lasten 2018 inclusief balanspost","Ontvangen en geaccepteerde declaraties m.b.t. 2018","Lasten 2017 en ouder inclusief balanspost ","Ontvangen en geaccepteerde declaraties m.b.t. 2017 en ouder"]
[null,null,null,null,null,null,null,null,"Ontvangen en geaccepteerde declaraties mbt jaar T","Ontvangen en geaccepteerde declaraties mbt jaar T","Ontvangen en geaccepteerde declaraties mbt jaar T","Ontvangen en geaccepteerde declaraties mbt jaar T"]
[null,null,null," Overige zorgproducten"]
[null,null,null," Academische ziekenhuizen"]
[null,null,null," Algemene ziekenhuizen"]
[null,null,null," Zelfstandige behandelcentra"]
[null,null,null," Overige zorgaanbieders"]
[null,null,null," TOTAAL code 611",null,null,{"$f":"SUM(G168:G171)","v":0},{"$f":"SUM(H168:H171)","v":0},0,0,0,0]
[]
[]
[null,null,null,{"$f":"NOW()","v":"2019-07-11T16:15:17.690"},null,null,null,null,null,null,null,{"$f":"CONCATENATE(\"Specifieke informatie C, \",LOWER(A135))","v":"Specifieke informatie C, pagina 4"}]
[]
["Pagina 5",null,null,{"$f":"CONCATENATE(\"KWARTAALSTAAT ZVW \", jaar_id,\" \",kwartaal_id,\"E KWARTAAL\")","v":"KWARTAALSTAAT ZVW 2019 2E KWARTAAL"}]
[null,null,null,"SPECIFIEKE INFORMATIE C "]
[null,null,null,{"$f":"IF(naw_uzovi_zorgverzekeraar<>\"0000\",CONCATENATE(UPPER(naw_naam_zorgverzekeraar),\", \",UPPER(naw_plaats_zorgverzekeraar)),\"\")","v":""},null,null,null,null,null,null,null,{"$f":"CONCATENATE(\"UZOVI: \",naw_uzovi_zorgverzekeraar)","v":"UZOVI: 0000"}]
[null,null,null,"SPECIFICATIES VAN KOSTEN EN PRODUCTIE"]
[null,null,null,"RUBRIEK 06 MEDISCH SPECIALISTISCHE ZORG - vervolg"]
[null,null,null," CODE 612.1 - KOSTEN ADD-ONS DURE \n GENEESMIDDELEN NAAR INSTELLING",null,null,"Lasten 2019 t/m 2e kwartaal",null,"Lasten 2018 ",null,"Lasten 2017 en ouder"]
[null,null,null,null,null,null,"Lasten 2019 inclusief balanspost","Ontvangen en geaccepteerde declaraties t/m 2e kwartaal 2019","Lasten 2018 inclusief balanspost","Ontvangen en geaccepteerde declaraties m.b.t. 2018","Lasten 2017 en ouder inclusief balanspost ","Ontvangen en geaccepteerde declaraties m.b.t. 2017 en ouder"]
[null,null,null,null,null,null,null,null,"Ontvangen en geaccepteerde declaraties mbt jaar T","Ontvangen en geaccepteerde declaraties mbt jaar T","Ontvangen en geaccepteerde declaraties mbt jaar T","Ontvangen en geaccepteerde declaraties mbt jaar T"]
[null,null,null," Academ. ziekenhuizen"]
[null,null,null," Algemene ziekenhuizen"]
[null,null,null," Zelfst. behandelcentra"]
[null,null,null," Overige zorgaanbieders"]
[null,null,null," TOTAAL code 612.1",null,null,{"$f":"SUM(G185:G188)","v":0},{"$f":"SUM(H185:H188)","v":0},0,0,0,0]
[]
[null,null,null," CODE 612.2 - KOSTEN ADD-ONS IC  \n NAAR INSTELLING",null,null,"Lasten 2019 t/m 2e kwartaal",null,"Lasten 2018 ",null,"Lasten 2017 en ouder"]
[null,null,null,null,null,null,"Lasten 2019 inclusief balanspost","Ontvangen en geaccepteerde declaraties t/m 2e kwartaal 2019","Lasten 2018 inclusief balanspost","Ontvangen en geaccepteerde declaraties m.b.t. 2018","Lasten 2017 en ouder inclusief balanspost ","Ontvangen en geaccepteerde declaraties m.b.t. 2017 en ouder"]
[null,null,null,null,null,null,null,null,"Ontvangen en geaccepteerde declaraties mbt jaar T","Ontvangen en geaccepteerde declaraties mbt jaar T","Ontvangen en geaccepteerde declaraties mbt jaar T","Ontvangen en geaccepteerde declaraties mbt jaar T"]
[null,null,null," Academ. ziekenhuizen"]
[null,null,null," Algemene ziekenhuizen"]
[null,null,null," Zelfst. behandelcentra"]
[null,null,null," Overige zorgaanbieders"]
[null,null,null," TOTAAL code 612.2",null,null,{"$f":"SUM(G194:G197)","v":0},{"$f":"SUM(H194:H197)","v":0},0,0,0,0]
[]
[null,null,null,"  CODE 613.1 - INTEGRALE KOSTEN VAN \n  DBC-ZORGPRODUCTEN GEREGULEERDE \n  SEGMENT NAAR \n  INSTELLING",null,null,"Lasten 2019 t/m 2e kwartaal",null,"Lasten 2018 ",null,"Lasten 2017 en ouder"]
[null,null,null,null,null,null,"Lasten 2019 inclusief balanspost","Ontvangen en geaccepteerde declaraties t/m 2e kwartaal 2019","Lasten 2018 inclusief balanspost","Ontvangen en geaccepteerde declaraties m.b.t. 2018","Lasten 2017 en ouder inclusief balanspost ","Ontvangen en geaccepteerde declaraties m.b.t. 2017 en ouder"]
[null,null,null,null,null,"code",null,null,"Ontvangen en geaccepteerde declaraties mbt jaar T","Ontvangen en geaccepteerde declaraties mbt jaar T","Ontvangen en geaccepteerde declaraties mbt jaar T","Ontvangen en geaccepteerde declaraties mbt jaar T"]
[null,null,null," Academische ziekenhuizen"]
[null,null,null," Algemene ziekenhuizen"]
[null,null,null," Zelfstandige behandelcentra"]
[null,null,null," Overige zorgaanbieders"]
[null,null,null," TOTAAL code 613.1",null,null,{"$f":"SUM(G203:G206)","v":0},{"$f":"SUM(H203:H206)","v":0},0,0,0,0]
[]
[]
[]
[]
[]
[]
[]
[]
[]
[]
[]
[null,null,null,{"$f":"NOW()","v":"2019-07-11T16:15:17.690"},null,null,null,null,null,null,null,{"$f":"CONCATENATE(\"Specifieke informatie C, \",LOWER(A177))","v":"Specifieke informatie C, pagina 5"}]
[]
["Pagina 6",null,null,{"$f":"CONCATENATE(\"KWARTAALSTAAT ZVW \", jaar_id,\" \",kwartaal_id,\"E KWARTAAL\")","v":"KWARTAALSTAAT ZVW 2019 2E KWARTAAL"}]
[null,null,null,"SPECIFIEKE INFORMATIE C "]
[null,null,null,null,null,null,null,null,null,null,null,{"$f":"CONCATENATE(\"UZOVI: \",naw_uzovi_zorgverzekeraar)","v":"UZOVI: 0000"}]
[null,null,null,"SPECIFICATIES VAN KOSTEN EN PRODUCTIE"]
[null,null,null,"RUBRIEK 06 MEDISCH SPECIALISTISCHE ZORG - vervolg"]
[null,null,null,"  CODE 615.1 - INTEGRALE KOSTEN VAN\n  DBC-ZORGPRODUCTEN VRIJE SEGMENT\n  NAAR INSTELLING",null,null,"Lasten 2019 t/m 2e kwartaal",null,"Lasten 2018 ",null,"Lasten 2017 en ouder"]
[null,null,null,null,null,null,"Lasten 2019 inclusief balanspost","Ontvangen en geaccepteerde declaraties t/m 2e kwartaal 2019","Lasten 2018 inclusief balanspost","Ontvangen en geaccepteerde declaraties m.b.t. 2018","Lasten 2017 en ouder inclusief balanspost ","Ontvangen en geaccepteerde declaraties m.b.t. 2017 en ouder"]
[null,null,null,null,null,"code",null,null,"Ontvangen en geaccepteerde declaraties mbt jaar T","Ontvangen en geaccepteerde declaraties mbt jaar T","Ontvangen en geaccepteerde declaraties mbt jaar T","Ontvangen en geaccepteerde declaraties mbt jaar T"]
[null,null,null," Academische ziekenhuizen"]
[null,null,null," Algemene ziekenhuizen"]
[null,null,null," Zelfstandige behandelcentra"]
[null,null,null," Overige zorgaanbieders"]
[null,null,null," TOTAAL code 615.1",null,null,{"$f":"SUM(G229:G232)","v":0},{"$f":"SUM(H229:H232)","v":0},0,0,0,0]
[]
[null,null,null,"RUBRIEK 10 GENEESKUNDIGE GEESTELIJKE GEZONDHEIDSZORG"]
[null,null,null,"  CODE 662 - SPECIALISTISCHE GGZ ZONDER VERBLIJF",null,null,null,null,null,null,null,"Ontvangen en geaccepteerde declaraties tot en met 2e kwartaal 2019"]
[null,null,null,null,null,null,null,null,null,null,null,"Ontvangen en geaccepteerde declaraties mbt jaar T"]
[null,null,null," Instellingen "]
[null,null,null," Zelfstandig gevestigden"]
[null,null,null," TOTAAL code 662",null,null,null,null,null,null,null,{"$f":"SUM(L238:L239)","v":0}]
[]
[null,null,null,"  CODE 665 - GENERALISTISCHE BASIS GGZ",null,null,null,null,null,null,null,"Ontvangen en geaccepteerde declaraties tot en met 2e kwartaal 2019"]
[null,null,null,null,null,null,null,null,null,null,null,"Ontvangen en geaccepteerde declaraties mbt jaar T"]
[null,null,null," Instellingen "]
[null,null,null," Zelfstandig gevestigden"]
[null,null,null," TOTAAL code 665",null,null,null,null,null,null,null,{"$f":"SUM(L244:L245)","v":0}]
[]
[null,null,null,"  CODE 665 - GENERALISTISCHE BASIS GGZ",null,null,null,null,null,null,null,"Ontvangen en geaccepteerde declaraties tot en met 2e kwartaal 2019"]
[null,null,null,null,null,null,null,null,null,null,null,"Ontvangen en geaccepteerde declaraties mbt jaar T"]
[null,null,null," Basis GGZ - Kort"]
[null,null,null," Basis GGZ - Middel"]
[null,null,null," Basis GGZ - Intensief "]
[null,null,null," Basis GGZ - Chronisch"]
[null,null,null," Onvolledig behandeltraject"]
[null,null,null," TOTAAL code 665",null,null,null,null,null,null,null,{"$f":"SUM(L250:L254)","v":0}]
[]
[]
[]
[]
[]
[]
[null,null,null,{"$f":"NOW()","v":"2019-07-11T16:15:17.690"},null,null,null,null,null,null,{"$f":"CONCATENATE(\"Specifieke informatie C, \",LOWER(A221))","v":"Specifieke informatie C, pagina 6"}]
[]
["Pagina 7",null,null,{"$f":"CONCATENATE(\"KWARTAALSTAAT ZVW \", jaar_id,\" \",kwartaal_id,\"E KWARTAAL\")","v":"KWARTAALSTAAT ZVW 2019 2E KWARTAAL"}]
[null,null,null,"SPECIFIEKE INFORMATIE C "]
[null,null,null,{"$f":"IF(naw_uzovi_zorgverzekeraar<>\"0000\",CONCATENATE(UPPER(naw_naam_zorgverzekeraar),\", \",UPPER(naw_plaats_zorgverzekeraar)),\"\")","v":""},null,null,null,null,null,null,null,{"$f":"CONCATENATE(\"UZOVI: \",naw_uzovi_zorgverzekeraar)","v":"UZOVI: 0000"}]
[null,null,null,"SPECIFICATIES VAN KOSTEN EN PRODUCTIE"]
[null,null,null,"RUBRIEK 10 GENEESKUNDIGE GEESTELIJKE GEZONDHEIDSZORG - vervolg"]
[null,null,null,"  CODE 665 - GENERALISTISCHE BASIS GGZ",null,null,null,null,null,null,null,"AANTAL tot en met 2e kwartaal 2019"]
[]
[null,null,null," Basis GGZ - Kort"]
[null,null,null," Basis GGZ - Middel"]
[null,null,null," Basis GGZ - Intensief "]
[null,null,null," Basis GGZ - Chronisch"]
[null,null,null," Onvolledig behandeltraject"]
[]
[null,null,null,"RUBRIEK 13 DIVERSE OVERIGE KOSTEN"]
[null,null,null," CODE 700 - OVERIGE KOSTEN",null,null,null,null,null,null,null,"Ontvangen en geaccepteerde declaraties tot en met 2e kwartaal 2019"]
[null,null,null,null,null,null,null,null,null,null,null,"Ontvangen en geaccepteerde declaraties mbt jaar T"]
[null,null,null," Kosten i.v.m. beleidsregel innovatie t.b.v. nieuwe zorgprestaties "]
[null,null,null," Kosten Integrale geboortezorg "]
[null,null,null," Kosten Gecombineerde Leefstijl Interventie"]
[null,null,null," TOTAAL code 700",null,null,null,null,null,null,null,{"$f":"SUM(L280:L282)","v":0}]
[]
[null,null,null," CODE 701 - OVERIGE GENEESKUNDIGE ZORG",null,null,null,null,null,null,null,"Ontvangen en geaccepteerde declaraties tot en met 2e kwartaal 2019"]
[null,null,null,null,null,null,null,null,null,null,null,"Ontvangen en geaccepteerde declaraties mbt jaar T"]
[null,null,null," Geneeskundige individuele zorg bij tuberculose en infectieziekten door GGD'en"]
[null,null,null," Huidtherapie"]
[null,null,null," Orthoptie"]
[null,null,null," Optometrie"]
[null,null,null," Kosten voetzorg bij Diabetes Mellitus type 2"]
[null,null,null," Koemelkallergietest (niet horend bij Multidisciplinaire Zorg) "]
[null,null,null," Regiefunctie complexe wondzorg"]
[null,null,null," TOTAAL code 701",null,null,null,null,null,null,null,{"$f":"SUM(L287:L293)","v":0}]
[]
[null,null,null," CODE 702 - ZINTUIGLIJK GEHANDICAPTEN",null,null,null,null,null,null,null,"Ontvangen en geaccepteerde declaraties tot en met 2e kwartaal 2019"]
[null,null,null,null,null,null,null,null,null,null,null,"Ontvangen en geaccepteerde declaraties mbt jaar T"]
[null,null,null," Kosten van zorg ivm visuele beperking"]
[null,null,null," Kosten van zorg ivm auditieve beperking"]
[null,null,null," Kosten van zorg ivm taalontwikkelingsstoornis"]
[null,null,null," TOTAAL code 702",null,null,null,null,null,null,null,{"$f":"SUM(L298:L300)","v":0}]
[]
[]
[null,null,null,{"$f":"NOW()","v":"2019-07-11T16:15:17.690"},null,null,null,null,null,null,null,{"$f":"CONCATENATE(\"Specifieke informatie C, \",LOWER(A264))","v":"Specifieke informatie C, pagina 7"}]

{"sheet":"Contractinformatie","index":8,"n_rows":89,"n_cols":11,"rows_kept":89,"cut":false,"hidden":false,"merged":[[18,3,18,9],[36,3,36,9],[35,3,35,9],[56,3,56,9],[52,3,52,9],[53,3,53,9],[51,3,51,9],[50,3,50,9],[55,3,55,9],[54,3,54,9],[44,3,44,4],[42,3,42,9],[24,3,24,9],[34,3,34,9],[19,3,19,9],[20,3,20,9],[32,3,32,9],[23,3,23,9],[25,3,25,9],[33,3,33,9],[28,3,28,9],[31,3,31,9],[26,3,26,9],[27,3,27,9],[9,3,9,9],[11,3,11,9],[12,3,12,9],[17,3,17,9],[13,3,13,9],[10,3,10,10],[14,3,14,9],[15,3,15,10],[16,3,16,9],[88,3,88,4],[57,3,57,9],[58,3,58,9],[60,3,60,9],[61,3,61,9],[68,3,68,9],[65,3,65,9],[66,3,66,9],[67,3,67,9],[64,3,64,9],[71,3,71,9],[72,3,72,10],[73,3,73,9],[74,3,74,9],[75,3,75,9],[76,3,76,9],[37,3,37,9],[38,3,38,9],[41,3,41,9],[82,3,82,9],[77,3,77,10],[78,3,78,9],[79,3,79,9],[80,3,80,9],[81,3,81,9],[39,3,39,9]]}
[null,null,"INVULSPECIFICATIES SPECIFIEKE INFORMATIE C"]
[]
[]
[]
[]
["Pagina 1",null,null,{"$f":"CONCATENATE(\"KWARTAALSTAAT ZVW \", jaar_id,\" \",kwartaal_id,\"E KWARTAAL\")","v":"KWARTAALSTAAT ZVW 2019 2E KWARTAAL"}]
[null,null,null,"SPECIFIEKE INFORMATIE C - CONTRACTINFORMATIE"]
[null,null,null,{"$f":"IF(naw_uzovi_zorgverzekeraar<>\"0000\",CONCATENATE(UPPER(naw_naam_zorgverzekeraar),\", \",UPPER(naw_plaats_zorgverzekeraar)),\"\")","v":""},null,null,null,null,null,null,{"$f":"CONCATENATE(\"UZOVI: \",naw_uzovi_zorgverzekeraar)","v":"UZOVI: 0000"}]
[null,null,null," CONTRACTINFORMATIE HUISARTSENZORG EN MULTIDISCIPLINAIRE ZORG, rubriek 01"]
[null,null,null,null,null,null,null,null,null,null,"Lasten inclusief balanspost 2019"]
[null,null,null," Huisartsenzorg, codes 503, 504, 505, 506, 507, 515"]
[null,null,null," Gecontracteerde zorg"]
[null,null,null," Lopende onderhandelingen"]
[null,null,null," Niet gecontracteerde zorg"]
[null,null,null," Subtotaal huisartsenzorg",null,null,null,null,null,null,{"$f":"SUM(K12:K14)","v":0}]
[null,null,null," Multidisciplinaire zorg, codes 510 en 516"]
[null,null,null," Gecontracteerde zorg"]
[null,null,null," Lopende onderhandelingen"]
[null,null,null," Niet gecontracteerde zorg"]
[null,null,null," Subtotaal multidisciplinaire zorg",null,null,null,null,null,null,{"$f":"SUM(K17:K19)","v":0}]
[null,null,null," TOTAAL RUBRIEK 01",null,null,null,null,null,null,{"$f":"SUM(K15+K20)","v":0}]
[]
[null,null,null," CONTRACTINFORMATIE VERPLEGING EN VERZORGING, rubriek 03"]
[null,null,null,null,null,null,null,null,null,null,"Lasten inclusief balanspost 2019"]
[null,null,null," Gecontracteerde zorg"]
[null,null,null," Lopende onderhandelingen"]
[null,null,null," Niet gecontracteerde zorg"]
[null,null,null," PGB"]
[null,null,null," TOTAAL RUBRIEK 03 ",null,null,null,null,null,null,{"$f":"SUM(K25:K28)","v":0}]
[]
[null,null,null," CONTRACTINFORMATIE MEDISCH SPECIALISTISCHE ZORG, rubriek 06"]
[null,null,null,null,null,null,null,null,null,null,"Lasten inclusief balanspost 2019"]
[null,null,null," Gecontracteerde zorg: aanneemsom"]
[null,null,null," Gecontracteerde zorg: plafond"]
[null,null,null," Gecontracteerde zorg: nacalculatie bij aanneemsommen en plafondcontracten"]
[null,null,null," Gecontracteerde zorg: open einde contract"]
[null,null,null," Subtotaal gecontracteerde zorg",null,null,null,null,null,null,{"$f":"SUM(K33:K36)","v":0}]
[null,null,null," Lopende onderhandelingen"]
[null,null,null," Niet gecontracteerde zorg"]
[null,null,null," TOTAAL RUBRIEK 06",null,null,null,null,null,null,{"$f":"SUM(K37:K39)","v":0}]
[]
[null,null,null,null,null,null,null,null,null,null,2019]
[null,null,null," Totaal afgesproken maximumomzet plafondcontracten"]
[]
[null,null,null,{"$f":"NOW()","v":"2019-07-11T16:15:17.690"},null,null,null,null,null,null,{"$f":"CONCATENATE(\"Specifieke informatie C - Contractinformatie, \",LOWER(A6))","v":"Specifieke informatie C - Contractinformatie, pagina 1"}]
[]
["Pagina 2",null,null,{"$f":"CONCATENATE(\"KWARTAALSTAAT ZVW \", jaar_id,\" \",kwartaal_id,\"E KWARTAAL\")","v":"KWARTAALSTAAT ZVW 2019 2E KWARTAAL"}]
[null,null,null,"SPECIFIEKE INFORMATIE C - CONTRACTINFORMATIE"]
[null,null,null,{"$f":"IF(naw_uzovi_zorgverzekeraar<>\"0000\",CONCATENATE(UPPER(naw_naam_zorgverzekeraar),\", \",UPPER(naw_plaats_zorgverzekeraar)),\"\")","v":""},null,null,null,null,null,null,{"$f":"CONCATENATE(\"UZOVI: \",naw_uzovi_zorgverzekeraar)","v":"UZOVI: 0000"}]
[null,null,null," CONTRACTINFORMATIE GENEESKUNDIGE GEESTELIJKE GEZONDHEIDSZORG, rubriek 10"]
[null,null,null,null,null,null,null,null,null,null,"Lasten inclusief balanspost 2019"]
[null,null,null," Gecontracteerde zorg: aanneemsom"]
[null,null,null," Gecontracteerde zorg: plafond"]
[null,null,null," Gecontracteerde zorg: nacalculatie bij aanneemsommen en plafondcontracten"]
[null,null,null," Gecontracteerde zorg: open einde contract"]
[null,null,null," Subtotaal gecontracteerde zorg",null,null,null,null,null,null,{"$f":"SUM(K52:K55)","v":0}]
[null,null,null," Lopende onderhandelingen"]
[null,null,null," Niet gecontracteerde zorg"]
[null,null,null," TOTAAL RUBRIEK 10",null,null,null,null,null,null,{"$f":"SUM(K56:K58)","v":0}]
[]
[null,null,null,null,null,null,null,null,null,null,2019]
[null,null,null," Totaal afgesproken maximumomzet plafondcontracten"]
[]
[null,null,null," CONTRACTINFORMATIE ZINTUIGLIJK GEHANDICAPTEN, code 702 "]
[null,null,null,null,null,null,null,null,null,null,"Lasten inclusief balanspost 2019"]
[null,null,null," Gecontracteerde zorg"]
[null,null,null," Lopende onderhandelingen"]
[null,null,null," Niet gecontracteerde zorg"]
[null,null,null," TOTAAL CODE 702",null,null,null,null,null,null,{"$f":"SUM(K66:K68)","v":0}]
[]
[null,null,null," CONTRACTINFORMATIE GERIATRISCHE REVALIDATIEZORG & EERSTELIJNSVERBLIJF, rubriek 11"]
[null,null,null,null,null,null,null,null,null,null,"Lasten inclusief balanspost 2019"]
[null,null,null," Geriatrische Revalidatie zorg, code 670"]
[null,null,null," Gecontracteerde zorg"]
[null,null,null," Lopende onderhandelingen"]
[null,null,null," Niet gecontracteerde zorg"]
[null,null,null," Subtotaal Geriatrische Revalidatie zorg",null,null,null,null,null,null,{"$f":"SUM(K74:K76)","v":0}]
[null,null,null," Eerstelijnsverblijf, code 671"]
[null,null,null," Gecontracteerde zorg"]
[null,null,null," Lopende onderhandelingen"]
[null,null,null," Niet gecontracteerde zorg"]
[null,null,null," Subtotaal Eerstelijnsverblijf ",null,null,null,null,null,null,{"$f":"SUM(K79:K81)","v":0}]
[null,null,null," TOTAAL RUBRIEK 11",null,null,null,null,null,null,{"$f":"SUM(K77+K82)","v":0}]
[]
[]
[]
[]
[]
[null,null,null,{"$f":"NOW()","v":"2019-07-11T16:15:17.690"},null,null,null,null,null,null,{"$f":"CONCATENATE(\"Specifieke informatie C - Contractinformatie, \",LOWER(A47))","v":"Specifieke informatie C - Contractinformatie, pagina 2"}]

{"sheet":"Wanbetalers","index":9,"n_rows":44,"n_cols":11,"rows_kept":44,"cut":false,"hidden":false,"merged":[[26,3,26,7],[43,3,43,4],[27,3,27,7],[17,3,17,7],[19,3,19,7],[20,3,20,7],[21,3,21,7],[22,3,22,7],[24,3,24,7],[25,3,25,7],[15,3,15,7],[16,3,16,7],[10,3,10,7],[11,3,11,7],[12,3,12,7],[13,3,13,7]]}
[null,null,"INVULSPECIFICATIES SPECIFIEKE INFORMATIE C"]
[]
[]
[]
[]
["Pagina 1",null,null,{"$f":"CONCATENATE(\"KWARTAALSTAAT ZVW \", jaar_id,\" \",kwartaal_id,\"E KWARTAAL\")","v":"KWARTAALSTAAT ZVW 2019 2E KWARTAAL"}]
[null,null,null,"SPECIFIEKE INFORMATIE C - WANBETALERS"]
[null,null,null,{"$f":"IF(naw_uzovi_zorgverzekeraar<>\"0000\",CONCATENATE(UPPER(naw_naam_zorgverzekeraar),\", \",UPPER(naw_plaats_zorgverzekeraar)),\"\")","v":""},null,null,null,null,null,null,{"$f":"CONCATENATE(\"UZOVI: \",naw_uzovi_zorgverzekeraar)","v":"UZOVI: 0000"}]
[]
[null,null,null,"SPECIFICATIES VAN WANBETALERS"]
[null,null,null,null,null,null,null,null,"AANTAL \napril","AANTAL \nmei","AANTAL \njuni"]
[null,null,null," Verzekeringnemers die een achterstand in de premiebetaling hebben van \n twee of meer, maar minder dan vier volle maandpremies."]
[null,null,null," Verzekeringnemers die een achterstand in de premiebetaling hebben van \n vier of meer, maar minder dan zes volle maandpremies."]
[null,null,null," Verzekeringnemers die een achterstand in de premiebetaling hebben van \n zes of meer volle maandpremies."]
[]
[null,null,null,null,null,null,null,null,"AANTAL \napril","AANTAL \nmei","AANTAL \njuni"]
[null,null,null," Verstuurde tweedemaandsbrieven"]
[null,null,null," Verstuurde vierdemaandsbrieven"]
[]
[null,null,null,null,null,null,null,null,"AANTAL \napril","AANTAL \nmei","AANTAL \njuni"]
[null,null,null," Debiteuren met een interne betalingsregeling, al dan niet uitsluitend \n voor premiebetaling."]
[null,null,null," Debiteuren met een externe betalingsregeling, al dan niet uitsluitend \n voor premiebetaling."]
[null,null,null," Actieve stabilisatieovereenkomsten voor premiebetaling."]
[]
[null,null,null,null,null,null,null,null,"AANTAL \napril","AANTAL \nmei","AANTAL \njuni"]
[null,null,null," Wanbetalers bij CAK aangemeld met een betalingsachterstand van minder \n dan € 250."]
[null,null,null," Wanbetalers bij CAK aangemeld met een betalingsachterstand van \n meer dan € 250, maar minder dan € 750."]
[null,null,null," Wanbetalers bij CAK aangemeld met een betalingsachterstand van meer \n dan € 750."]
[]
[]
[]
[]
[]
[]
[]
[]
[]
[]
[]
[]
[]
[]
[]
[null,null,null,{"$f":"NOW()","v":"2019-07-11T16:15:17.690"},null,null,null,null,null,null,{"$f":"CONCATENATE(\"Specifieke informatie C - Wanbetalers, \",LOWER(A6))","v":"Specifieke informatie C - Wanbetalers, pagina 1"}]

{"sheet":"Controleoverzicht","index":10,"n_rows":182,"n_cols":12,"rows_kept":182,"cut":false,"hidden":false,"merged":[[44,3,44,8],[46,3,46,8],[47,3,47,8],[172,3,172,8],[165,3,166,8],[165,9,166,9],[165,10,166,10],[75,3,75,8],[78,10,79,10],[78,3,79,8],[124,3,124,8],[123,3,123,8],[78,9,79,9],[80,3,80,8],[81,3,81,8],[82,3,82,8],[83,3,83,8],[95,3,95,8],[84,3,84,8],[85,3,85,8],[94,3,94,8],[87,3,87,8],[151,3,151,8],[57,10,58,10],[165,11,166,11],[167,3,167,8],[168,3,168,8],[169,3,169,8],[170,3,170,8],[171,3,171,8],[131,3,131,8],[125,3,125,8],[128,3,129,8],[126,3,126,8],[162,3,162,11],[153,11,154,11],[153,10,154,10],[158,3,158,8],[153,9,154,9],[161,3,161,10],[153,3,154,8],[160,3,160,10],[148,3,148,8],[150,3,150,8],[149,3,149,8],[157,3,157,8],[156,3,156,8],[155,3,155,8],[29,3,29,8],[30,3,30,8],[28,3,28,8],[24,3,24,8],[26,3,26,8],[23,3,23,8],[25,3,25,8],[65,3,65,8],[57,9,58,9],[64,3,64,8],[63,3,63,8],[40,3,40,8],[41,3,41,8],[48,3,48,8],[42,3,42,8],[43,3,43,8],[39,3,39,8],[45,3,45,8],[37,3,37,8],[31,3,31,8],[33,3,33,8],[38,3,38,8],[60,3,60,8],[36,3,36,8],[146,11,147,11],[146,10,147,10],[146,9,147,9],[146,3,147,8],[105,3,105,8],[103,9,104,9],[128,11,129,11],[128,9,129,9],[128,10,129,10],[130,3,130,8],[133,3,133,8],[132,3,132,8],[121,11,122,11],[118,3,118,8],[103,3,104,8],[107,3,107,8],[112,11,113,11],[112,10,113,10],[112,3,113,8],[108,3,108,8],[103,11,104,11],[115,3,115,8],[116,3,116,8],[114,3,114,8],[78,11,79,11],[90,3,90,8],[91,3,91,8],[92,3,92,8],[93,3,93,8],[73,3,73,8],[69,3,69,8],[67,3,67,8],[68,3,68,8],[74,3,74,8],[70,3,70,8],[72,3,72,8],[88,3,88,8],[89,3,89,8],[86,3,86,8],[71,3,71,8],[49,3,49,8],[61,3,61,8],[121,10,122,10],[117,3,117,8],[121,9,122,9],[112,9,113,9],[121,3,122,8],[110,3,110,8],[109,3,109,8],[62,3,62,8],[66,3,66,8],[119,3,119,8],[106,3,106,8],[103,10,104,10],[57,3,58,8],[34,3,34,8],[35,3,35,8],[32,3,32,8],[59,3,59,8],[9,10,10,10],[9,11,10,11],[19,11,20,11],[19,9,20,9],[19,10,20,10],[21,3,21,8],[19,3,20,8],[27,3,27,8],[22,3,22,8],[9,9,10,9],[9,3,10,8],[11,3,11,8],[15,3,16,8],[12,3,12,8],[13,3,13,8],[15,11,16,11],[15,9,16,9],[15,10,16,10],[17,3,17,8],[57,11,58,11]]}
[null,null,"CONTROLEOVERZICHT"]
[]
[]
[]
[]
["Pagina 1",null,null,{"$f":"CONCATENATE(\"KWARTAALSTAAT ZVW \", jaar_id,\" \",kwartaal_id,\"E KWARTAAL\")","v":"KWARTAALSTAAT ZVW 2019 2E KWARTAAL"}]
[null,null,null,"CONTROLEOVERZICHT"]
[null,null,null,{"$f":"IF(naw_uzovi_zorgverzekeraar<>\"0000\",CONCATENATE(UPPER(naw_naam_zorgverzekeraar),\", \",UPPER(naw_plaats_zorgverzekeraar)),\"\")","v":""},null,null,null,null,null,null,null,{"$f":"CONCATENATE(\"UZOVI: \",naw_uzovi_zorgverzekeraar)","v":"UZOVI: 0000"}]
[null,null,null,"SPECIFIEKE INFORMATIE A"]
[null,null,null," VERZEKERDENSTANDEN",null,null,null,null,null,"MEI","JUNI","JULI"]
[]
[null,null,null," Verzekerdenstand naar risicoklasse",null,null,null,null,null,{"$f":"'Specifieke informatie A'!L79","v":0},{"$f":"'Specifieke informatie A'!L124","v":0},{"$f":"'Specifieke informatie A'!L170","v":0}]
[null,null,null," Verzekerdenstand naar nominale premie",null,null,null,null,null,{"$f":"'Specifieke informatie A'!L86","v":0},{"$f":"'Specifieke informatie A'!L131","v":0},{"$f":"'Specifieke informatie A'!L177","v":0}]
[null,null,null," Verschil",null,null,null,null,null,{"$f":"IF(J12<>J13,J12-J13,\"\")","v":""},{"$f":"IF(K12<>K13,K12-K13,\"\")","v":""},{"$f":"IF(L12<>L13,L12-L13,\"\")","v":""}]
[]
[null,null,null," KOSTENSPECIFICATIES",null,null,null,null,null,"VOLGENS\nKOSTENVER- \nZAMELSTAAT","VOLGENS\nDETAIL- \nSPECIFICATIE ","VERSCHIL"]
[]
[null,null,null," Totaal kosten t.l.v. deelbijdragen (totaal lasten t/m rubriek 16)\n - inclusief balanspost",null,null,null,null,null,{"$f":"Kostenverzamelstaat!I110","v":0},{"$f":"'Specifieke informatie A'!L17","v":0},{"$f":"IF(J18<>K18,J18-K18,\"\")","v":""}]
[]
[null,null,null," KOSTENVERZAMELSTAAT",null,null,null,null,null,"Kosten balanspost 2017","Kosten balanspost 2018","Kosten balanspost 2019"]
[]
[null,null,null," 503 Bijzondere betalingen",null,null,null,null,null,{"$f":"Kostenverzamelstaat!M16-Kostenverzamelstaat!N16","v":0},{"$f":"Kostenverzamelstaat!K16-Kostenverzamelstaat!L16","v":0},{"$f":"Kostenverzamelstaat!I16-Kostenverzamelstaat!J16","v":0}]
[null,null,null," 504 Avond-, nacht- en weekenddiensten",null,null,null,null,null,{"$f":"Kostenverzamelstaat!M17-Kostenverzamelstaat!N17","v":0},{"$f":"Kostenverzamelstaat!K17-Kostenverzamelstaat!L17","v":0},{"$f":"Kostenverzamelstaat!I17-Kostenverzamelstaat!J17","v":0}]
[null,null,null," 505 Inschrijftarieven",null,null,null,null,null,{"$f":"Kostenverzamelstaat!M18-Kostenverzamelstaat!N18","v":0},{"$f":"Kostenverzamelstaat!K18-Kostenverzamelstaat!L18","v":0},{"$f":"Kostenverzamelstaat!I18-Kostenverzamelstaat!J18","v":0}]
[null,null,null," 506 Consulttarieven",null,null,null,null,null,{"$f":"Kostenverzamelstaat!M19-Kostenverzamelstaat!N19","v":0},{"$f":"Kostenverzamelstaat!K19-Kostenverzamelstaat!L19","v":0},{"$f":"Kostenverzamelstaat!I19-Kostenverzamelstaat!J19","v":0}]
[null,null,null," 507 Overige tarieven",null,null,null,null,null,{"$f":"Kostenverzamelstaat!M20-Kostenverzamelstaat!N20","v":0},{"$f":"Kostenverzamelstaat!K20-Kostenverzamelstaat!L20","v":0},{"$f":"Kostenverzamelstaat!I20-Kostenverzamelstaat!J20","v":0}]
[null,null,null," 510 Multidisciplinaire zorg",null,null,null,null,null,{"$f":"Kostenverzamelstaat!M21-Kostenverzamelstaat!N21","v":0},{"$f":"Kostenverzamelstaat!K21-Kostenverzamelstaat!L21","v":0},{"$f":"Kostenverzamelstaat!I21-Kostenverzamelstaat!J21","v":0}]
[null,null,null," 515 Resultaatbeloning en zorgvernieuwing huisartsen",null,null,null,null,null,{"$f":"Kostenverzamelstaat!M22-Kostenverzamelstaat!N22","v":0},{"$f":"Kostenverzamelstaat!K22-Kostenverzamelstaat!L22","v":0},{"$f":"Kostenverzamelstaat!I22-Kostenverzamelstaat!J22","v":0}]
[null,null,null," 516 Resultaatbeloning en zorgvernieuwing MDZ",null,null,null,null,null,{"$f":"Kostenverzamelstaat!M23-Kostenverzamelstaat!N23","v":0},{"$f":"Kostenverzamelstaat!K23-Kostenverzamelstaat!L23","v":0},{"$f":"Kostenverzamelstaat!I23-Kostenverzamelstaat!J23","v":0}]
[null,null,null," 520 Farmaceutische zorg",null,null,null,null,null,{"$f":"Kostenverzamelstaat!M26-Kostenverzamelstaat!N26","v":0},{"$f":"Kostenverzamelstaat!K26-Kostenverzamelstaat!L26","v":0},{"$f":"Kostenverzamelstaat!I26-Kostenverzamelstaat!J26","v":0}]
[null,null,null," 530 Kosten van verpleging en verzorging",null,null,null,null,null,{"$f":"Kostenverzamelstaat!M28-Kostenverzamelstaat!N28","v":0},{"$f":"Kostenverzamelstaat!K28-Kostenverzamelstaat!L28","v":0},{"$f":"Kostenverzamelstaat!I28-Kostenverzamelstaat!J28","v":0}]
[null,null,null," 545 Kosten specialisten mondziekten en kaakchirurgie",null,null,null,null,null,{"$f":"Kostenverzamelstaat!M52-Kostenverzamelstaat!N52","v":0},{"$f":"Kostenverzamelstaat!K52-Kostenverzamelstaat!L52","v":0},{"$f":"Kostenverzamelstaat!I52-Kostenverzamelstaat!J52","v":0}]
[null,null,null," 560.1 Kosten mondzorg volwassen verzekerden",null,null,null,null,null,{"$f":"Kostenverzamelstaat!M30-Kostenverzamelstaat!N30","v":0},{"$f":"Kostenverzamelstaat!K30-Kostenverzamelstaat!L30","v":0},{"$f":"Kostenverzamelstaat!I30-Kostenverzamelstaat!J30","v":0}]
[null,null,null," 560.2 Kosten mondzorg jeugdige verzekerden",null,null,null,null,null,{"$f":"Kostenverzamelstaat!M31-Kostenverzamelstaat!N31","v":0},{"$f":"Kostenverzamelstaat!K31-Kostenverzamelstaat!L31","v":0},{"$f":"Kostenverzamelstaat!I31-Kostenverzamelstaat!J31","v":0}]
[null,null,null," 561 Kosten gebitsprothesen",null,null,null,null,null,{"$f":"Kostenverzamelstaat!M32-Kostenverzamelstaat!N32","v":0},{"$f":"Kostenverzamelstaat!K32-Kostenverzamelstaat!L32","v":0},{"$f":"Kostenverzamelstaat!I32-Kostenverzamelstaat!J32","v":0}]
[null,null,null," 580 Kosten verloskundige zorg door verloskundigen",null,null,null,null,null,{"$f":"Kostenverzamelstaat!M35-Kostenverzamelstaat!N35","v":0},{"$f":"Kostenverzamelstaat!K35-Kostenverzamelstaat!L35","v":0},{"$f":"Kostenverzamelstaat!I35-Kostenverzamelstaat!J35","v":0}]
[null,null,null," 581 Kosten verloskundige zorg door huisartsen",null,null,null,null,null,{"$f":"Kostenverzamelstaat!M36-Kostenverzamelstaat!N36","v":0},{"$f":"Kostenverzamelstaat!K36-Kostenverzamelstaat!L36","v":0},{"$f":"Kostenverzamelstaat!I36-Kostenverzamelstaat!J36","v":0}]
[null,null,null," 610 Overige kosten ziekenhuiszorg en curatieve zorg",null,null,null,null,null,{"$f":"Kostenverzamelstaat!M53-Kostenverzamelstaat!N53","v":0},{"$f":"Kostenverzamelstaat!K53-Kostenverzamelstaat!L53","v":0},{"$f":"Kostenverzamelstaat!I53-Kostenverzamelstaat!J53","v":0}]
[null,null,null," 611 Overige zorgproducten",null,null,null,null,null,{"$f":"Kostenverzamelstaat!M54-Kostenverzamelstaat!N54","v":0},{"$f":"Kostenverzamelstaat!K54-Kostenverzamelstaat!L54","v":0},{"$f":"Kostenverzamelstaat!I54-Kostenverzamelstaat!J54","v":0}]
[null,null,null," 612 Kosten add-ons ",null,null,null,null,null,{"$f":"Kostenverzamelstaat!M55-Kostenverzamelstaat!N55","v":0},{"$f":"Kostenverzamelstaat!K55-Kostenverzamelstaat!L55","v":0},{"$f":"Kostenverzamelstaat!I55-Kostenverzamelstaat!J55","v":0}]
[null,null,null," 612.1 Kosten add-ons - Dure geneesmiddelen",null,null,null,null,null,{"$f":"Kostenverzamelstaat!M56-Kostenverzamelstaat!N56","v":0},{"$f":"Kostenverzamelstaat!K56-Kostenverzamelstaat!L56","v":0},{"$f":"Kostenverzamelstaat!I56-Kostenverzamelstaat!J56","v":0}]
[null,null,null," 612.2 Kosten add-ons - IC",null,null,null,null,null,{"$f":"Kostenverzamelstaat!M57-Kostenverzamelstaat!N57","v":0},{"$f":"Kostenverzamelstaat!K57-Kostenverzamelstaat!L57","v":0},{"$f":"Kostenverzamelstaat!I57-Kostenverzamelstaat!J57","v":0}]
[null,null,null," 613.1 Integrale kosten van DBC-zorgproduct gereguleerde segment ",null,null,null,null,null,{"$f":"Kostenverzamelstaat!M58-Kostenverzamelstaat!N58","v":0},{"$f":"Kostenverzamelstaat!K58-Kostenverzamelstaat!L58","v":0},{"$f":"Kostenverzamelstaat!I58-Kostenverzamelstaat!J58","v":0}]
[null,null,null," 615.1 Integrale kosten van DBC-zorgproduct vrije segment",null,null,null,null,null,{"$f":"Kostenverzamelstaat!M59-Kostenverzamelstaat!N59","v":0},{"$f":"Kostenverzamelstaat!K59-Kostenverzamelstaat!L59","v":0},{"$f":"Kostenverzamelstaat!I59-Kostenverzamelstaat!J59","v":0}]
[null,null,null," 619 Integrale kosten extramuraal werkende specialisten",null,null,null,null,null,{"$f":"Kostenverzamelstaat!M60-Kostenverzamelstaat!N60","v":0},{"$f":"Kostenverzamelstaat!K60-Kostenverzamelstaat!L60","v":0},{"$f":"Kostenverzamelstaat!I60-Kostenverzamelstaat!J60","v":0}]
[null,null,null," 620 Kosten fysiotherapie",null,null,null,null,null,{"$f":"Kostenverzamelstaat!M63-Kostenverzamelstaat!N63","v":0},{"$f":"Kostenverzamelstaat!K63-Kostenverzamelstaat!L63","v":0},{"$f":"Kostenverzamelstaat!I63-Kostenverzamelstaat!J63","v":0}]
[null,null,null," 621 Kosten oefentherapie Mensendieck/Cesar",null,null,null,null,null,{"$f":"Kostenverzamelstaat!M64-Kostenverzamelstaat!N64","v":0},{"$f":"Kostenverzamelstaat!K64-Kostenverzamelstaat!L64","v":0},{"$f":"Kostenverzamelstaat!I64-Kostenverzamelstaat!J64","v":0}]
[null,null,null," 623 Kosten logopedie",null,null,null,null,null,{"$f":"Kostenverzamelstaat!M65-Kostenverzamelstaat!N65","v":0},{"$f":"Kostenverzamelstaat!K65-Kostenverzamelstaat!L65","v":0},{"$f":"Kostenverzamelstaat!I65-Kostenverzamelstaat!J65","v":0}]
[null,null,null," 624 Kosten ergotherapie",null,null,null,null,null,{"$f":"Kostenverzamelstaat!M66-Kostenverzamelstaat!N66","v":0},{"$f":"Kostenverzamelstaat!K66-Kostenverzamelstaat!L66","v":0},{"$f":"Kostenverzamelstaat!I66-Kostenverzamelstaat!J66","v":0}]
[null,null,null," 625 Kosten dieetadvisering ",null,null,null,null,null,{"$f":"Kostenverzamelstaat!M67-Kostenverzamelstaat!N67","v":0},{"$f":"Kostenverzamelstaat!K67-Kostenverzamelstaat!L67","v":0},{"$f":"Kostenverzamelstaat!I67-Kostenverzamelstaat!J67","v":0}]
[]
[null,null,null,{"$f":"NOW()","v":"2019-07-11T16:15:17.690"},null,null,null,null,null,null,null,{"$f":"CONCATENATE(\"Controleoverzicht \",LOWER(A6))","v":"Controleoverzicht pagina 1"}]
[]
["Pagina 2",null,null,{"$f":"CONCATENATE(\"KWARTAALSTAAT ZVW \", jaar_id,\" \",kwartaal_id,\"E KWARTAAL\")","v":"KWARTAALSTAAT ZVW 2019 2E KWARTAAL"}]
[null,null,null,"CONTROLEOVERZICHT"]
[null,null,null,{"$f":"IF(naw_uzovi_zorgverzekeraar<>\"0000\",CONCATENATE(UPPER(naw_naam_zorgverzekeraar),\", \",UPPER(naw_plaats_zorgverzekeraar)),\"\")","v":""},null,null,null,null,null,null,null,{"$f":"CONCATENATE(\"UZOVI: \",naw_uzovi_zorgverzekeraar)","v":"UZOVI: 0000"}]
[null,null,null,"SPECIFIEKE INFORMATIE A - vervolg"]
[null,null,null," KOSTENVERZAMELSTAAT",null,null,null,null,null,"Kosten balanspost 2017","Kosten balanspost 2018","Kosten balanspost 2019"]
[]
[null,null,null," 640 Hulpmiddelenzorg",null,null,null,null,null,{"$f":"Kostenverzamelstaat!M70-Kostenverzamelstaat!N70","v":0},{"$f":"Kostenverzamelstaat!K70-Kostenverzamelstaat!L70","v":0},{"$f":"Kostenverzamelstaat!I70-Kostenverzamelstaat!J70","v":0}]
[null,null,null," 650 Kosten vervoer per ambulance/helikopter",null,null,null,null,null,{"$f":"Kostenverzamelstaat!M72-Kostenverzamelstaat!N72","v":0},{"$f":"Kostenverzamelstaat!K72-Kostenverzamelstaat!L72","v":0},{"$f":"Kostenverzamelstaat!I72-Kostenverzamelstaat!J72","v":0}]
[null,null,null," 650.1 Opbrengstenverrekeningen regionale ambulance-\n voorzieningen",null,null,null,null,null,{"$f":"Kostenverzamelstaat!M73-Kostenverzamelstaat!N73","v":0},{"$f":"Kostenverzamelstaat!K73-Kostenverzamelstaat!L73","v":0},{"$f":"Kostenverzamelstaat!I73-Kostenverzamelstaat!J73","v":0}]
[null,null,null," 651 Kosten vervoer per openbaar vervoer, taxi en eigen auto",null,null,null,null,null,{"$f":"Kostenverzamelstaat!M74-Kostenverzamelstaat!N74","v":0},{"$f":"Kostenverzamelstaat!K74-Kostenverzamelstaat!L74","v":0},{"$f":"Kostenverzamelstaat!I74-Kostenverzamelstaat!J74","v":0}]
[null,null,null," 661 Kosten specialistische GGZ met verblijf",null,null,null,null,null,{"$f":"Kostenverzamelstaat!M88-Kostenverzamelstaat!N88","v":0},{"$f":"Kostenverzamelstaat!K88-Kostenverzamelstaat!L88","v":0},{"$f":"Kostenverzamelstaat!I88-Kostenverzamelstaat!J88","v":0}]
[null,null,null," 661.1 Kosten LGGZ (langdurige GGZ, jaar 2 en 3)",null,null,null,null,null,{"$f":"Kostenverzamelstaat!M89-Kostenverzamelstaat!N89","v":0},{"$f":"Kostenverzamelstaat!K89-Kostenverzamelstaat!L89","v":0},{"$f":"Kostenverzamelstaat!I89-Kostenverzamelstaat!J89","v":0}]
[null,null,null," 662 Kosten specialistische GGZ zonder verblijf",null,null,null,null,null,{"$f":"Kostenverzamelstaat!M90-Kostenverzamelstaat!N90","v":0},{"$f":"Kostenverzamelstaat!K90-Kostenverzamelstaat!L90","v":0},{"$f":"Kostenverzamelstaat!I90-Kostenverzamelstaat!J90","v":0}]
[null,null,null," 665 Generalistische basis GGZ",null,null,null,null,null,{"$f":"Kostenverzamelstaat!M91-Kostenverzamelstaat!N91","v":0},{"$f":"Kostenverzamelstaat!K91-Kostenverzamelstaat!L91","v":0},{"$f":"Kostenverzamelstaat!I91-Kostenverzamelstaat!J91","v":0}]
[null,null,null," 670 Geriatrische revalidatiezorg",null,null,null,null,null,{"$f":"Kostenverzamelstaat!M94-Kostenverzamelstaat!N94","v":0},{"$f":"Kostenverzamelstaat!K94-Kostenverzamelstaat!L94","v":0},{"$f":"Kostenverzamelstaat!I94-Kostenverzamelstaat!J94","v":0}]
[null,null,null," 671 Eerstelijnsverblijf",null,null,null,null,null,{"$f":"Kostenverzamelstaat!M95-Kostenverzamelstaat!N95","v":0},{"$f":"Kostenverzamelstaat!K95-Kostenverzamelstaat!L95","v":0},{"$f":"Kostenverzamelstaat!I95-Kostenverzamelstaat!J95","v":0}]
[null,null,null," 680 Kraamzorg",null,null,null,null,null,{"$f":"Kostenverzamelstaat!M98-Kostenverzamelstaat!N98","v":0},{"$f":"Kostenverzamelstaat!K98-Kostenverzamelstaat!L98","v":0},{"$f":"Kostenverzamelstaat!I98-Kostenverzamelstaat!J98","v":0}]
[null,null,null," 700 Overige kosten",null,null,null,null,null,{"$f":"Kostenverzamelstaat!M100-Kostenverzamelstaat!N100","v":0},{"$f":"Kostenverzamelstaat!K100-Kostenverzamelstaat!L100","v":0},{"$f":"Kostenverzamelstaat!I100-Kostenverzamelstaat!J100","v":0}]
[null,null,null," 701 Overige geneeskundige zorg",null,null,null,null,null,{"$f":"Kostenverzamelstaat!M101-Kostenverzamelstaat!N101","v":0},{"$f":"Kostenverzamelstaat!K101-Kostenverzamelstaat!L101","v":0},{"$f":"Kostenverzamelstaat!I101-Kostenverzamelstaat!J101","v":0}]
[null,null,null," 702 Kosten van zorg zintuiglijk gehandicapten ",null,null,null,null,null,{"$f":"Kostenverzamelstaat!M102-Kostenverzamelstaat!N102","v":0},{"$f":"Kostenverzamelstaat!K102-Kostenverzamelstaat!L102","v":0},{"$f":"Kostenverzamelstaat!I102-Kostenverzamelstaat!J102","v":0}]
[null,null,null," 720 Grensoverschrijdende zorg",null,null,null,null,null,{"$f":"Kostenverzamelstaat!M105-Kostenverzamelstaat!N105","v":0},{"$f":"Kostenverzamelstaat!K105-Kostenverzamelstaat!L105","v":0},{"$f":"Kostenverzamelstaat!I105-Kostenverzamelstaat!J105","v":0}]
[null,null,null," 721 Grensoverschrijdende zorg",null,null,null,null,null,{"$f":"Kostenverzamelstaat!M106-Kostenverzamelstaat!N106","v":0},{"$f":"Kostenverzamelstaat!K106-Kostenverzamelstaat!L106","v":0},{"$f":"Kostenverzamelstaat!I106-Kostenverzamelstaat!J106","v":0}]
[null,null,null," 730 Kwaliteitsgelden",null,null,null,null,null,{"$f":"Kostenverzamelstaat!M109-Kostenverzamelstaat!N109","v":0},{"$f":"Kostenverzamelstaat!K109-Kostenverzamelstaat!L109","v":0},{"$f":"Kostenverzamelstaat!I109-Kostenverzamelstaat!J109","v":0}]
[]
[null,null,null,"VERGELIJKING SPECIFIEKE INFORMATIE A EN C"]
[null,null,null,"KOSTEN PER CODENUMMER\n(ONTVANGEN EN GEACCEPTEERDE DECLARATIES \nT/M 2E KWARTAAL 2019)",null,null,null,null,null,"Spec. inform. A\nkostenver-\nzamelstaat","Spec. inform. C\ndetail-\ninformatie","VERSCHIL"]
[]
[null,null,null," 503 Bijzondere betalingen",null,null,null,null,null,{"$f":"Kostenverzamelstaat!J16","v":0},{"$f":"'Specifieke informatie C'!L16","v":0},{"$f":"J81-K81","v":0}]
[null,null,null," 506 Consulttarieven",null,null,null,null,null,{"$f":"Kostenverzamelstaat!J19","v":0},{"$f":"'Specifieke informatie C'!L27","v":0},{"$f":"J82-K82","v":0}]
[null,null,null," 507 Overige tarieven",null,null,null,null,null,{"$f":"Kostenverzamelstaat!J20","v":0},{"$f":"'Specifieke informatie C'!L36","v":0},0]
[null,null,null," 510 Multidisciplinaire zorg",null,null,null,null,null,{"$f":"Kostenverzamelstaat!J21","v":0},{"$f":"'Specifieke informatie C'!L44","v":0},0]
[null,null,null," 515 Resultaatbeloning en zorgvernieuwing huisartsen",null,null,null,null,null,{"$f":"Kostenverzamelstaat!J22","v":0},{"$f":"'Specifieke informatie C'!L57","v":0},0]
[null,null,null," 516 Resultaatbeloning en zorgvernieuwing MDZ",null,null,null,null,null,{"$f":"Kostenverzamelstaat!J23","v":0},{"$f":"'Specifieke informatie C'!L63","v":0},0]
[null,null,null," 530 Kosten van verpleging en verzorging",null,null,null,null,null,{"$f":"Kostenverzamelstaat!J28","v":0},{"$f":"'Specifieke informatie C'!L75","v":0},0]
[null,null,null," 560.1 Mondzorg volwassen verzekerden",null,null,null,null,null,{"$f":"Kostenverzamelstaat!J30","v":0},{"$f":"'Specifieke informatie C'!L103","v":0},0]
[null,null,null," 560.2 Mondzorg jeugdige verzekerden",null,null,null,null,null,{"$f":"Kostenverzamelstaat!J31","v":0},{"$f":"'Specifieke informatie C'!L126","v":0},0]
[null,null,null," 561 Gebitsprothesen",null,null,null,null,null,{"$f":"Kostenverzamelstaat!J32","v":0},{"$f":"'Specifieke informatie C'!L146","v":0},0]
[null,null,null," 610 Overige kosten ziekenhuiszorg en curatieve zorg",null,null,null,null,null,{"$f":"Kostenverzamelstaat!J53","v":0},{"$f":"'Specifieke informatie C'!H162","v":0},0]
[null,null,null," 611 Overige zorgproducten (naar instelling)",null,null,null,null,null,{"$f":"Kostenverzamelstaat!J54","v":0},{"$f":"'Specifieke informatie C'!H172","v":0},0]
[null,null,null," 612.1 Kosten add-ons - Dure geneesmiddelen",null,null,null,null,null,{"$f":"Kostenverzamelstaat!J56","v":0},{"$f":"'Specifieke informatie C'!H189","v":0},0]
[null,null,null," 612.2 Kosten add-ons - IC",null,null,null,null,null,{"$f":"Kostenverzamelstaat!J57","v":0},{"$f":"'Specifieke informatie C'!H198","v":0},0]
[null,null,null," 613.1 Integrale kosten DBC-zorgproduct gereguleerd segment",null,null,null,null,null,{"$f":"Kostenverzamelstaat!J58","v":0},{"$f":"'Specifieke informatie C'!H207","v":0},0]
[null,null,null," 615.1 Integrale kosten DBC-zorgproduct vrije segment",null,null,null,null,null,{"$f":"Kostenverzamelstaat!J59","v":0},{"$f":"'Specifieke informatie C'!H233","v":0},0]
[null,null,null,{"$f":"NOW()","v":"2019-07-11T16:15:17.690"},null,null,null,null,null,null,null,{"$f":"CONCATENATE(\"Controleoverzicht \",LOWER(A54))","v":"Controleoverzicht pagina 2"}]
[]
["Pagina 3",null,null,{"$f":"CONCATENATE(\"KWARTAALSTAAT ZVW \", jaar_id,\" \",kwartaal_id,\"E KWARTAAL\")","v":"KWARTAALSTAAT ZVW 2019 2E KWARTAAL"}]
[null,null,null,"CONTROLEOVERZICHT"]
[null,null,null,{"$f":"IF(naw_uzovi_zorgverzekeraar<>\"0000\",CONCATENATE(UPPER(naw_naam_zorgverzekeraar),\", \",UPPER(naw_plaats_zorgverzekeraar)),\"\")","v":""},null,null,null,null,null,null,null,{"$f":"CONCATENATE(\"UZOVI: \",naw_uzovi_zorgverzekeraar)","v":"UZOVI: 0000"}]
[]
[null,null,null,"VERGELIJKING SPECIFIEKE INFORMATIE A EN C - vervolg"]
[null,null,null,"KOSTEN PER CODENUMMER \n(ONTVANGEN EN GEACCEPTEERDE DECLARATIES \n T/M 2E KWARTAAL 2019)",null,null,null,null,null,"Spec. inform. A\nkostenver-\nzamelstaat","Spec. inform. C\ndetail-\ninformatie","VERSCHIL"]
[]
[null,null,null," 662 GGZ zonder verblijf ",null,null,null,null,null,{"$f":"Kostenverzamelstaat!J90","v":0},{"$f":"'Specifieke informatie C'!L240","v":0},{"$f":"J106-K106","v":0}]
[null,null,null," 665 Generalistische basis GGZ (naar instelling)",null,null,null,null,null,{"$f":"Kostenverzamelstaat!J91","v":0},{"$f":"'Specifieke informatie C'!L246","v":0},0]
[null,null,null," 665 Generalistische basis GGZ",null,null,null,null,null,{"$f":"Kostenverzamelstaat!J91","v":0},{"$f":"'Specifieke informatie C'!L255","v":0},0]
[null,null,null," 700 Overige kosten",null,null,null,null,null,{"$f":"Kostenverzamelstaat!J100","v":0},{"$f":"'Specifieke informatie C'!L283","v":0},0]
[null,null,null," 701 Overige geneeskundige zorg",null,null,null,null,null,{"$f":"Kostenverzamelstaat!J101","v":0},{"$f":"'Specifieke informatie C'!L294","v":0},0]
[null,null,null," 702 Kosten van zorg zintuiglijk gehandicapten ",null,null,null,null,null,{"$f":"Kostenverzamelstaat!J102","v":0},{"$f":"'Specifieke informatie C'!L301","v":0},0]
[]
[null,null,null," KOSTEN PER CODENUMMER (KOSTEN INCLUSIEF BALANSPOST) 2019",null,null,null,null,null,"Spec. inform. A\nkostenver-\nzamelstaat","Spec. inform. C\ndetail-\ninformatie","VERSCHIL"]
[]
[null,null,null," 610 Overige kosten ziekenhuiszorg en curatieve zorg",null,null,null,null,null,{"$f":"Kostenverzamelstaat!I53","v":0},{"$f":"'Specifieke informatie C'!G162","v":0},{"$f":"J115-K115","v":0}]
[null,null,null," 611 Overige zorgproducten (naar instelling)",null,null,null,null,null,{"$f":"Kostenverzamelstaat!I54","v":0},{"$f":"'Specifieke informatie C'!G172","v":0},{"$f":"J116-K116","v":0}]
[null,null,null," 612.1 Kosten add-ons - Dure geneesmiddelen ",null,null,null,null,null,{"$f":"Kostenverzamelstaat!I56","v":0},{"$f":"'Specifieke informatie C'!G189","v":0},0]
[null,null,null," 612.2  Kosten add-ons - IC",null,null,null,null,null,{"$f":"Kostenverzamelstaat!I57","v":0},{"$f":"'Specifieke informatie C'!G198","v":0},0]
[null,null,null," 613.1 Integrale kosten DBC-zorgproduct gereguleerd segment",null,null,null,null,null,{"$f":"Kostenverzamelstaat!I58","v":0},{"$f":"'Specifieke informatie C'!G207","v":0},0]
[null,null,null," 615.1 Integrale kosten DBC-zorgproduct vrije segment",null,null,null,null,null,{"$f":"Kostenverzamelstaat!I59","v":0},{"$f":"'Specifieke informatie C'!G233","v":0},0]
[]
[null,null,null," KOSTEN PER CODENUMMER (KOSTEN INCLUSIEF BALANSPOST) 2018",null,null,null,null,null,"Spec. inform. A\nkostenver-\nzamelstaat","Spec. inform. C\ndetail-\ninformatie","VERSCHIL"]
[]
[null,null,null," 610 Overige kosten ziekenhuiszorg en curatieve zorg",null,null,null,null,null,{"$f":"Kostenverzamelstaat!K53","v":0},{"$f":"'Specifieke informatie C'!I162","v":0},{"$f":"J124-K124","v":0}]
[null,null,null," 611 Overige zorgproducten (naar instelling)",null,null,null,null,null,{"$f":"Kostenverzamelstaat!K54","v":0},{"$f":"'Specifieke informatie C'!I172","v":0},0]
[null,null,null," 613.1 Integrale kosten DBC-zorgproduct gereguleerd segment",null,null,null,null,null,{"$f":"Kostenverzamelstaat!K58","v":0},{"$f":"'Specifieke informatie C'!I207","v":0},0]
[null,null,null," 615.1 Integrale kosten DBC-zorgproduct vrije segment",null,null,null,null,null,{"$f":"Kostenverzamelstaat!K59","v":0},{"$f":"'Specifieke informatie C'!I233","v":0},0]
[]
[null,null,null," KOSTEN PER CODENUMMER \n (ONTVANGEN EN GEACCEPTEERDE DECLARATIES) M.B.T. 2018 ",null,null,null,null,null,"Spec. inform. A\nkostenver-\nzamelstaat","Spec. inform. C\ndetail-\ninformatie","VERSCHIL"]
[]
[null,null,null," 610 Overige kosten ziekenhuiszorg en curatieve zorg",null,null,null,null,null,{"$f":"Kostenverzamelstaat!L53","v":0},{"$f":"'Specifieke informatie C'!J162","v":0},{"$f":"J131-K131","v":0}]
[null,null,null," 611 Overige zorgproducten (naar instelling)",null,null,null,null,null,{"$f":"Kostenverzamelstaat!L54","v":0},{"$f":"'Specifieke informatie C'!J172","v":0},0]
[null,null,null," 613.1 Integrale kosten DBC-zorgproduct gereguleerd segment",null,null,null,null,null,{"$f":"Kostenverzamelstaat!L58","v":0},{"$f":"'Specifieke informatie C'!J207","v":0},0]
[null,null,null," 615.1 Integrale kosten DBC-zorgproduct vrije segment",null,null,null,null,null,{"$f":"Kostenverzamelstaat!L59","v":0},{"$f":"'Specifieke informatie C'!J233","v":0},0]
[]
[]
[]
[]
[null,null,null,{"$f":"NOW()","v":"2019-07-11T16:15:17.690"},null,null,null,null,null,null,null,{"$f":"CONCATENATE(\"Controleoverzicht \",LOWER(A99))","v":"Controleoverzicht pagina 3"}]
[]
["Pagina 4",null,null,{"$f":"CONCATENATE(\"KWARTAALSTAAT ZVW \", jaar_id,\" \",kwartaal_id,\"E KWARTAAL\")","v":"KWARTAALSTAAT ZVW 2019 2E KWARTAAL"}]
[null,null,null,"CONTROLEOVERZICHT"]
[null,null,null,{"$f":"IF(naw_uzovi_zorgverzekeraar<>\"0000\",CONCATENATE(UPPER(naw_naam_zorgverzekeraar),\", \",UPPER(naw_plaats_zorgverzekeraar)),\"\")","v":""},null,null,null,null,null,null,null,{"$f":"CONCATENATE(\"UZOVI: \",naw_uzovi_zorgverzekeraar)","v":"UZOVI: 0000"}]
[]
[]
[null,null,null,"VERGELIJKING SPECIFIEKE INFORMATIE A EN C - vervolg"]
[null,null,null," KOSTEN PER CODENUMMER \n (KOSTEN INCLUSIEF BALANSPOST) 2017 EN OUDER",null,null,null,null,null,"Spec. inform. A\nkostenver-\nzamelstaat","Spec. inform. C\ndetail-\ninformatie","VERSCHIL"]
[]
[null,null,null," 610 Overige kosten ziekenhuiszorg en curatieve zorg",null,null,null,null,null,{"$f":"Kostenverzamelstaat!M53","v":0},{"$f":"'Specifieke informatie C'!K162","v":0},{"$f":"J149-K149","v":0}]
[null,null,null," 611 Overige zorgproducten (naar instelling)",null,null,null,null,null,{"$f":"Kostenverzamelstaat!M54","v":0},{"$f":"'Specifieke informatie C'!K172","v":0},0]
[null,null,null," 613.1 Integrale kosten DBC-zorgproduct gereguleerd segment",null,null,null,null,null,{"$f":"Kostenverzamelstaat!M58","v":0},{"$f":"'Specifieke informatie C'!K207","v":0},0]
[null,null,null," 615.1 Integrale kosten DBC-zorgproduct vrije segment",null,null,null,null,null,{"$f":"Kostenverzamelstaat!M59","v":0},{"$f":"'Specifieke informatie C'!K233","v":0},0]
[]
[null,null,null,"KOSTEN PER CODENUMMER \n(ONTVANGEN EN GEACCEPTEERDE DECLARATIES \n M.B.T. 2017 EN OUDER)",null,null,null,null,null,"Spec. inform. A\nkostenver-\nzamelstaat","Spec. inform. C\ndetail-\ninformatie","VERSCHIL"]
[]
[null,null,null," 610 Overige kosten ziekenhuiszorg en curatieve zorg",null,null,null,null,null,{"$f":"Kostenverzamelstaat!N53","v":0},{"$f":"'Specifieke informatie C'!L162","v":0},{"$f":"J156-K156","v":0}]
[null,null,null," 611 Overige zorgproducten (naar instelling)",null,null,null,null,null,{"$f":"Kostenverzamelstaat!N54","v":0},{"$f":"'Specifieke informatie C'!L172","v":0},0]
[null,null,null," 613.1 Integrale kosten DBC-zorgproduct gereguleerd segment",null,null,null,null,null,{"$f":"Kostenverzamelstaat!N58","v":0},{"$f":"'Specifieke informatie C'!L207","v":0},0]
[null,null,null," 615.1 Integrale kosten DBC-zorgproduct vrije segment",null,null,null,null,null,{"$f":"Kostenverzamelstaat!N59","v":0},{"$f":"'Specifieke informatie C'!L233","v":0},0]
[]
[null,null,null," Controle code 505 kostenverzamelstaat",null,null,null,null,null,null,null,{"$f":"Kostenverzamelstaat!I18","v":0}]
[null,null,null," Kosten per verzekerde o.b.v. laatst bekende verzekerdenstand (in hele euro's)",null,null,null,null,null,null,null,{"$f":"IF(L161<>0,(L161/J12),0)","v":0}]
[null,null,null,{"$f":"IF(OR(L162>kwartaal_id*193),\"Attentiebericht: Kosten per verzekerde liggen buiten het verwachte bereik. Controleer de kostenverzamelstaat!\",\"\")","v":""}]
[]
[null,null,null,"VERGELIJKING SPECIFIEKE INFORMATIE A EN C (Contractinformatie)"]
[null,null,null," KOSTEN PER RUBRIEK OF CODENUMMER \n (KOSTEN INCLUSIEF BALANSPOST) 2019",null,null,null,null,null,"Spec. inform. A\nkostenver-\nzamelstaat","Spec. inform. C\ncontract-\ninformatie","VERSCHIL"]
[]
[null,null,null," Huisartsenzorg en Multidisciplinaire zorg, rubriek 01",null,null,null,null,null,{"$f":"Kostenverzamelstaat!I24","v":0},{"$f":"Contractinformatie!K21","v":0},{"$f":"J168-K168","v":0}]
[null,null,null," Verpleging en Verzorging, rubriek 03",null,null,null,null,null,{"$f":"Kostenverzamelstaat!I28","v":0},{"$f":"Contractinformatie!K29","v":0},{"$f":"J169-K169","v":0}]
[null,null,null," Medisch Specialistische zorg, rubriek 06",null,null,null,null,null,{"$f":"Kostenverzamelstaat!I61","v":0},{"$f":"Contractinformatie!K40","v":0},0]
[null,null,null," Geneeskundige Geestelijke Gezondheidszorg, rubriek 10",null,null,null,null,null,{"$f":"Kostenverzamelstaat!I92","v":0},{"$f":"Contractinformatie!K59","v":0},0]
[null,null,null," Geriatrische Revalidatiezorg & Eerstelijnsverblijf, rubriek 11",null,null,null,null,null,{"$f":"Kostenverzamelstaat!I96","v":0},{"$f":"Contractinformatie!K83","v":0},0]
[null,null,null," Zintuiglijk Gehandicapten, code 702",null,null,null,null,null,{"$f":"Kostenverzamelstaat!I102","v":0},{"$f":"Contractinformatie!K69","v":0},0]
[]
[]
[]
[]
[]
[]
[]
[]
[null,null,null,{"$f":"NOW()","v":"2019-07-11T16:15:17.690"},null,null,null,null,null,null,null,{"$f":"CONCATENATE(\"Controleoverzicht \",LOWER(A141))","v":"Controleoverzicht pagina 4"}]

{"sheet":"Blad1","index":11,"n_rows":714,"n_cols":6,"rows_kept":714,"cut":false,"hidden":true,"merged":[]}
[70131042,{"$f":"'Specifieke informatie A'!$J$150","v":0},null,null,null,"*='Specifieke informatie A'!$J$149"]
[70131043,{"$f":"'Specifieke informatie A'!$K$150","v":0},null,null,null,"*='Specifieke informatie A'!$K$149"]
[70131044,{"$f":"'Specifieke informatie A'!$J$151","v":0},null,null,null,"*='Specifieke informatie A'!$J$150"]
[70131045,{"$f":"'Specifieke informatie A'!$K$151","v":0},null,null,null,"*='Specifieke informatie A'!$K$150"]
[70131046,{"$f":"'Specifieke informatie A'!$J$152","v":0},null,null,null,"*='Specifieke informatie A'!$J$151"]
[70131047,{"$f":"'Specifieke informatie A'!$K$152","v":0},null,null,null,"*='Specifieke informatie A'!$K$151"]
[70131048,{"$f":"'Specifieke informatie A'!$J$153","v":0},null,null,null,"*='Specifieke informatie A'!$J$152"]
[70131049,{"$f":"'Specifieke informatie A'!$K$153","v":0},null,null,null,"*='Specifieke informatie A'!$K$152"]
[70131050,{"$f":"'Specifieke informatie A'!$J$154","v":0},null,null,null,"*='Specifieke informatie A'!$J$153"]
[70131051,{"$f":"'Specifieke informatie A'!$K$154","v":0},null,null,null,"*='Specifieke informatie A'!$K$153"]
[70131052,{"$f":"'Specifieke informatie A'!$J$155","v":0},null,null,null,"*='Specifieke informatie A'!$J$154"]
[70131053,{"$f":"'Specifieke informatie A'!$K$155","v":0},null,null,null,"*='Specifieke informatie A'!$K$154"]
[70131054,{"$f":"'Specifieke informatie A'!$J$156","v":0},null,null,null,"*='Specifieke informatie A'!$J$155"]
[70131055,{"$f":"'Specifieke informatie A'!$K$156","v":0},null,null,null,"*='Specifieke informatie A'!$K$155"]
[70131056,{"$f":"'Specifieke informatie A'!$J$157","v":0},null,null,null,"*='Specifieke informatie A'!$J$156"]
[70131057,{"$f":"'Specifieke informatie A'!$K$157","v":0},null,null,null,"*='Specifieke informatie A'!$K$156"]
[70131058,{"$f":"'Specifieke informatie A'!$J$158","v":0},null,null,null,"*='Specifieke informatie A'!$J$157"]
[70131059,{"$f":"'Specifieke informatie A'!$K$158","v":0},null,null,null,"*='Specifieke informatie A'!$K$157"]
[70131060,{"$f":"'Specifieke informatie A'!$J$159","v":0},null,null,null,"*='Specifieke informatie A'!$J$158"]
[70131061,{"$f":"'Specifieke informatie A'!$K$159","v":0},null,null,null,"*='Specifieke informatie A'!$K$158"]
[70131062,{"$f":"'Specifieke informatie A'!$J$160","v":0},null,null,null,"*='Specifieke informatie A'!$J$159"]
[70131063,{"$f":"'Specifieke informatie A'!$K$160","v":0},null,null,null,"*='Specifieke informatie A'!$K$159"]
[70131064,{"$f":"'Specifieke informatie A'!$J$161","v":0},null,null,null,"*='Specifieke informatie A'!$J$160"]
[70131065,{"$f":"'Specifieke informatie A'!$K$161","v":0},null,null,null,"*='Specifieke informatie A'!$K$160"]
[70131066,{"$f":"'Specifieke informatie A'!$J$162","v":0},null,null,null,"*='Specifieke informatie A'!$J$161"]
[70131067,{"$f":"'Specifieke informatie A'!$K$162","v":0},null,null,null,"*='Specifieke informatie A'!$K$161"]
[70131068,{"$f":"'Specifieke informatie A'!$J$163","v":0},null,null,null,"*='Specifieke informatie A'!$J$162"]
[70131069,{"$f":"'Specifieke informatie A'!$K$163","v":0},null,null,null,"*='Specifieke informatie A'!$K$162"]
[70131070,{"$f":"'Specifieke informatie A'!$J$164","v":0},null,null,null,"*='Specifieke informatie A'!$J$163"]
[70131071,{"$f":"'Specifieke informatie A'!$K$164","v":0},null,null,null,"*='Specifieke informatie A'!$K$163"]
[70131072,{"$f":"'Specifieke informatie A'!$J$165","v":0},null,null,null,"*='Specifieke informatie A'!$J$164"]
[70131073,{"$f":"'Specifieke informatie A'!$K$165","v":0},null,null,null,"*='Specifieke informatie A'!$K$164"]
[70131074,{"$f":"'Specifieke informatie A'!$J$166","v":0},null,null,null,"*='Specifieke informatie A'!$J$165"]
[70131075,{"$f":"'Specifieke informatie A'!$K$166","v":0},null,null,null,"*='Specifieke informatie A'!$K$165"]
[70131076,{"$f":"'Specifieke informatie A'!$J$167","v":0},null,null,null,"*='Specifieke informatie A'!$J$166"]
[70131077,{"$f":"'Specifieke informatie A'!$K$167","v":0},null,null,null,"*='Specifieke informatie A'!$K$166"]
[70131078,{"$f":"'Specifieke informatie A'!$J$168","v":0},null,null,null,"*='Specifieke informatie A'!$J$167"]
[70131079,{"$f":"'Specifieke informatie A'!$K$168","v":0},null,null,null,"*='Specifieke informatie A'!$K$167"]
[70131080,{"$f":"'Specifieke informatie A'!$J$169","v":0},null,null,null,"*='Specifieke informatie A'!$J$168"]
[70131081,{"$f":"'Specifieke informatie A'!$K$169","v":0},null,null,null,"*='Specifieke informatie A'!$K$168"]
[70131082,{"$f":"'Specifieke informatie A'!$L$175","v":0},null,null,null,"*='Specifieke informatie A'!$L$174"]
[70131083,{"$f":"'Specifieke informatie A'!$L$176","v":0},null,null,null,"*='Specifieke informatie A'!$L$175"]
[70130856,{"$f":"Contractinformatie!$K$12","v":0},null,null,null,"*=Contractinformatie!$K$12"]
[70130857,{"$f":"Contractinformatie!$K$13","v":0},null,null,null,"*=Contractinformatie!$K$13"]
[70130855,{"$f":"Contractinformatie!$K$14","v":0},null,null,null,"*=Contractinformatie!$K$14"]
[70131032,{"$f":"Contractinformatie!$K$25","v":0},null,null,null,"*=Contractinformatie!$K$25"]
[70131033,{"$f":"Contractinformatie!$K$26","v":0},null,null,null,"*=Contractinformatie!$K$26"]
[70131034,{"$f":"Contractinformatie!$K$27","v":0},null,null,null,"*=Contractinformatie!$K$27"]
[70131108,{"$f":"Contractinformatie!$K$28","v":0},null,null,null,"*=Contractinformatie!$K$28"]
[70130454,{"$f":"Kostenverzamelstaat!$I$16","v":0},null,null,null,"*=Kostenverzamelstaat!$I$16"]
[70130455,{"$f":"Kostenverzamelstaat!$J$16","v":0},null,null,null,"*=Kostenverzamelstaat!$J$16"]
[70130456,{"$f":"Kostenverzamelstaat!$K$16","v":0},null,null,null,"*=Kostenverzamelstaat!$K$16"]
[70130457,{"$f":"Kostenverzamelstaat!$L$16","v":0},null,null,null,"*=Kostenverzamelstaat!$L$16"]
[70130458,{"$f":"Kostenverzamelstaat!$M$16","v":0},null,null,null,"*=Kostenverzamelstaat!$M$16"]
[70130459,{"$f":"Kostenverzamelstaat!$N$16","v":0},null,null,null,"*=Kostenverzamelstaat!$N$16"]
[70130460,{"$f":"Kostenverzamelstaat!$I$17","v":0},null,null,null,"*=Kostenverzamelstaat!$I$17"]
[70130461,{"$f":"Kostenverzamelstaat!$J$17","v":0},null,null,null,"*=Kostenverzamelstaat!$J$17"]
[70130462,{"$f":"Kostenverzamelstaat!$K$17","v":0},null,null,null,"*=Kostenverzamelstaat!$K$17"]
[70130463,{"$f":"Kostenverzamelstaat!$L$17","v":0},null,null,null,"*=Kostenverzamelstaat!$L$17"]
[70130464,{"$f":"Kostenverzamelstaat!$M$17","v":0},null,null,null,"*=Kostenverzamelstaat!$M$17"]
[70130465,{"$f":"Kostenverzamelstaat!$N$17","v":0},null,null,null,"*=Kostenverzamelstaat!$N$17"]
[70130466,{"$f":"Kostenverzamelstaat!$I$18","v":0},null,null,null,"*=Kostenverzamelstaat!$I$18"]
[70130467,{"$f":"Kostenverzamelstaat!$J$18","v":0},null,null,null,"*=Kostenverzamelstaat!$J$18"]
[70130468,{"$f":"Kostenverzamelstaat!$K$18","v":0},null,null,null,"*=Kostenverzamelstaat!$K$18"]
[70130469,{"$f":"Kostenverzamelstaat!$L$18","v":0},null,null,null,"*=Kostenverzamelstaat!$L$18"]
[70130470,{"$f":"Kostenverzamelstaat!$M$18","v":0},null,null,null,"*=Kostenverzamelstaat!$M$18"]
[70130471,{"$f":"Kostenverzamelstaat!$N$18","v":0},null,null,null,"*=Kostenverzamelstaat!$N$18"]
[70130472,{"$f":"Kostenverzamelstaat!$I$19","v":0},null,null,null,"*=Kostenverzamelstaat!$I$19"]
[70130473,{"$f":"Kostenverzamelstaat!$J$19","v":0},null,null,null,"*=Kostenverzamelstaat!$J$19"]
[70130474,{"$f":"Kostenverzamelstaat!$K$19","v":0},null,null,null,"*=Kostenverzamelstaat!$K$19"]
[70130475,{"$f":"Kostenverzamelstaat!$L$19","v":0},null,null,null,"*=Kostenverzamelstaat!$L$19"]
[70130476,{"$f":"Kostenverzamelstaat!$M$19","v":0},null,null,null,"*=Kostenverzamelstaat!$M$19"]
[70130477,{"$f":"Kostenverzamelstaat!$N$19","v":0},null,null,null,"*=Kostenverzamelstaat!$N$19"]
[70130478,{"$f":"Kostenverzamelstaat!$I$20","v":0},null,null,null,"*=Kostenverzamelstaat!$I$20"]
[70130479,{"$f":"Kostenverzamelstaat!$J$20","v":0},null,null,null,"*=Kostenverzamelstaat!$J$20"]
[70130480,{"$f":"Kostenverzamelstaat!$K$20","v":0},null,null,null,"*=Kostenverzamelstaat!$K$20"]
[70130481,{"$f":"Kostenverzamelstaat!$L$20","v":0},null,null,null,"*=Kostenverzamelstaat!$L$20"]
[70130482,{"$f":"Kostenverzamelstaat!$M$20","v":0},null,null,null,"*=Kostenverzamelstaat!$M$20"]
[70130483,{"$f":"Kostenverzamelstaat!$N$20","v":0},null,null,null,"*=Kostenverzamelstaat!$N$20"]
[70130484,{"$f":"Kostenverzamelstaat!$I$21","v":0},null,null,null,"*=Kostenverzamelstaat!$I$21"]
[70130485,{"$f":"Kostenverzamelstaat!$J$21","v":0},null,null,null,"*=Kostenverzamelstaat!$J$21"]
[70130486,{"$f":"Kostenverzamelstaat!$K$21","v":0},null,null,null,"*=Kostenverzamelstaat!$K$21"]
[70130487,{"$f":"Kostenverzamelstaat!$L$21","v":0},null,null,null,"*=Kostenverzamelstaat!$L$21"]
[70130488,{"$f":"Kostenverzamelstaat!$M$21","v":0},null,null,null,"*=Kostenverzamelstaat!$M$21"]
[70130489,{"$f":"Kostenverzamelstaat!$N$21","v":0},null,null,null,"*=Kostenverzamelstaat!$N$21"]
[70130490,{"$f":"Kostenverzamelstaat!$I$22","v":0},null,null,null,"*=Kostenverzamelstaat!$I$22"]
[70130491,{"$f":"Kostenverzamelstaat!$J$22","v":0},null,null,null,"*=Kostenverzamelstaat!$J$22"]
[70130492,{"$f":"Kostenverzamelstaat!$K$22","v":0},null,null,null,"*=Kostenverzamelstaat!$K$22"]
[70130493,{"$f":"Kostenverzamelstaat!$L$22","v":0},null,null,null,"*=Kostenverzamelstaat!$L$22"]
[70130494,{"$f":"Kostenverzamelstaat!$M$22","v":0},null,null,null,"*=Kostenverzamelstaat!$M$22"]
[70130495,{"$f":"Kostenverzamelstaat!$N$22","v":0},null,null,null,"*=Kostenverzamelstaat!$N$22"]
[70130496,{"$f":"Kostenverzamelstaat!$I$23","v":0},null,null,null,"*=Kostenverzamelstaat!$I$23"]
[70130497,{"$f":"Kostenverzamelstaat!$J$23","v":0},null,null,null,"*=Kostenverzamelstaat!$J$23"]
[70130498,{"$f":"Kostenverzamelstaat!$K$23","v":0},null,null,null,"*=Kostenverzamelstaat!$K$23"]
[70130499,{"$f":"Kostenverzamelstaat!$L$23","v":0},null,null,null,"*=Kostenverzamelstaat!$L$23"]
[70130500,{"$f":"Kostenverzamelstaat!$M$23","v":0},null,null,null,"*=Kostenverzamelstaat!$M$23"]
[70130501,{"$f":"Kostenverzamelstaat!$N$23","v":0},null,null,null,"*=Kostenverzamelstaat!$N$23"]
[70130520,{"$f":"Kostenverzamelstaat!$I$26","v":0},null,null,null,"*=Kostenverzamelstaat!$I$26"]
[70130521,{"$f":"Kostenverzamelstaat!$J$26","v":0},null,null,null,"*=Kostenverzamelstaat!$J$26"]
[70130522,{"$f":"Kostenverzamelstaat!$K$26","v":0},null,null,null,"*=Kostenverzamelstaat!$K$26"]
[70130523,{"$f":"Kostenverzamelstaat!$L$26","v":0},null,null,null,"*=Kostenverzamelstaat!$L$26"]
[70130524,{"$f":"Kostenverzamelstaat!$M$26","v":0},null,null,null,"*=Kostenverzamelstaat!$M$26"]
[70130525,{"$f":"Kostenverzamelstaat!$N$26","v":0},null,null,null,"*=Kostenverzamelstaat!$N$26"]
[70130533,{"$f":"Kostenverzamelstaat!$I$30","v":0},null,null,null,"*=Kostenverzamelstaat!$I$30"]
[70130534,{"$f":"Kostenverzamelstaat!$J$30","v":0},null,null,null,"*=Kostenverzamelstaat!$J$30"]
[70130535,{"$f":"Kostenverzamelstaat!$K$30","v":0},null,null,null,"*=Kostenverzamelstaat!$K$30"]
[70130536,{"$f":"Kostenverzamelstaat!$L$30","v":0},null,null,null,"*=Kostenverzamelstaat!$L$30"]
[70130537,{"$f":"Kostenverzamelstaat!$M$30","v":0},null,null,null,"*=Kostenverzamelstaat!$M$30"]
[70130538,{"$f":"Kostenverzamelstaat!$N$30","v":0},null,null,null,"*=Kostenverzamelstaat!$N$30"]
[70130539,{"$f":"Kostenverzamelstaat!$I$31","v":0},null,null,null,"*=Kostenverzamelstaat!$I$31"]
[70130540,{"$f":"Kostenverzamelstaat!$J$31","v":0},null,null,null,"*=Kostenverzamelstaat!$J$31"]
[70130541,{"$f":"Kostenverzamelstaat!$K$31","v":0},null,null,null,"*=Kostenverzamelstaat!$K$31"]
[70130542,{"$f":"Kostenverzamelstaat!$L$31","v":0},null,null,null,"*=Kostenverzamelstaat!$L$31"]
[70130543,{"$f":"Kostenverzamelstaat!$M$31","v":0},null,null,null,"*=Kostenverzamelstaat!$M$31"]
[70130544,{"$f":"Kostenverzamelstaat!$N$31","v":0},null,null,null,"*=Kostenverzamelstaat!$N$31"]
[70130545,{"$f":"Kostenverzamelstaat!$I$32","v":0},null,null,null,"*=Kostenverzamelstaat!$I$32"]
[70130546,{"$f":"Kostenverzamelstaat!$J$32","v":0},null,null,null,"*=Kostenverzamelstaat!$J$32"]
[70130547,{"$f":"Kostenverzamelstaat!$K$32","v":0},null,null,null,"*=Kostenverzamelstaat!$K$32"]
[70130548,{"$f":"Kostenverzamelstaat!$L$32","v":0},null,null,null,"*=Kostenverzamelstaat!$L$32"]
[70130549,{"$f":"Kostenverzamelstaat!$M$32","v":0},null,null,null,"*=Kostenverzamelstaat!$M$32"]
[70130550,{"$f":"Kostenverzamelstaat!$N$32","v":0},null,null,null,"*=Kostenverzamelstaat!$N$32"]
[70130557,{"$f":"Kostenverzamelstaat!$I$35","v":0},null,null,null,"*=Kostenverzamelstaat!$I$35"]
[70130558,{"$f":"Kostenverzamelstaat!$J$35","v":0},null,null,null,"*=Kostenverzamelstaat!$J$35"]
[70130559,{"$f":"Kostenverzamelstaat!$K$35","v":0},null,null,null,"*=Kostenverzamelstaat!$K$35"]
[70130560,{"$f":"Kostenverzamelstaat!$L$35","v":0},null,null,null,"*=Kostenverzamelstaat!$L$35"]
[70130561,{"$f":"Kostenverzamelstaat!$M$35","v":0},null,null,null,"*=Kostenverzamelstaat!$M$35"]
[70130562,{"$f":"Kostenverzamelstaat!$N$35","v":0},null,null,null,"*=Kostenverzamelstaat!$N$35"]
[70130553,{"$f":"Kostenverzamelstaat!$K$36","v":0},null,null,null,"*=Kostenverzamelstaat!$K$36"]
[70130554,{"$f":"Kostenverzamelstaat!$L$36","v":0},null,null,null,"*=Kostenverzamelstaat!$L$36"]
[70130555,{"$f":"Kostenverzamelstaat!$M$36","v":0},null,null,null,"*=Kostenverzamelstaat!$M$36"]
[70130556,{"$f":"Kostenverzamelstaat!$N$36","v":0},null,null,null,"*=Kostenverzamelstaat!$N$36"]
[70130926,{"$f":"Kostenverzamelstaat!$I$52","v":0},null,null,null,"*=Kostenverzamelstaat!$I$52"]
[70130927,{"$f":"Kostenverzamelstaat!$J$52","v":0},null,null,null,"*=Kostenverzamelstaat!$J$52"]
[70130928,{"$f":"Kostenverzamelstaat!$K$52","v":0},null,null,null,"*=Kostenverzamelstaat!$K$52"]
[70130929,{"$f":"Kostenverzamelstaat!$L$52","v":0},null,null,null,"*=Kostenverzamelstaat!$L$52"]
[70130930,{"$f":"Kostenverzamelstaat!$M$52","v":0},null,null,null,"*=Kostenverzamelstaat!$M$52"]
[70130931,{"$f":"Kostenverzamelstaat!$N$52","v":0},null,null,null,"*=Kostenverzamelstaat!$N$52"]
[70130932,{"$f":"Kostenverzamelstaat!$I$53","v":0},null,null,null,"*=Kostenverzamelstaat!$I$53"]
[70130933,{"$f":"Kostenverzamelstaat!$J$53","v":0},null,null,null,"*=Kostenverzamelstaat!$J$53"]
[70130934,{"$f":"Kostenverzamelstaat!$K$53","v":0},null,null,null,"*=Kostenverzamelstaat!$K$53"]
[70130935,{"$f":"Kostenverzamelstaat!$L$53","v":0},null,null,null,"*=Kostenverzamelstaat!$L$53"]
[70130936,{"$f":"Kostenverzamelstaat!$M$53","v":0},null,null,null,"*=Kostenverzamelstaat!$M$53"]
[70130937,{"$f":"Kostenverzamelstaat!$N$53","v":0},null,null,null,"*=Kostenverzamelstaat!$N$53"]
[70130908,{"$f":"Kostenverzamelstaat!$I$54","v":0},null,null,null,"*=Kostenverzamelstaat!$I$54"]
[70130909,{"$f":"Kostenverzamelstaat!$J$54","v":0},null,null,null,"*=Kostenverzamelstaat!$J$54"]
[70130910,{"$f":"Kostenverzamelstaat!$K$54","v":0},null,null,null,"*=Kostenverzamelstaat!$K$54"]
[70130911,{"$f":"Kostenverzamelstaat!$L$54","v":0},null,null,null,"*=Kostenverzamelstaat!$L$54"]
[70130912,{"$f":"Kostenverzamelstaat!$M$54","v":0},null,null,null,"*=Kostenverzamelstaat!$M$54"]
[70130913,{"$f":"Kostenverzamelstaat!$N$54","v":0},null,null,null,"*=Kostenverzamelstaat!$N$54"]
[70130916,{"$f":"Kostenverzamelstaat!$K$55","v":0},null,null,null,"*=Kostenverzamelstaat!$K$55"]
[70130917,{"$f":"Kostenverzamelstaat!$L$55","v":0},null,null,null,"*=Kostenverzamelstaat!$L$55"]
[70130918,{"$f":"Kostenverzamelstaat!$M$55","v":0},null,null,null,"*=Kostenverzamelstaat!$M$55"]
[70130919,{"$f":"Kostenverzamelstaat!$N$55","v":0},null,null,null,"*=Kostenverzamelstaat!$N$55"]
[70130938,{"$f":"Kostenverzamelstaat!$I$56","v":0},null,null,null,"*=Kostenverzamelstaat!$I$56"]
[70130939,{"$f":"Kostenverzamelstaat!$J$56","v":0},null,null,null,"*=Kostenverzamelstaat!$J$56"]
[70130944,{"$f":"Kostenverzamelstaat!$I$57","v":0},null,null,null,"*=Kostenverzamelstaat!$I$57"]
[70130945,{"$f":"Kostenverzamelstaat!$J$57","v":0},null,null,null,"*=Kostenverzamelstaat!$J$57"]
[70130896,{"$f":"Kostenverzamelstaat!$I$58","v":0},null,null,null,"*=Kostenverzamelstaat!$I$58"]
[70130897,{"$f":"Kostenverzamelstaat!$J$58","v":0},null,null,null,"*=Kostenverzamelstaat!$J$58"]
[70130898,{"$f":"Kostenverzamelstaat!$K$58","v":0},null,null,null,"*=Kostenverzamelstaat!$K$58"]
[70130899,{"$f":"Kostenverzamelstaat!$L$58","v":0},null,null,null,"*=Kostenverzamelstaat!$L$58"]
[70130900,{"$f":"Kostenverzamelstaat!$M$58","v":0},null,null,null,"*=Kostenverzamelstaat!$M$58"]
[70130901,{"$f":"Kostenverzamelstaat!$N$58","v":0},null,null,null,"*=Kostenverzamelstaat!$N$58"]
[70130902,{"$f":"Kostenverzamelstaat!$I$59","v":0},null,null,null,"*=Kostenverzamelstaat!$I$59"]
[70130903,{"$f":"Kostenverzamelstaat!$J$59","v":0},null,null,null,"*=Kostenverzamelstaat!$J$59"]
[70130904,{"$f":"Kostenverzamelstaat!$K$59","v":0},null,null,null,"*=Kostenverzamelstaat!$K$59"]
[70130905,{"$f":"Kostenverzamelstaat!$L$59","v":0},null,null,null,"*=Kostenverzamelstaat!$L$59"]
[70130906,{"$f":"Kostenverzamelstaat!$M$59","v":0},null,null,null,"*=Kostenverzamelstaat!$M$59"]
[70130907,{"$f":"Kostenverzamelstaat!$N$59","v":0},null,null,null,"*=Kostenverzamelstaat!$N$59"]
[70130920,{"$f":"Kostenverzamelstaat!$I$60","v":0},null,null,null,"*=Kostenverzamelstaat!$I$60"]
[70130921,{"$f":"Kostenverzamelstaat!$J$60","v":0},null,null,null,"*=Kostenverzamelstaat!$J$60"]
[70130922,{"$f":"Kostenverzamelstaat!$K$60","v":0},null,null,null,"*=Kostenverzamelstaat!$K$60"]
[70130923,{"$f":"Kostenverzamelstaat!$L$60","v":0},null,null,null,"*=Kostenverzamelstaat!$L$60"]
[70130924,{"$f":"Kostenverzamelstaat!$M$60","v":0},null,null,null,"*=Kostenverzamelstaat!$M$60"]
[70130925,{"$f":"Kostenverzamelstaat!$N$60","v":0},null,null,null,"*=Kostenverzamelstaat!$N$60"]
[70130950,{"$f":"Kostenverzamelstaat!$I$63","v":0},null,null,null,"*=Kostenverzamelstaat!$I$63"]
[70130951,{"$f":"Kostenverzamelstaat!$J$63","v":0},null,null,null,"*=Kostenverzamelstaat!$J$63"]
[70130952,{"$f":"Kostenverzamelstaat!$K$63","v":0},null,null,null,"*=Kostenverzamelstaat!$K$63"]
[70130953,{"$f":"Kostenverzamelstaat!$L$63","v":0},null,null,null,"*=Kostenverzamelstaat!$L$63"]
[70130954,{"$f":"Kostenverzamelstaat!$M$63","v":0},null,null,null,"*=Kostenverzamelstaat!$M$63"]
[70130955,{"$f":"Kostenverzamelstaat!$N$63","v":0},null,null,null,"*=Kostenverzamelstaat!$N$63"]
[70130974,{"$f":"Kostenverzamelstaat!$I$64","v":0},null,null,null,"*=Kostenverzamelstaat!$I$64"]
[70130975,{"$f":"Kostenverzamelstaat!$J$64","v":0},null,null,null,"*=Kostenverzamelstaat!$J$64"]
[70130976,{"$f":"Kostenverzamelstaat!$K$64","v":0},null,null,null,"*=Kostenverzamelstaat!$K$64"]
[70130977,{"$f":"Kostenverzamelstaat!$L$64","v":0},null,null,null,"*=Kostenverzamelstaat!$L$64"]
[70130978,{"$f":"Kostenverzamelstaat!$M$64","v":0},null,null,null,"*=Kostenverzamelstaat!$M$64"]
[70130979,{"$f":"Kostenverzamelstaat!$N$64","v":0},null,null,null,"*=Kostenverzamelstaat!$N$64"]
[70130968,{"$f":"Kostenverzamelstaat!$I$65","v":0},null,null,null,"*=Kostenverzamelstaat!$I$65"]
[70130969,{"$f":"Kostenverzamelstaat!$J$65","v":0},null,null,null,"*=Kostenverzamelstaat!$J$65"]
[70130970,{"$f":"Kostenverzamelstaat!$K$65","v":0},null,null,null,"*=Kostenverzamelstaat!$K$65"]
[70130971,{"$f":"Kostenverzamelstaat!$L$65","v":0},null,null,null,"*=Kostenverzamelstaat!$L$65"]
[70130972,{"$f":"Kostenverzamelstaat!$M$65","v":0},null,null,null,"*=Kostenverzamelstaat!$M$65"]
[70130973,{"$f":"Kostenverzamelstaat!$N$65","v":0},null,null,null,"*=Kostenverzamelstaat!$N$65"]
[70130956,{"$f":"Kostenverzamelstaat!$I$66","v":0},null,null,null,"*=Kostenverzamelstaat!$I$66"]
[70130957,{"$f":"Kostenverzamelstaat!$J$66","v":0},null,null,null,"*=Kostenverzamelstaat!$J$66"]
[70130958,{"$f":"Kostenverzamelstaat!$K$66","v":0},null,null,null,"*=Kostenverzamelstaat!$K$66"]
[70130959,{"$f":"Kostenverzamelstaat!$L$66","v":0},null,null,null,"*=Kostenverzamelstaat!$L$66"]
[70130960,{"$f":"Kostenverzamelstaat!$M$66","v":0},null,null,null,"*=Kostenverzamelstaat!$M$66"]
[70130961,{"$f":"Kostenverzamelstaat!$N$66","v":0},null,null,null,"*=Kostenverzamelstaat!$N$66"]
[70130962,{"$f":"Kostenverzamelstaat!$I$67","v":0},null,null,null,"*=Kostenverzamelstaat!$I$67"]
[70130963,{"$f":"Kostenverzamelstaat!$J$67","v":0},null,null,null,"*=Kostenverzamelstaat!$J$67"]
[70130964,{"$f":"Kostenverzamelstaat!$K$67","v":0},null,null,null,"*=Kostenverzamelstaat!$K$67"]
[70130965,{"$f":"Kostenverzamelstaat!$L$67","v":0},null,null,null,"*=Kostenverzamelstaat!$L$67"]
[70130966,{"$f":"Kostenverzamelstaat!$M$67","v":0},null,null,null,"*=Kostenverzamelstaat!$M$67"]
[70130967,{"$f":"Kostenverzamelstaat!$N$67","v":0},null,null,null,"*=Kostenverzamelstaat!$N$67"]
[70130764,{"$f":"Kostenverzamelstaat!$I$70","v":0},null,null,null,"*=Kostenverzamelstaat!$I$70"]
[70130765,{"$f":"Kostenverzamelstaat!$J$70","v":0},null,null,null,"*=Kostenverzamelstaat!$J$70"]
[70130766,{"$f":"Kostenverzamelstaat!$K$70","v":0},null,null,null,"*=Kostenverzamelstaat!$K$70"]
[70130767,{"$f":"Kostenverzamelstaat!$L$70","v":0},null,null,null,"*=Kostenverzamelstaat!$L$70"]
[70130768,{"$f":"Kostenverzamelstaat!$M$70","v":0},null,null,null,"*=Kostenverzamelstaat!$M$70"]
[70130769,{"$f":"Kostenverzamelstaat!$N$70","v":0},null,null,null,"*=Kostenverzamelstaat!$N$70"]
[70130986,{"$f":"Kostenverzamelstaat!$I$72","v":0},null,null,null,"*=Kostenverzamelstaat!$I$72"]
[70130987,{"$f":"Kostenverzamelstaat!$J$72","v":0},null,null,null,"*=Kostenverzamelstaat!$J$72"]
[70130988,{"$f":"Kostenverzamelstaat!$K$72","v":0},null,null,null,"*=Kostenverzamelstaat!$K$72"]
[70130989,{"$f":"Kostenverzamelstaat!$L$72","v":0},null,null,null,"*=Kostenverzamelstaat!$L$72"]
[70130990,{"$f":"Kostenverzamelstaat!$M$72","v":0},null,null,null,"*=Kostenverzamelstaat!$M$72"]
[70130991,{"$f":"Kostenverzamelstaat!$N$72","v":0},null,null,null,"*=Kostenverzamelstaat!$N$72"]
[70130992,{"$f":"Kostenverzamelstaat!$I$73","v":0},null,null,null,"*=Kostenverzamelstaat!$I$73"]
[70130993,{"$f":"Kostenverzamelstaat!$J$73","v":0},null,null,null,"*=Kostenverzamelstaat!$J$73"]
[70130994,{"$f":"Kostenverzamelstaat!$K$73","v":0},null,null,null,"*=Kostenverzamelstaat!$K$73"]
[70130995,{"$f":"Kostenverzamelstaat!$L$73","v":0},null,null,null,"*=Kostenverzamelstaat!$L$73"]
[70130996,{"$f":"Kostenverzamelstaat!$M$73","v":0},null,null,null,"*=Kostenverzamelstaat!$M$73"]
[70130997,{"$f":"Kostenverzamelstaat!$N$73","v":0},null,null,null,"*=Kostenverzamelstaat!$N$73"]
[70130980,{"$f":"Kostenverzamelstaat!$I$74","v":0},null,null,null,"*=Kostenverzamelstaat!$I$74"]
[70130981,{"$f":"Kostenverzamelstaat!$J$74","v":0},null,null,null,"*=Kostenverzamelstaat!$J$74"]
[70130982,{"$f":"Kostenverzamelstaat!$K$74","v":0},null,null,null,"*=Kostenverzamelstaat!$K$74"]
[70130983,{"$f":"Kostenverzamelstaat!$L$74","v":0},null,null,null,"*=Kostenverzamelstaat!$L$74"]
[70130984,{"$f":"Kostenverzamelstaat!$M$74","v":0},null,null,null,"*=Kostenverzamelstaat!$M$74"]
[70130985,{"$f":"Kostenverzamelstaat!$N$74","v":0},null,null,null,"*=Kostenverzamelstaat!$N$74"]
[70130819,{"$f":"Kostenverzamelstaat!$I$88","v":0},null,null,null,"*=Kostenverzamelstaat!$I$88"]
[70130820,{"$f":"Kostenverzamelstaat!$J$88","v":0},null,null,null,"*=Kostenverzamelstaat!$J$88"]
[70130821,{"$f":"Kostenverzamelstaat!$K$88","v":0},null,null,null,"*=Kostenverzamelstaat!$K$88"]
[70130822,{"$f":"Kostenverzamelstaat!$L$88","v":0},null,null,null,"*=Kostenverzamelstaat!$L$88"]
[70130823,{"$f":"Kostenverzamelstaat!$M$88","v":0},null,null,null,"*=Kostenverzamelstaat!$M$88"]
[70130824,{"$f":"Kostenverzamelstaat!$N$88","v":0},null,null,null,"*=Kostenverzamelstaat!$N$88"]
[70130813,{"$f":"Kostenverzamelstaat!$I$89","v":0},null,null,null,"*=Kostenverzamelstaat!$I$89"]
[70130814,{"$f":"Kostenverzamelstaat!$J$89","v":0},null,null,null,"*=Kostenverzamelstaat!$J$89"]
[70130815,{"$f":"Kostenverzamelstaat!$K$89","v":0},null,null,null,"*=Kostenverzamelstaat!$K$89"]
[70130816,{"$f":"Kostenverzamelstaat!$L$89","v":0},null,null,null,"*=Kostenverzamelstaat!$L$89"]
[70130817,{"$f":"Kostenverzamelstaat!$M$89","v":0},null,null,null,"*=Kostenverzamelstaat!$M$89"]
[70130818,{"$f":"Kostenverzamelstaat!$N$89","v":0},null,null,null,"*=Kostenverzamelstaat!$N$89"]
[70130825,{"$f":"Kostenverzamelstaat!$I$90","v":0},null,null,null,"*=Kostenverzamelstaat!$I$90"]
[70130826,{"$f":"Kostenverzamelstaat!$J$90","v":0},null,null,null,"*=Kostenverzamelstaat!$J$90"]
[70130827,{"$f":"Kostenverzamelstaat!$K$90","v":0},null,null,null,"*=Kostenverzamelstaat!$K$90"]
[70130828,{"$f":"Kostenverzamelstaat!$L$90","v":0},null,null,null,"*=Kostenverzamelstaat!$L$90"]
[70130829,{"$f":"Kostenverzamelstaat!$M$90","v":0},null,null,null,"*=Kostenverzamelstaat!$M$90"]
[70130830,{"$f":"Kostenverzamelstaat!$N$90","v":0},null,null,null,"*=Kostenverzamelstaat!$N$90"]
[70130831,{"$f":"Kostenverzamelstaat!$I$91","v":0},null,null,null,"*=Kostenverzamelstaat!$I$91"]
[70130832,{"$f":"Kostenverzamelstaat!$J$91","v":0},null,null,null,"*=Kostenverzamelstaat!$J$91"]
[70130833,{"$f":"Kostenverzamelstaat!$K$91","v":0},null,null,null,"*=Kostenverzamelstaat!$K$91"]
[70130834,{"$f":"Kostenverzamelstaat!$L$91","v":0},null,null,null,"*=Kostenverzamelstaat!$L$91"]
[70130835,{"$f":"Kostenverzamelstaat!$M$91","v":0},null,null,null,"*=Kostenverzamelstaat!$M$91"]
[70130836,{"$f":"Kostenverzamelstaat!$N$91","v":0},null,null,null,"*=Kostenverzamelstaat!$N$91"]
[70130998,{"$f":"Kostenverzamelstaat!$I$98","v":0},null,null,null,"*=Kostenverzamelstaat!$I$98"]
[70130999,{"$f":"Kostenverzamelstaat!$J$98","v":0},null,null,null,"*=Kostenverzamelstaat!$J$98"]
[70131000,{"$f":"Kostenverzamelstaat!$K$98","v":0},null,null,null,"*=Kostenverzamelstaat!$K$98"]
[70131001,{"$f":"Kostenverzamelstaat!$L$98","v":0},null,null,null,"*=Kostenverzamelstaat!$L$98"]
[70131002,{"$f":"Kostenverzamelstaat!$M$98","v":0},null,null,null,"*=Kostenverzamelstaat!$M$98"]
[70131003,{"$f":"Kostenverzamelstaat!$N$98","v":0},null,null,null,"*=Kostenverzamelstaat!$N$98"]
[70130502,{"$f":"Kostenverzamelstaat!$I$100","v":0},null,null,null,"*=Kostenverzamelstaat!$I$100"]
[70130503,{"$f":"Kostenverzamelstaat!$J$100","v":0},null,null,null,"*=Kostenverzamelstaat!$J$100"]
[70130504,{"$f":"Kostenverzamelstaat!$K$100","v":0},null,null,null,"*=Kostenverzamelstaat!$K$100"]
[70130505,{"$f":"Kostenverzamelstaat!$L$100","v":0},null,null,null,"*=Kostenverzamelstaat!$L$100"]
[70130506,{"$f":"Kostenverzamelstaat!$M$100","v":0},null,null,null,"*=Kostenverzamelstaat!$M$100"]
[70130507,{"$f":"Kostenverzamelstaat!$N$100","v":0},null,null,null,"*=Kostenverzamelstaat!$N$100"]
[70130508,{"$f":"Kostenverzamelstaat!$I$101","v":0},null,null,null,"*=Kostenverzamelstaat!$I$101"]
[70130509,{"$f":"Kostenverzamelstaat!$J$101","v":0},null,null,null,"*=Kostenverzamelstaat!$J$101"]
[70130510,{"$f":"Kostenverzamelstaat!$K$101","v":0},null,null,null,"*=Kostenverzamelstaat!$K$101"]
[70130511,{"$f":"Kostenverzamelstaat!$L$101","v":0},null,null,null,"*=Kostenverzamelstaat!$L$101"]
[70130512,{"$f":"Kostenverzamelstaat!$M$101","v":0},null,null,null,"*=Kostenverzamelstaat!$M$101"]
[70130513,{"$f":"Kostenverzamelstaat!$N$101","v":0},null,null,null,"*=Kostenverzamelstaat!$N$101"]
[70130514,{"$f":"Kostenverzamelstaat!$I$102","v":0},null,null,null,"*=Kostenverzamelstaat!$I$102"]
[70130515,{"$f":"Kostenverzamelstaat!$J$102","v":0},null,null,null,"*=Kostenverzamelstaat!$J$102"]
[70130516,{"$f":"Kostenverzamelstaat!$K$102","v":0},null,null,null,"*=Kostenverzamelstaat!$K$102"]
[70130517,{"$f":"Kostenverzamelstaat!$L$102","v":0},null,null,null,"*=Kostenverzamelstaat!$L$102"]
[70130518,{"$f":"Kostenverzamelstaat!$M$102","v":0},null,null,null,"*=Kostenverzamelstaat!$M$102"]
[70130519,{"$f":"Kostenverzamelstaat!$N$102","v":0},null,null,null,"*=Kostenverzamelstaat!$N$102"]
[70131004,{"$f":"Kostenverzamelstaat!$I$105","v":0},null,null,null,"*=Kostenverzamelstaat!$I$105"]
[70131005,{"$f":"Kostenverzamelstaat!$J$105","v":0},null,null,null,"*=Kostenverzamelstaat!$J$105"]
[70131006,{"$f":"Kostenverzamelstaat!$K$105","v":0},null,null,null,"*=Kostenverzamelstaat!$K$105"]
[70131007,{"$f":"Kostenverzamelstaat!$L$105","v":0},null,null,null,"*=Kostenverzamelstaat!$L$105"]
[70131008,{"$f":"Kostenverzamelstaat!$M$105","v":0},null,null,null,"*=Kostenverzamelstaat!$M$105"]
[70131009,{"$f":"Kostenverzamelstaat!$N$105","v":0},null,null,null,"*=Kostenverzamelstaat!$N$105"]
[70131010,{"$f":"Kostenverzamelstaat!$I$106","v":0},null,null,null,"*=Kostenverzamelstaat!$I$106"]
[70131011,{"$f":"Kostenverzamelstaat!$J$106","v":0},null,null,null,"*=Kostenverzamelstaat!$J$106"]
[70131012,{"$f":"Kostenverzamelstaat!$K$106","v":0},null,null,null,"*=Kostenverzamelstaat!$K$106"]
[70131013,{"$f":"Kostenverzamelstaat!$L$106","v":0},null,null,null,"*=Kostenverzamelstaat!$L$106"]
[70131014,{"$f":"Kostenverzamelstaat!$M$106","v":0},null,null,null,"*=Kostenverzamelstaat!$M$106"]
[70131015,{"$f":"Kostenverzamelstaat!$N$106","v":0},null,null,null,"*=Kostenverzamelstaat!$N$106"]
[70131016,{"$f":"Kostenverzamelstaat!$I$109","v":0},null,null,null,"*=Kostenverzamelstaat!$I$109"]
[70131017,{"$f":"Kostenverzamelstaat!$J$109","v":0},null,null,null,"*=Kostenverzamelstaat!$J$109"]
[70131018,{"$f":"Kostenverzamelstaat!$K$109","v":0},null,null,null,"*=Kostenverzamelstaat!$K$109"]
[70131019,{"$f":"Kostenverzamelstaat!$L$109","v":0},null,null,null,"*=Kostenverzamelstaat!$L$109"]
[70131020,{"$f":"Kostenverzamelstaat!$M$109","v":0},null,null,null,"*=Kostenverzamelstaat!$M$109"]
[70131021,{"$f":"Kostenverzamelstaat!$N$109","v":0},null,null,null,"*=Kostenverzamelstaat!$N$109"]
[70130872,{"$f":"Kostenverzamelstaat!$I$94","v":0},null,null,null,"*=Kostenverzamelstaat!$I$94"]
[70130873,{"$f":"Kostenverzamelstaat!$J$94","v":0},null,null,null,"*=Kostenverzamelstaat!$J$94"]
[70130874,{"$f":"Kostenverzamelstaat!$K$94","v":0},null,null,null,"*=Kostenverzamelstaat!$K$94"]
[70130875,{"$f":"Kostenverzamelstaat!$L$94","v":0},null,null,null,"*=Kostenverzamelstaat!$L$94"]
[70130876,{"$f":"Kostenverzamelstaat!$M$94","v":0},null,null,null,"*=Kostenverzamelstaat!$M$94"]
[70130877,{"$f":"Kostenverzamelstaat!$N$94","v":0},null,null,null,"*=Kostenverzamelstaat!$N$94"]
[70130878,{"$f":"Kostenverzamelstaat!$I$95","v":0},null,null,null,"*=Kostenverzamelstaat!$I$95"]
[70130879,{"$f":"Kostenverzamelstaat!$J$95","v":0},null,null,null,"*=Kostenverzamelstaat!$J$95"]
[70130880,{"$f":"Kostenverzamelstaat!$K$95","v":0},null,null,null,"*=Kostenverzamelstaat!$K$95"]
[70130881,{"$f":"Kostenverzamelstaat!$L$95","v":0},null,null,null,"*=Kostenverzamelstaat!$L$95"]
[70131022,{"$f":"Kostenverzamelstaat!$I$121","v":0},null,null,null,"*=Kostenverzamelstaat!$I$122"]
[70131023,{"$f":"Kostenverzamelstaat!$J$121","v":0},null,null,null,"*=Kostenverzamelstaat!$J$122"]
[70131024,{"$f":"Kostenverzamelstaat!$K$121","v":0},null,null,null,"*=Kostenverzamelstaat!$K$122"]
[70131025,{"$f":"Kostenverzamelstaat!$L$121","v":0},null,null,null,"*=Kostenverzamelstaat!$L$122"]
[70131026,{"$f":"Kostenverzamelstaat!$M$121","v":0},null,null,null,"*=Kostenverzamelstaat!$M$122"]
[70131027,{"$f":"Kostenverzamelstaat!$N$121","v":0},null,null,null,"*=Kostenverzamelstaat!$N$122"]
[70130284,{"$f":"Kostenverzamelstaat!$I$122","v":0},null,null,null,"*=Kostenverzamelstaat!$I$123"]
[70130285,{"$f":"Kostenverzamelstaat!$J$122","v":0},null,null,null,"*=Kostenverzamelstaat!$J$123"]
[70130286,{"$f":"Kostenverzamelstaat!$K$122","v":0},null,null,null,"*=Kostenverzamelstaat!$K$123"]
[70130287,{"$f":"Kostenverzamelstaat!$L$122","v":0},null,null,null,"*=Kostenverzamelstaat!$L$123"]
[70130288,{"$f":"Kostenverzamelstaat!$M$122","v":0},null,null,null,"*=Kostenverzamelstaat!$M$123"]
[70130289,{"$f":"Kostenverzamelstaat!$N$122","v":0},null,null,null,"*=Kostenverzamelstaat!$N$123"]
[70130334,{"$f":"Kostenverzamelstaat!$I$123","v":0},null,null,null,"*=Kostenverzamelstaat!$I$124"]
[70130335,{"$f":"Kostenverzamelstaat!$J$123","v":0},null,null,null,"*=Kostenverzamelstaat!$J$124"]
[70130336,{"$f":"Kostenverzamelstaat!$K$123","v":0},null,null,null,"*=Kostenverzamelstaat!$K$124"]
[70130337,{"$f":"Kostenverzamelstaat!$L$123","v":0},null,null,null,"*=Kostenverzamelstaat!$L$124"]
[70130338,{"$f":"Kostenverzamelstaat!$M$123","v":0},null,null,null,"*=Kostenverzamelstaat!$M$124"]
[70130339,{"$f":"Kostenverzamelstaat!$N$123","v":0},null,null,null,"*=Kostenverzamelstaat!$N$124"]
[70130290,{"$f":"Kostenverzamelstaat!$I$124","v":0},null,null,null,"*=Kostenverzamelstaat!$I$125"]
[70130291,{"$f":"Kostenverzamelstaat!$J$124","v":0},null,null,null,"*=Kostenverzamelstaat!$J$125"]
[70130292,{"$f":"Kostenverzamelstaat!$K$124","v":0},null,null,null,"*=Kostenverzamelstaat!$K$125"]
[70130293,{"$f":"Kostenverzamelstaat!$L$124","v":0},null,null,null,"*=Kostenverzamelstaat!$L$125"]
[70130294,{"$f":"Kostenverzamelstaat!$M$124","v":0},null,null,null,"*=Kostenverzamelstaat!$M$125"]
[70130295,{"$f":"Kostenverzamelstaat!$N$124","v":0},null,null,null,"*=Kostenverzamelstaat!$N$125"]
[70130382,{"$f":"'Specifieke informatie A'!$L$14","v":" "},null,null,null,"*='Specifieke informatie A'!$L$14"]
[70130383,{"$f":"'Specifieke informatie A'!$L$15","v":0},null,null,null,"*='Specifieke informatie A'!$L$15"]
[70130384,{"$f":"'Specifieke informatie A'!$L$16","v":0},null,null,null,"*='Specifieke informatie A'!$L$16"]
[70130360,{"$f":"'Specifieke informatie A'!$J$59","v":0},null,null,null,"*='Specifieke informatie A'!$J$59"]
[70130361,{"$f":"'Specifieke informatie A'!$K$59","v":0},null,null,null,"*='Specifieke informatie A'!$K$59"]
[70130362,{"$f":"'Specifieke informatie A'!$J$60","v":0},null,null,null,"*='Specifieke informatie A'!$J$60"]
[70130363,{"$f":"'Specifieke informatie A'!$K$60","v":0},null,null,null,"*='Specifieke informatie A'!$K$60"]
[70130364,{"$f":"'Specifieke informatie A'!$J$61","v":0},null,null,null,"*='Specifieke informatie A'!$J$61"]
[70130365,{"$f":"'Specifieke informatie A'!$K$61","v":0},null,null,null,"*='Specifieke informatie A'!$K$61"]
[70130358,{"$f":"'Specifieke informatie A'!$J$62","v":0},null,null,null,"*='Specifieke informatie A'!$J$62"]
[70130359,{"$f":"'Specifieke informatie A'!$K$62","v":0},null,null,null,"*='Specifieke informatie A'!$K$62"]
[70130366,{"$f":"'Specifieke informatie A'!$J$63","v":0},null,null,null,"*='Specifieke informatie A'!$J$63"]
[70130367,{"$f":"'Specifieke informatie A'!$K$63","v":0},null,null,null,"*='Specifieke informatie A'!$K$63"]
[70130368,{"$f":"'Specifieke informatie A'!$J$64","v":0},null,null,null,"*='Specifieke informatie A'!$J$64"]
[70130369,{"$f":"'Specifieke informatie A'!$K$64","v":0},null,null,null,"*='Specifieke informatie A'!$K$64"]
[70130370,{"$f":"'Specifieke informatie A'!$J$65","v":0},null,null,null,"*='Specifieke informatie A'!$J$65"]
[70130371,{"$f":"'Specifieke informatie A'!$K$65","v":0},null,null,null,"*='Specifieke informatie A'!$K$65"]
[70130372,{"$f":"'Specifieke informatie A'!$J$66","v":0},null,null,null,"*='Specifieke informatie A'!$J$66"]
[70130373,{"$f":"'Specifieke informatie A'!$K$66","v":0},null,null,null,"*='Specifieke informatie A'!$K$66"]
[70130374,{"$f":"'Specifieke informatie A'!$J$67","v":0},null,null,null,"*='Specifieke informatie A'!$J$67"]
[70130375,{"$f":"'Specifieke informatie A'!$K$67","v":0},null,null,null,"*='Specifieke informatie A'!$K$67"]
[70130376,{"$f":"'Specifieke informatie A'!$J$68","v":0},null,null,null,"*='Specifieke informatie A'!$J$68"]
[70130377,{"$f":"'Specifieke informatie A'!$K$68","v":0},null,null,null,"*='Specifieke informatie A'!$K$68"]
[70130378,{"$f":"'Specifieke informatie A'!$J$69","v":0},null,null,null,"*='Specifieke informatie A'!$J$69"]
[70130379,{"$f":"'Specifieke informatie A'!$K$69","v":0},null,null,null,"*='Specifieke informatie A'!$K$69"]
[70130340,{"$f":"'Specifieke informatie A'!$J$70","v":0},null,null,null,"*='Specifieke informatie A'!$J$70"]
[70130341,{"$f":"'Specifieke informatie A'!$K$70","v":0},null,null,null,"*='Specifieke informatie A'!$K$70"]
[70130342,{"$f":"'Specifieke informatie A'!$J$71","v":0},null,null,null,"*='Specifieke informatie A'!$J$71"]
[70130343,{"$f":"'Specifieke informatie A'!$K$71","v":0},null,null,null,"*='Specifieke informatie A'!$K$71"]
[70130344,{"$f":"'Specifieke informatie A'!$J$72","v":0},null,null,null,"*='Specifieke informatie A'!$J$72"]
[70130345,{"$f":"'Specifieke informatie A'!$K$72","v":0},null,null,null,"*='Specifieke informatie A'!$K$72"]
[70130346,{"$f":"'Specifieke informatie A'!$J$73","v":0},null,null,null,"*='Specifieke informatie A'!$J$73"]
[70130347,{"$f":"'Specifieke informatie A'!$K$73","v":0},null,null,null,"*='Specifieke informatie A'!$K$73"]
[70130348,{"$f":"'Specifieke informatie A'!$J$74","v":0},null,null,null,"*='Specifieke informatie A'!$J$74"]
[70130349,{"$f":"'Specifieke informatie A'!$K$74","v":0},null,null,null,"*='Specifieke informatie A'!$K$74"]
[70130350,{"$f":"'Specifieke informatie A'!$J$75","v":0},null,null,null,"*='Specifieke informatie A'!$J$75"]
[70130351,{"$f":"'Specifieke informatie A'!$K$75","v":0},null,null,null,"*='Specifieke informatie A'!$K$75"]
[70130352,{"$f":"'Specifieke informatie A'!$J$76","v":0},null,null,null,"*='Specifieke informatie A'!$J$76"]
[70130353,{"$f":"'Specifieke informatie A'!$K$76","v":0},null,null,null,"*='Specifieke informatie A'!$K$76"]
[70130354,{"$f":"'Specifieke informatie A'!$J$77","v":0},null,null,null,"*='Specifieke informatie A'!$J$77"]
[70130355,{"$f":"'Specifieke informatie A'!$K$77","v":0},null,null,null,"*='Specifieke informatie A'!$K$77"]
[70130356,{"$f":"'Specifieke informatie A'!$J$78","v":0},null,null,null,"*='Specifieke informatie A'!$J$78"]
[70130357,{"$f":"'Specifieke informatie A'!$K$78","v":0},null,null,null,"*='Specifieke informatie A'!$K$78"]
[70130380,{"$f":"'Specifieke informatie A'!$L$84","v":0},null,null,null,"*='Specifieke informatie A'!$L$84"]
[70130381,{"$f":"'Specifieke informatie A'!$L$85","v":0},null,null,null,"*='Specifieke informatie A'!$L$85"]
[70130780,{"$f":"'Specifieke informatie A'!$J$104","v":0},null,null,null,"*='Specifieke informatie A'!$J$104"]
[70130781,{"$f":"'Specifieke informatie A'!$K$104","v":0},null,null,null,"*='Specifieke informatie A'!$K$104"]
[70130782,{"$f":"'Specifieke informatie A'!$J$105","v":0},null,null,null,"*='Specifieke informatie A'!$J$105"]
[70130783,{"$f":"'Specifieke informatie A'!$K$105","v":0},null,null,null,"*='Specifieke informatie A'!$K$105"]
[70130784,{"$f":"'Specifieke informatie A'!$J$106","v":0},null,null,null,"*='Specifieke informatie A'!$J$106"]
[70130785,{"$f":"'Specifieke informatie A'!$K$106","v":0},null,null,null,"*='Specifieke informatie A'!$K$106"]
[70130786,{"$f":"'Specifieke informatie A'!$J$107","v":0},null,null,null,"*='Specifieke informatie A'!$J$107"]
[70130787,{"$f":"'Specifieke informatie A'!$K$107","v":0},null,null,null,"*='Specifieke informatie A'!$K$107"]
[70130788,{"$f":"'Specifieke informatie A'!$J$108","v":0},null,null,null,"*='Specifieke informatie A'!$J$108"]
[70130789,{"$f":"'Specifieke informatie A'!$K$108","v":0},null,null,null,"*='Specifieke informatie A'!$K$108"]
[70130790,{"$f":"'Specifieke informatie A'!$J$109","v":0},null,null,null,"*='Specifieke informatie A'!$J$109"]
[70130791,{"$f":"'Specifieke informatie A'!$K$109","v":0},null,null,null,"*='Specifieke informatie A'!$K$109"]
[70130792,{"$f":"'Specifieke informatie A'!$J$110","v":0},null,null,null,"*='Specifieke informatie A'!$J$110"]
[70130793,{"$f":"'Specifieke informatie A'!$K$110","v":0},null,null,null,"*='Specifieke informatie A'!$K$110"]
[70130794,{"$f":"'Specifieke informatie A'!$J$111","v":0},null,null,null,"*='Specifieke informatie A'!$J$111"]
[70130795,{"$f":"'Specifieke informatie A'!$K$111","v":0},null,null,null,"*='Specifieke informatie A'!$K$111"]
[70130796,{"$f":"'Specifieke informatie A'!$J$112","v":0},null,null,null,"*='Specifieke informatie A'!$J$112"]
[70130797,{"$f":"'Specifieke informatie A'!$K$112","v":0},null,null,null,"*='Specifieke informatie A'!$K$112"]
[70130798,{"$f":"'Specifieke informatie A'!$J$113","v":0},null,null,null,"*='Specifieke informatie A'!$J$113"]
[70130799,{"$f":"'Specifieke informatie A'!$K$113","v":0},null,null,null,"*='Specifieke informatie A'!$K$113"]
[70130800,{"$f":"'Specifieke informatie A'!$J$114","v":0},null,null,null,"*='Specifieke informatie A'!$J$114"]
[70130801,{"$f":"'Specifieke informatie A'!$K$114","v":0},null,null,null,"*='Specifieke informatie A'!$K$114"]
[70130802,{"$f":"'Specifieke informatie A'!$J$115","v":0},null,null,null,"*='Specifieke informatie A'!$J$115"]
[70130803,{"$f":"'Specifieke informatie A'!$K$115","v":0},null,null,null,"*='Specifieke informatie A'!$K$115"]
[70130804,{"$f":"'Specifieke informatie A'!$J$116","v":0},null,null,null,"*='Specifieke informatie A'!$J$116"]
[70130805,{"$f":"'Specifieke informatie A'!$K$116","v":0},null,null,null,"*='Specifieke informatie A'!$K$116"]
[70130806,{"$f":"'Specifieke informatie A'!$J$117","v":0},null,null,null,"*='Specifieke informatie A'!$J$117"]
[70130807,{"$f":"'Specifieke informatie A'!$K$117","v":0},null,null,null,"*='Specifieke informatie A'!$K$117"]
[70130808,{"$f":"'Specifieke informatie A'!$J$118","v":0},null,null,null,"*='Specifieke informatie A'!$J$118"]
[70130809,{"$f":"'Specifieke informatie A'!$K$118","v":0},null,null,null,"*='Specifieke informatie A'!$K$118"]
[70130778,{"$f":"'Specifieke informatie A'!$J$119","v":0},null,null,null,"*='Specifieke informatie A'!$J$119"]
[70130779,{"$f":"'Specifieke informatie A'!$K$119","v":0},null,null,null,"*='Specifieke informatie A'!$K$119"]
[70130770,{"$f":"'Specifieke informatie A'!$J$120","v":0},null,null,null,"*='Specifieke informatie A'!$J$120"]
[70130771,{"$f":"'Specifieke informatie A'!$K$120","v":0},null,null,null,"*='Specifieke informatie A'!$K$120"]
[70130772,{"$f":"'Specifieke informatie A'!$J$121","v":0},null,null,null,"*='Specifieke informatie A'!$J$121"]
[70130773,{"$f":"'Specifieke informatie A'!$K$121","v":0},null,null,null,"*='Specifieke informatie A'!$K$121"]
[70130774,{"$f":"'Specifieke informatie A'!$J$122","v":0},null,null,null,"*='Specifieke informatie A'!$J$122"]
[70130775,{"$f":"'Specifieke informatie A'!$K$122","v":0},null,null,null,"*='Specifieke informatie A'!$K$122"]
[70130776,{"$f":"'Specifieke informatie A'!$J$123","v":0},null,null,null,"*='Specifieke informatie A'!$J$123"]
[70130777,{"$f":"'Specifieke informatie A'!$K$123","v":0},null,null,null,"*='Specifieke informatie A'!$K$123"]
[70130837,{"$f":"'Specifieke informatie A'!$L$129","v":0},null,null,null,"*='Specifieke informatie A'!$L$129"]
[70130838,{"$f":"'Specifieke informatie A'!$L$130","v":0},null,null,null,"*='Specifieke informatie A'!$L$130"]
[70130811,{"$f":"'Specifieke informatie C'!$L$13","v":0},null,null,null,"*='Specifieke informatie C'!$L$13"]
[70130812,{"$f":"'Specifieke informatie C'!$L$14","v":0},null,null,null,"*='Specifieke informatie C'!$L$14"]
[70130810,{"$f":"'Specifieke informatie C'!$L$15","v":0},null,null,null,"*='Specifieke informatie C'!$L$15"]
[70130526,{"$f":"'Specifieke informatie C'!$L$20","v":0},null,null,null,"*='Specifieke informatie C'!$L$20"]
[70130527,{"$f":"'Specifieke informatie C'!$L$21","v":0},null,null,null,"*='Specifieke informatie C'!$L$21"]
[70130532,{"$f":"'Specifieke informatie C'!$L$22","v":0},null,null,null,"*='Specifieke informatie C'!$L$22"]
[70130528,{"$f":"'Specifieke informatie C'!$L$23","v":0},null,null,null,"*='Specifieke informatie C'!$L$23"]
[70130529,{"$f":"'Specifieke informatie C'!$L$24","v":0},null,null,null,"*='Specifieke informatie C'!$L$24"]
[70130530,{"$f":"'Specifieke informatie C'!$L$25","v":0},null,null,null,"*='Specifieke informatie C'!$L$25"]
[70130531,{"$f":"'Specifieke informatie C'!$L$26","v":0},null,null,null,"*='Specifieke informatie C'!$L$26"]
[70130884,{"$f":"'Specifieke informatie C'!$G$159","v":0},null,null,null,"*='Specifieke informatie C'!$G$159"]
[70130885,{"$f":"'Specifieke informatie C'!$H$159","v":0},null,null,null,"*='Specifieke informatie C'!$H$159"]
[70130886,{"$f":"'Specifieke informatie C'!$I$159","v":0},null,null,null,"*='Specifieke informatie C'!$I$159"]
[70130887,{"$f":"'Specifieke informatie C'!$J$159","v":0},null,null,null,"*='Specifieke informatie C'!$J$159"]
[70131084,{"$f":"'Specifieke informatie C'!$K$159","v":0},null,null,null,"*='Specifieke informatie C'!$K$159"]
[70131085,{"$f":"'Specifieke informatie C'!$L$159","v":0},null,null,null,"*='Specifieke informatie C'!$L$159"]
[70130888,{"$f":"'Specifieke informatie C'!$G$160","v":0},null,null,null,"*='Specifieke informatie C'!$G$160"]
[70130889,{"$f":"'Specifieke informatie C'!$H$160","v":0},null,null,null,"*='Specifieke informatie C'!$H$160"]
[70130890,{"$f":"'Specifieke informatie C'!$I$160","v":0},null,null,null,"*='Specifieke informatie C'!$I$160"]
[70130891,{"$f":"'Specifieke informatie C'!$J$160","v":0},null,null,null,"*='Specifieke informatie C'!$J$160"]
[70131086,{"$f":"'Specifieke informatie C'!$K$160","v":0},null,null,null,"*='Specifieke informatie C'!$K$160"]
[70131087,{"$f":"'Specifieke informatie C'!$L$160","v":0},null,null,null,"*='Specifieke informatie C'!$L$160"]
[70130892,{"$f":"'Specifieke informatie C'!$G$161","v":0},null,null,null,"*='Specifieke informatie C'!$G$161"]
[70130893,{"$f":"'Specifieke informatie C'!$H$161","v":0},null,null,null,"*='Specifieke informatie C'!$H$161"]
[70130894,{"$f":"'Specifieke informatie C'!$I$161","v":0},null,null,null,"*='Specifieke informatie C'!$I$161"]
[70130895,{"$f":"'Specifieke informatie C'!$J$161","v":0},null,null,null,"*='Specifieke informatie C'!$J$161"]
[70131088,{"$f":"'Specifieke informatie C'!$K$161","v":0},null,null,null,"*='Specifieke informatie C'!$K$161"]
[70131089,{"$f":"'Specifieke informatie C'!$L$161","v":0},null,null,null,"*='Specifieke informatie C'!$L$161"]
[70130332,{"$f":"'Specifieke informatie C'!$L$238","v":0},null,null,null,"*='Specifieke informatie C'!$L$238"]
[70130333,{"$f":"'Specifieke informatie C'!$L$239","v":0},null,null,null,"*='Specifieke informatie C'!$L$239"]
[70130385,{"$f":"Kostenverzamelstaat!$I$28","v":0},null,null,null,"*=Kostenverzamelstaat!$I$28"]
[70130386,{"$f":"Kostenverzamelstaat!$J$28","v":0},null,null,null,"*=Kostenverzamelstaat!$J$28"]
[70130387,{"$f":"Kostenverzamelstaat!$K$28","v":0},null,null,null,"*=Kostenverzamelstaat!$K$28"]
[70130388,{"$f":"Kostenverzamelstaat!$L$28","v":0},null,null,null,"*=Kostenverzamelstaat!$L$28"]
[70130389,{"$f":"Kostenverzamelstaat!$M$28","v":0},null,null,null,"*=Kostenverzamelstaat!$M$28"]
[70130390,{"$f":"Kostenverzamelstaat!$N$28","v":0},null,null,null,"*=Kostenverzamelstaat!$N$28"]
[70130391,{"$f":"'Specifieke informatie C'!$L$31","v":0},null,null,null,"*='Specifieke informatie C'!$L$31"]
[70130392,{"$f":"'Specifieke informatie C'!$L$32","v":0},null,null,null,"*='Specifieke informatie C'!$L$32"]
[70130393,{"$f":"'Specifieke informatie C'!$L$33","v":0},null,null,null,"*='Specifieke informatie C'!$L$33"]
[70130394,{"$f":"'Specifieke informatie C'!$L$34","v":0},null,null,null,"*='Specifieke informatie C'!$L$34"]
[70130395,{"$f":"'Specifieke informatie C'!$L$35","v":0},null,null,null,"*='Specifieke informatie C'!$L$35"]
[70131040,{"$f":"'Specifieke informatie C'!$L$40","v":0},null,null,null,"*='Specifieke informatie C'!$L$40"]
[70131041,{"$f":"'Specifieke informatie C'!$L$41","v":0},null,null,null,"*='Specifieke informatie C'!$L$41"]
[70131038,{"$f":"'Specifieke informatie C'!$L$42","v":0},null,null,null,"*='Specifieke informatie C'!$L$42"]
[70131039,{"$f":"'Specifieke informatie C'!$L$43","v":0},null,null,null,"*='Specifieke informatie C'!$L$43"]
[70131028,{"$f":"'Specifieke informatie C'!$L$55","v":0},null,null,null,"*='Specifieke informatie C'!$L$55"]
[70131029,{"$f":"'Specifieke informatie C'!$L$56","v":0},null,null,null,"*='Specifieke informatie C'!$L$56"]
[70131030,{"$f":"'Specifieke informatie C'!$L$61","v":0},null,null,null,"*='Specifieke informatie C'!$L$61"]
[70131031,{"$f":"'Specifieke informatie C'!$L$62","v":0},null,null,null,"*='Specifieke informatie C'!$L$62"]
[70130296,{"$f":"'Specifieke informatie C'!$L$68","v":0},null,null,null,"*='Specifieke informatie C'!$L$68"]
[70130297,{"$f":"'Specifieke informatie C'!$L$69","v":0},null,null,null,"*='Specifieke informatie C'!$L$69"]
[70130298,{"$f":"'Specifieke informatie C'!$L$70","v":0},null,null,null,"*='Specifieke informatie C'!$L$70"]
[70130299,{"$f":"'Specifieke informatie C'!$L$71","v":0},null,null,null,"*='Specifieke informatie C'!$L$71"]
[70130300,{"$f":"'Specifieke informatie C'!$L$72","v":0},null,null,null,"*='Specifieke informatie C'!$L$72"]
[70130301,{"$f":"'Specifieke informatie C'!$L$73","v":0},null,null,null,"*='Specifieke informatie C'!$L$73"]
[70130302,{"$f":"'Specifieke informatie C'!$L$74","v":0},null,null,null,"*='Specifieke informatie C'!$L$74"]
[70130303,{"$f":"'Specifieke informatie C'!$L$79","v":0},null,null,null,"*='Specifieke informatie C'!$L$79"]
[70130304,{"$f":"'Specifieke informatie C'!$L$80","v":0},null,null,null,"*='Specifieke informatie C'!$L$80"]
[70130305,{"$f":"'Specifieke informatie C'!$L$81","v":0},null,null,null,"*='Specifieke informatie C'!$L$81"]
[70130306,{"$f":"'Specifieke informatie C'!$L$82","v":0},null,null,null,"*='Specifieke informatie C'!$L$82"]
[70130307,{"$f":"'Specifieke informatie C'!$L$83","v":0},null,null,null,"*='Specifieke informatie C'!$L$83"]
[70130584,{"$f":"'Specifieke informatie C'!$L$98","v":0},null,null,null,"*='Specifieke informatie C'!$L$98"]
[70130580,{"$f":"'Specifieke informatie C'!$L$99","v":0},null,null,null,"*='Specifieke informatie C'!$L$99"]
[70130581,{"$f":"'Specifieke informatie C'!$L$100","v":0},null,null,null,"*='Specifieke informatie C'!$L$100"]
[70130582,{"$f":"'Specifieke informatie C'!$L$101","v":0},null,null,null,"*='Specifieke informatie C'!$L$101"]
[70130583,{"$f":"'Specifieke informatie C'!$L$102","v":0},null,null,null,"*='Specifieke informatie C'!$L$102"]
[70130751,{"$f":"'Specifieke informatie C'!$L$107","v":0},null,null,null,"*='Specifieke informatie C'!$L$107"]
[70130565,{"$f":"'Specifieke informatie C'!$L$111","v":0},null,null,null,"*='Specifieke informatie C'!$L$111"]
[70130566,{"$f":"'Specifieke informatie C'!$L$112","v":0},null,null,null,"*='Specifieke informatie C'!$L$112"]
[70130567,{"$f":"'Specifieke informatie C'!$L$113","v":0},null,null,null,"*='Specifieke informatie C'!$L$113"]
[70130568,{"$f":"'Specifieke informatie C'!$L$114","v":0},null,null,null,"*='Specifieke informatie C'!$L$114"]
[70130569,{"$f":"'Specifieke informatie C'!$L$115","v":0},null,null,null,"*='Specifieke informatie C'!$L$115"]
[70130570,{"$f":"'Specifieke informatie C'!$L$116","v":0},null,null,null,"*='Specifieke informatie C'!$L$116"]
[70130571,{"$f":"'Specifieke informatie C'!$L$117","v":0},null,null,null,"*='Specifieke informatie C'!$L$117"]
[70130572,{"$f":"'Specifieke informatie C'!$L$118","v":0},null,null,null,"*='Specifieke informatie C'!$L$118"]
[70130573,{"$f":"'Specifieke informatie C'!$L$119","v":0},null,null,null,"*='Specifieke informatie C'!$L$119"]
[70130574,{"$f":"'Specifieke informatie C'!$L$120","v":0},null,null,null,"*='Specifieke informatie C'!$L$120"]
[70130575,{"$f":"'Specifieke informatie C'!$L$121","v":0},null,null,null,"*='Specifieke informatie C'!$L$121"]
[70130576,{"$f":"'Specifieke informatie C'!$L$122","v":0},null,null,null,"*='Specifieke informatie C'!$L$122"]
[70130577,{"$f":"'Specifieke informatie C'!$L$123","v":0},null,null,null,"*='Specifieke informatie C'!$L$123"]
[70130578,{"$f":"'Specifieke informatie C'!$L$124","v":0},null,null,null,"*='Specifieke informatie C'!$L$124"]
[70130579,{"$f":"'Specifieke informatie C'!$L$125","v":0},null,null,null,"*='Specifieke informatie C'!$L$125"]
[70130748,{"$f":"'Specifieke informatie C'!$L$130","v":0},null,null,null,"*='Specifieke informatie C'!$L$130"]
[70130749,{"$f":"'Specifieke informatie C'!$L$131","v":0},null,null,null,"*='Specifieke informatie C'!$L$131"]
[70130750,{"$f":"'Specifieke informatie C'!$L$132","v":0},null,null,null,"*='Specifieke informatie C'!$L$132"]
[70130587,{"$f":"'Specifieke informatie C'!$L$142","v":0},null,null,null,"*='Specifieke informatie C'!$L$142"]
[70130588,{"$f":"'Specifieke informatie C'!$L$143","v":0},null,null,null,"*='Specifieke informatie C'!$L$143"]
[70131092,{"$f":"'Specifieke informatie C'!$L$144","v":0},null,null,null,"*='Specifieke informatie C'!$L$144"]
[70131093,{"$f":"'Specifieke informatie C'!$L$145","v":0},null,null,null,"*='Specifieke informatie C'!$L$145"]
[70131096,{"$f":"'Specifieke informatie C'!$L$150","v":0},null,null,null,"*='Specifieke informatie C'!$L$150"]
[70131097,{"$f":"'Specifieke informatie C'!$L$151","v":0},null,null,null,"*='Specifieke informatie C'!$L$151"]
[70131099,{"$f":"'Specifieke informatie C'!$L$152","v":0},null,null,null,"*='Specifieke informatie C'!$L$152"]
[70131098,{"$f":"'Specifieke informatie C'!$L$153","v":0},null,null,null,"*='Specifieke informatie C'!$L$153"]
[70130858,{"$f":"Contractinformatie!$K$33","v":0},null,null,null,"*=Contractinformatie!$K$33"]
[70130859,{"$f":"Contractinformatie!$K$34","v":0},null,null,null,"*=Contractinformatie!$K$34"]
[70130860,{"$f":"Contractinformatie!$K$35","v":0},null,null,null,"*=Contractinformatie!$K$35"]
[70130861,{"$f":"Contractinformatie!$K$36","v":0},null,null,null,"*=Contractinformatie!$K$36"]
[70130862,{"$f":"Contractinformatie!$K$38","v":0},null,null,null,"*=Contractinformatie!$K$38"]
[70130863,{"$f":"Contractinformatie!$K$39","v":0},null,null,null,"*=Contractinformatie!$K$39"]
[70130864,{"$f":"Contractinformatie!$K$43","v":0},null,null,null,"*=Contractinformatie!$K$43"]
[70130851,{"$f":"'Specifieke informatie C'!$G$168","v":0},null,null,null,"*='Specifieke informatie C'!$G$168"]
[70130852,{"$f":"'Specifieke informatie C'!$H$168","v":0},null,null,null,"*='Specifieke informatie C'!$H$168"]
[70130853,{"$f":"'Specifieke informatie C'!$I$168","v":0},null,null,null,"*='Specifieke informatie C'!$I$168"]
[70130854,{"$f":"'Specifieke informatie C'!$J$168","v":0},null,null,null,"*='Specifieke informatie C'!$J$168"]
[70131106,{"$f":"'Specifieke informatie C'!$K$168","v":0},null,null,null,"*='Specifieke informatie C'!$K$168"]
[70131107,{"$f":"'Specifieke informatie C'!$L$168","v":0},null,null,null,"*='Specifieke informatie C'!$L$168"]
[70130839,{"$f":"'Specifieke informatie C'!$G$169","v":0},null,null,null,"*='Specifieke informatie C'!$G$169"]
[70130840,{"$f":"'Specifieke informatie C'!$H$169","v":0},null,null,null,"*='Specifieke informatie C'!$H$169"]
[70130841,{"$f":"'Specifieke informatie C'!$I$169","v":0},null,null,null,"*='Specifieke informatie C'!$I$169"]
[70130842,{"$f":"'Specifieke informatie C'!$J$169","v":0},null,null,null,"*='Specifieke informatie C'!$J$169"]
[70131100,{"$f":"'Specifieke informatie C'!$K$169","v":0},null,null,null,"*='Specifieke informatie C'!$K$169"]
[70131101,{"$f":"'Specifieke informatie C'!$L$169","v":0},null,null,null,"*='Specifieke informatie C'!$L$169"]
[70130843,{"$f":"'Specifieke informatie C'!$G$170","v":0},null,null,null,"*='Specifieke informatie C'!$G$170"]
[70130844,{"$f":"'Specifieke informatie C'!$H$170","v":0},null,null,null,"*='Specifieke informatie C'!$H$170"]
[70130845,{"$f":"'Specifieke informatie C'!$I$170","v":0},null,null,null,"*='Specifieke informatie C'!$I$170"]
[70130846,{"$f":"'Specifieke informatie C'!$J$170","v":0},null,null,null,"*='Specifieke informatie C'!$J$170"]
[70131102,{"$f":"'Specifieke informatie C'!$K$170","v":0},null,null,null,"*='Specifieke informatie C'!$K$170"]
[70131103,{"$f":"'Specifieke informatie C'!$L$170","v":0},null,null,null,"*='Specifieke informatie C'!$L$170"]
[70130847,{"$f":"'Specifieke informatie C'!$G$171","v":0},null,null,null,"*='Specifieke informatie C'!$G$171"]
[70130848,{"$f":"'Specifieke informatie C'!$H$171","v":0},null,null,null,"*='Specifieke informatie C'!$H$171"]
[70130849,{"$f":"'Specifieke informatie C'!$I$171","v":0},null,null,null,"*='Specifieke informatie C'!$I$171"]
[70130850,{"$f":"'Specifieke informatie C'!$J$171","v":0},null,null,null,"*='Specifieke informatie C'!$J$171"]
[70131104,{"$f":"'Specifieke informatie C'!$K$171","v":0},null,null,null,"*='Specifieke informatie C'!$K$171"]
[70131105,{"$f":"'Specifieke informatie C'!$L$171","v":0},null,null,null,"*='Specifieke informatie C'!$L$171"]
[70130592,{"$f":"'Specifieke informatie C'!$G$185","v":0},null,null,null,"*='Specifieke informatie C'!$G$186"]
[70130593,{"$f":"'Specifieke informatie C'!$H$185","v":0},null,null,null,"*='Specifieke informatie C'!$H$186"]
[70130594,{"$f":"'Specifieke informatie C'!$I$185","v":0},null,null,null,"*='Specifieke informatie C'!$I$186"]
[70130595,{"$f":"'Specifieke informatie C'!$J$185","v":0},null,null,null,"*='Specifieke informatie C'!$J$186"]
[70130596,{"$f":"'Specifieke informatie C'!$K$185","v":0},null,null,null,"*='Specifieke informatie C'!$K$186"]
[70130597,{"$f":"'Specifieke informatie C'!$L$185","v":0},null,null,null,"*='Specifieke informatie C'!$L$186"]
[70130598,{"$f":"'Specifieke informatie C'!$G$186","v":0},null,null,null,"*='Specifieke informatie C'!$G$187"]
[70130599,{"$f":"'Specifieke informatie C'!$H$186","v":0},null,null,null,"*='Specifieke informatie C'!$H$187"]
[70130600,{"$f":"'Specifieke informatie C'!$I$186","v":0},null,null,null,"*='Specifieke informatie C'!$I$187"]
[70130601,{"$f":"'Specifieke informatie C'!$J$186","v":0},null,null,null,"*='Specifieke informatie C'!$J$187"]
[70130602,{"$f":"'Specifieke informatie C'!$K$186","v":0},null,null,null,"*='Specifieke informatie C'!$K$187"]
[70130603,{"$f":"'Specifieke informatie C'!$L$186","v":0},null,null,null,"*='Specifieke informatie C'!$L$187"]
[70130604,{"$f":"'Specifieke informatie C'!$G$187","v":0},null,null,null,"*='Specifieke informatie C'!$G$188"]
[70130605,{"$f":"'Specifieke informatie C'!$H$187","v":0},null,null,null,"*='Specifieke informatie C'!$H$188"]
[70130606,{"$f":"'Specifieke informatie C'!$I$187","v":0},null,null,null,"*='Specifieke informatie C'!$I$188"]
[70130607,{"$f":"'Specifieke informatie C'!$J$187","v":0},null,null,null,"*='Specifieke informatie C'!$J$188"]
[70130608,{"$f":"'Specifieke informatie C'!$K$187","v":0},null,null,null,"*='Specifieke informatie C'!$K$188"]
[70130609,{"$f":"'Specifieke informatie C'!$L$187","v":0},null,null,null,"*='Specifieke informatie C'!$L$188"]
[70130610,{"$f":"'Specifieke informatie C'!$G$188","v":0},null,null,null,"*='Specifieke informatie C'!$G$189"]
[70130611,{"$f":"'Specifieke informatie C'!$H$188","v":0},null,null,null,"*='Specifieke informatie C'!$H$189"]
[70130612,{"$f":"'Specifieke informatie C'!$I$188","v":0},null,null,null,"*='Specifieke informatie C'!$I$189"]
[70130613,{"$f":"'Specifieke informatie C'!$J$188","v":0},null,null,null,"*='Specifieke informatie C'!$J$189"]
[70130614,{"$f":"'Specifieke informatie C'!$K$188","v":0},null,null,null,"*='Specifieke informatie C'!$K$189"]
[70130615,{"$f":"'Specifieke informatie C'!$L$188","v":0},null,null,null,"*='Specifieke informatie C'!$L$189"]
[70130619,{"$f":"Wanbetalers!$I$12","v":0},null,null,null,"*=Wanbetalers!$I$12"]
[70130620,{"$f":"Wanbetalers!$J$12","v":0},null,null,null,"*=Wanbetalers!$J$12"]
[70130621,{"$f":"Wanbetalers!$K$12","v":0},null,null,null,"*=Wanbetalers!$K$12"]
[70130631,{"$f":"Wanbetalers!$I$13","v":0},null,null,null,"*=Wanbetalers!$I$13"]
[70130632,{"$f":"Wanbetalers!$J$13","v":0},null,null,null,"*=Wanbetalers!$J$13"]
[70130633,{"$f":"Wanbetalers!$K$13","v":0},null,null,null,"*=Wanbetalers!$K$13"]
[70130643,{"$f":"Wanbetalers!$I$14","v":0},null,null,null,"*=Wanbetalers!$I$14"]
[70130644,{"$f":"Wanbetalers!$J$14","v":0},null,null,null,"*=Wanbetalers!$J$14"]
[70130645,{"$f":"Wanbetalers!$K$14","v":0},null,null,null,"*=Wanbetalers!$K$14"]
[70130655,{"$f":"Wanbetalers!$I$17","v":0},null,null,null,"*=Wanbetalers!$I$17"]
[70130656,{"$f":"Wanbetalers!$J$17","v":0},null,null,null,"*=Wanbetalers!$J$17"]
[70130657,{"$f":"Wanbetalers!$K$17","v":0},null,null,null,"*=Wanbetalers!$K$17"]
[70130667,{"$f":"Wanbetalers!$I$18","v":0},null,null,null,"*=Wanbetalers!$I$18"]
[70130668,{"$f":"Wanbetalers!$J$18","v":0},null,null,null,"*=Wanbetalers!$J$18"]
[70130669,{"$f":"Wanbetalers!$K$18","v":0},null,null,null,"*=Wanbetalers!$K$18"]
[70130739,{"$f":"Wanbetalers!$I$21","v":0},null,null,null,"*=Wanbetalers!$I$21"]
[70130740,{"$f":"Wanbetalers!$J$21","v":0},null,null,null,"*=Wanbetalers!$J$21"]
[70130741,{"$f":"Wanbetalers!$K$21","v":0},null,null,null,"*=Wanbetalers!$K$21"]
[70130679,{"$f":"Wanbetalers!$I$22","v":0},null,null,null,"*=Wanbetalers!$I$22"]
[70130680,{"$f":"Wanbetalers!$J$22","v":0},null,null,null,"*=Wanbetalers!$J$22"]
[70130681,{"$f":"Wanbetalers!$K$22","v":0},null,null,null,"*=Wanbetalers!$K$22"]
[70130691,{"$f":"Wanbetalers!$I$23","v":0},null,null,null,"*=Wanbetalers!$I$23"]
[70130692,{"$f":"Wanbetalers!$J$23","v":0},null,null,null,"*=Wanbetalers!$J$23"]
[70130693,{"$f":"Wanbetalers!$K$23","v":0},null,null,null,"*=Wanbetalers!$K$23"]
[70130703,{"$f":"Wanbetalers!$I$26","v":0},null,null,null,"*=Wanbetalers!$I$26"]
[70130704,{"$f":"Wanbetalers!$J$26","v":0},null,null,null,"*=Wanbetalers!$J$26"]
[70130705,{"$f":"Wanbetalers!$K$26","v":0},null,null,null,"*=Wanbetalers!$K$26"]
[70130715,{"$f":"Wanbetalers!$I$27","v":0},null,null,null,"*=Wanbetalers!$I$27"]
[70130716,{"$f":"Wanbetalers!$J$27","v":0},null,null,null,"*=Wanbetalers!$J$27"]
[70130717,{"$f":"Wanbetalers!$K$27","v":0},null,null,null,"*=Wanbetalers!$K$27"]
[70130727,{"$f":"Wanbetalers!$I$28","v":0},null,null,null,"*=Wanbetalers!$I$28"]
[70130728,{"$f":"Wanbetalers!$J$28","v":0},null,null,null,"*=Wanbetalers!$J$28"]
[70130729,{"$f":"Wanbetalers!$K$28","v":0},null,null,null,"*=Wanbetalers!$K$28"]
[70130396,{"$f":"'Specifieke informatie C'!$G$203","v":0},null,null,null,"*='Specifieke informatie C'!$G$204"]
[70130397,{"$f":"'Specifieke informatie C'!$H$203","v":0},null,null,null,"*='Specifieke informatie C'!$H$204"]
[70130398,{"$f":"'Specifieke informatie C'!$I$203","v":0},null,null,null,"*='Specifieke informatie C'!$I$204"]
[70130399,{"$f":"'Specifieke informatie C'!$J$203","v":0},null,null,null,"*='Specifieke informatie C'!$J$204"]
[70130400,{"$f":"'Specifieke informatie C'!$K$203","v":0},null,null,null,"*='Specifieke informatie C'!$K$204"]
[70130401,{"$f":"'Specifieke informatie C'!$L$203","v":0},null,null,null,"*='Specifieke informatie C'!$L$204"]
[70130402,{"$f":"'Specifieke informatie C'!$G$204","v":0},null,null,null,"*='Specifieke informatie C'!$G$205"]
[70130403,{"$f":"'Specifieke informatie C'!$H$204","v":0},null,null,null,"*='Specifieke informatie C'!$H$205"]
[70130404,{"$f":"'Specifieke informatie C'!$I$204","v":0},null,null,null,"*='Specifieke informatie C'!$I$205"]
[70130405,{"$f":"'Specifieke informatie C'!$J$204","v":0},null,null,null,"*='Specifieke informatie C'!$J$205"]
[70130406,{"$f":"'Specifieke informatie C'!$K$204","v":0},null,null,null,"*='Specifieke informatie C'!$K$205"]
[70130407,{"$f":"'Specifieke informatie C'!$L$204","v":0},null,null,null,"*='Specifieke informatie C'!$L$205"]
[70130408,{"$f":"'Specifieke informatie C'!$G$205","v":0},null,null,null,"*='Specifieke informatie C'!$G$206"]
[70130409,{"$f":"'Specifieke informatie C'!$H$205","v":0},null,null,null,"*='Specifieke informatie C'!$H$206"]
[70130410,{"$f":"'Specifieke informatie C'!$I$205","v":0},null,null,null,"*='Specifieke informatie C'!$I$206"]
[70130411,{"$f":"'Specifieke informatie C'!$J$205","v":0},null,null,null,"*='Specifieke informatie C'!$J$206"]
[70130412,{"$f":"'Specifieke informatie C'!$K$205","v":0},null,null,null,"*='Specifieke informatie C'!$K$206"]
[70130413,{"$f":"'Specifieke informatie C'!$L$205","v":0},null,null,null,"*='Specifieke informatie C'!$L$206"]
[70130414,{"$f":"'Specifieke informatie C'!$G$206","v":0},null,null,null,"*='Specifieke informatie C'!$G$207"]
[70130415,{"$f":"'Specifieke informatie C'!$H$206","v":0},null,null,null,"*='Specifieke informatie C'!$H$207"]
[70130416,{"$f":"'Specifieke informatie C'!$I$206","v":0},null,null,null,"*='Specifieke informatie C'!$I$207"]
[70130417,{"$f":"'Specifieke informatie C'!$J$206","v":0},null,null,null,"*='Specifieke informatie C'!$J$207"]
[70130418,{"$f":"'Specifieke informatie C'!$K$206","v":0},null,null,null,"*='Specifieke informatie C'!$K$207"]
[70130419,{"$f":"'Specifieke informatie C'!$L$206","v":0},null,null,null,"*='Specifieke informatie C'!$L$207"]
[70130420,{"$f":"'Specifieke informatie C'!$G$229","v":0},null,null,null,"*='Specifieke informatie C'!$G$229"]
[70130421,{"$f":"'Specifieke informatie C'!$H$229","v":0},null,null,null,"*='Specifieke informatie C'!$H$229"]
[70130422,{"$f":"'Specifieke informatie C'!$I$229","v":0},null,null,null,"*='Specifieke informatie C'!$I$229"]
[70130423,{"$f":"'Specifieke informatie C'!$J$229","v":0},null,null,null,"*='Specifieke informatie C'!$J$229"]
[70130424,{"$f":"'Specifieke informatie C'!$K$229","v":0},null,null,null,"*='Specifieke informatie C'!$K$229"]
[70130425,{"$f":"'Specifieke informatie C'!$L$229","v":0},null,null,null,"*='Specifieke informatie C'!$L$229"]
[70130426,{"$f":"'Specifieke informatie C'!$G$230","v":0},null,null,null,"*='Specifieke informatie C'!$G$230"]
[70130427,{"$f":"'Specifieke informatie C'!$H$230","v":0},null,null,null,"*='Specifieke informatie C'!$H$230"]
[70130428,{"$f":"'Specifieke informatie C'!$I$230","v":0},null,null,null,"*='Specifieke informatie C'!$I$230"]
[70130429,{"$f":"'Specifieke informatie C'!$J$230","v":0},null,null,null,"*='Specifieke informatie C'!$J$230"]
[70130430,{"$f":"'Specifieke informatie C'!$K$230","v":0},null,null,null,"*='Specifieke informatie C'!$K$230"]
[70130431,{"$f":"'Specifieke informatie C'!$L$230","v":0},null,null,null,"*='Specifieke informatie C'!$L$230"]
[70130432,{"$f":"'Specifieke informatie C'!$G$231","v":0},null,null,null,"*='Specifieke informatie C'!$G$231"]
[70130433,{"$f":"'Specifieke informatie C'!$H$231","v":0},null,null,null,"*='Specifieke informatie C'!$H$231"]
[70130434,{"$f":"'Specifieke informatie C'!$I$231","v":0},null,null,null,"*='Specifieke informatie C'!$I$231"]
[70130435,{"$f":"'Specifieke informatie C'!$J$231","v":0},null,null,null,"*='Specifieke informatie C'!$J$231"]
[70130436,{"$f":"'Specifieke informatie C'!$K$231","v":0},null,null,null,"*='Specifieke informatie C'!$K$231"]
[70130437,{"$f":"'Specifieke informatie C'!$L$231","v":0},null,null,null,"*='Specifieke informatie C'!$L$231"]
[70130438,{"$f":"'Specifieke informatie C'!$G$232","v":0},null,null,null,"*='Specifieke informatie C'!$G$232"]
[70130439,{"$f":"'Specifieke informatie C'!$H$232","v":0},null,null,null,"*='Specifieke informatie C'!$H$232"]
[70130440,{"$f":"'Specifieke informatie C'!$I$232","v":0},null,null,null,"*='Specifieke informatie C'!$I$232"]
[70130441,{"$f":"'Specifieke informatie C'!$J$232","v":0},null,null,null,"*='Specifieke informatie C'!$J$232"]
[70130442,{"$f":"'Specifieke informatie C'!$K$232","v":0},null,null,null,"*='Specifieke informatie C'!$K$232"]
[70130443,{"$f":"'Specifieke informatie C'!$L$232","v":0},null,null,null,"*='Specifieke informatie C'!$L$232"]
[70130865,{"$f":"Contractinformatie!$K$52","v":0},null,null,null,"*=Contractinformatie!$K$52"]
[70130866,{"$f":"Contractinformatie!$K$53","v":0},null,null,null,"*=Contractinformatie!$K$53"]
[70130867,{"$f":"Contractinformatie!$K$54","v":0},null,null,null,"*=Contractinformatie!$K$54"]
[70130868,{"$f":"Contractinformatie!$K$55","v":0},null,null,null,"*=Contractinformatie!$K$55"]
[70130869,{"$f":"Contractinformatie!$K$57","v":0},null,null,null,"*=Contractinformatie!$K$57"]
[70130870,{"$f":"Contractinformatie!$K$58","v":0},null,null,null,"*=Contractinformatie!$K$58"]
[70130871,{"$f":"Contractinformatie!$K$62","v":0},null,null,null,"*=Contractinformatie!$K$62"]
[70130752,{"$f":"'Specifieke informatie C'!$L$244","v":0},null,null,null,"*='Specifieke informatie C'!$L$244"]
[70130753,{"$f":"'Specifieke informatie C'!$L$245","v":0},null,null,null,"*='Specifieke informatie C'!$L$245"]
[70130755,{"$f":"'Specifieke informatie C'!$L$250","v":0},null,null,null,"*='Specifieke informatie C'!$L$250"]
[70130756,{"$f":"'Specifieke informatie C'!$L$251","v":0},null,null,null,"*='Specifieke informatie C'!$L$251"]
[70130757,{"$f":"'Specifieke informatie C'!$L$252","v":0},null,null,null,"*='Specifieke informatie C'!$L$252"]
[70130758,{"$f":"'Specifieke informatie C'!$L$253","v":0},null,null,null,"*='Specifieke informatie C'!$L$253"]
[70130754,{"$f":"'Specifieke informatie C'!$L$254","v":0},null,null,null,"*='Specifieke informatie C'!$L$254"]
[70130760,{"$f":"'Specifieke informatie C'!$L$271","v":0},null,null,null,"*='Specifieke informatie C'!$L$271"]
[70130761,{"$f":"'Specifieke informatie C'!$L$272","v":0},null,null,null,"*='Specifieke informatie C'!$L$272"]
[70130762,{"$f":"'Specifieke informatie C'!$L$273","v":0},null,null,null,"*='Specifieke informatie C'!$L$273"]
[70130763,{"$f":"'Specifieke informatie C'!$L$274","v":0},null,null,null,"*='Specifieke informatie C'!$L$274"]
[70130759,{"$f":"'Specifieke informatie C'!$L$275","v":0},null,null,null,"*='Specifieke informatie C'!$L$275"]
[70130591,{"$f":"'Specifieke informatie C'!$L$280","v":0},null,null,null,"*='Specifieke informatie C'!$L$280"]
[70130589,{"$f":"'Specifieke informatie C'!$L$281","v":0},null,null,null,"*='Specifieke informatie C'!$L$281"]
[70130590,{"$f":"'Specifieke informatie C'!$L$282","v":0},null,null,null,"*='Specifieke informatie C'!$L$282"]
[70130450,{"$f":"'Specifieke informatie C'!$L$287","v":0},null,null,null,"*='Specifieke informatie C'!$L$287"]
[70130444,{"$f":"'Specifieke informatie C'!$L$288","v":0},null,null,null,"*='Specifieke informatie C'!$L$288"]
[70130445,{"$f":"'Specifieke informatie C'!$L$289","v":0},null,null,null,"*='Specifieke informatie C'!$L$289"]
[70130446,{"$f":"'Specifieke informatie C'!$L$290","v":0},null,null,null,"*='Specifieke informatie C'!$L$290"]
[70130447,{"$f":"'Specifieke informatie C'!$L$291","v":0},null,null,null,"*='Specifieke informatie C'!$L$291"]
[70130448,{"$f":"'Specifieke informatie C'!$L$292","v":0},null,null,null,"*='Specifieke informatie C'!$L$292"]
[70130449,{"$f":"'Specifieke informatie C'!$L$293","v":0},null,null,null,"*='Specifieke informatie C'!$L$293"]
[70130451,{"$f":"'Specifieke informatie C'!$L$298","v":0},null,null,null,"*='Specifieke informatie C'!$L$298"]
[70130452,{"$f":"'Specifieke informatie C'!$L$299","v":0},null,null,null,"*='Specifieke informatie C'!$L$299"]
[70130453,{"$f":"'Specifieke informatie C'!$L$300","v":0},null,null,null,"*='Specifieke informatie C'!$L$300"]
[70131035,{"$f":"Contractinformatie!$K$17","v":0},null,null,null,"*=Contractinformatie!$K$17"]
[70131036,{"$f":"Contractinformatie!$K$18","v":0},null,null,null,"*=Contractinformatie!$K$18"]
[70131037,{"$f":"Contractinformatie!$K$19","v":0},null,null,null,"*=Contractinformatie!$K$19"]
[70130308,{"$f":"'Specifieke informatie C'!$G$194","v":0},null,null,null,"*='Specifieke informatie C'!$G$195"]
[70130309,{"$f":"'Specifieke informatie C'!$H$194","v":0},null,null,null,"*='Specifieke informatie C'!$H$195"]
[70130310,{"$f":"'Specifieke informatie C'!$I$194","v":0},null,null,null,"*='Specifieke informatie C'!$I$195"]
[70130311,{"$f":"'Specifieke informatie C'!$J$194","v":0},null,null,null,"*='Specifieke informatie C'!$J$195"]
[70130312,{"$f":"'Specifieke informatie C'!$K$194","v":0},null,null,null,"*='Specifieke informatie C'!$K$195"]
[70130313,{"$f":"'Specifieke informatie C'!$L$194","v":0},null,null,null,"*='Specifieke informatie C'!$L$195"]
[70130314,{"$f":"'Specifieke informatie C'!$G$195","v":0},null,null,null,"*='Specifieke informatie C'!$G$196"]
[70130315,{"$f":"'Specifieke informatie C'!$H$195","v":0},null,null,null,"*='Specifieke informatie C'!$H$196"]
[70130316,{"$f":"'Specifieke informatie C'!$I$195","v":0},null,null,null,"*='Specifieke informatie C'!$I$196"]
[70130317,{"$f":"'Specifieke informatie C'!$J$195","v":0},null,null,null,"*='Specifieke informatie C'!$J$196"]
[70130318,{"$f":"'Specifieke informatie C'!$K$195","v":0},null,null,null,"*='Specifieke informatie C'!$K$196"]
[70130319,{"$f":"'Specifieke informatie C'!$L$195","v":0},null,null,null,"*='Specifieke informatie C'!$L$196"]
[70130320,{"$f":"'Specifieke informatie C'!$G$196","v":0},null,null,null,"*='Specifieke informatie C'!$G$197"]
[70130321,{"$f":"'Specifieke informatie C'!$H$196","v":0},null,null,null,"*='Specifieke informatie C'!$H$197"]
[70130322,{"$f":"'Specifieke informatie C'!$I$196","v":0},null,null,null,"*='Specifieke informatie C'!$I$197"]
[70130323,{"$f":"'Specifieke informatie C'!$J$196","v":0},null,null,null,"*='Specifieke informatie C'!$J$197"]
[70130324,{"$f":"'Specifieke informatie C'!$K$196","v":0},null,null,null,"*='Specifieke informatie C'!$K$197"]
[70130325,{"$f":"'Specifieke informatie C'!$L$196","v":0},null,null,null,"*='Specifieke informatie C'!$L$197"]
[70130326,{"$f":"'Specifieke informatie C'!$G$197","v":0},null,null,null,"*='Specifieke informatie C'!$G$198"]
[70130327,{"$f":"'Specifieke informatie C'!$H$197","v":0},null,null,null,"*='Specifieke informatie C'!$H$198"]
[70130328,{"$f":"'Specifieke informatie C'!$I$197","v":0},null,null,null,"*='Specifieke informatie C'!$I$198"]
[70130329,{"$f":"'Specifieke informatie C'!$J$197","v":0},null,null,null,"*='Specifieke informatie C'!$J$198"]
[70130330,{"$f":"'Specifieke informatie C'!$K$197","v":0},null,null,null,"*='Specifieke informatie C'!$K$198"]
[70130331,{"$f":"'Specifieke informatie C'!$L$197","v":0},null,null,null,"*='Specifieke informatie C'!$L$198"]
[70131112,{"$f":"Contractinformatie!$K$74","v":0},null,null,null,"*=Contractinformatie!$K$74"]
[70131113,{"$f":"Contractinformatie!$K$75","v":0},null,null,null,"*=Contractinformatie!$K$75"]
[70131114,{"$f":"Contractinformatie!$K$76","v":0},null,null,null,"*=Contractinformatie!$K$76"]
[70131115,{"$f":"Contractinformatie!$K$79","v":0},null,null,null,"*=Contractinformatie!$K$79"]
[70131116,{"$f":"Contractinformatie!$K$80","v":0},null,null,null,"*=Contractinformatie!$K$80"]
[70131117,{"$f":"Contractinformatie!$K$81","v":0},null,null,null,"*=Contractinformatie!$K$81"]
[70131109,{"$f":"Contractinformatie!$K$66","v":0},null,null,null,"*=Contractinformatie!$K$66"]
[70131111,{"$f":"Contractinformatie!$K$67","v":0},null,null,null,"*=Contractinformatie!$K$67"]
[70131110,{"$f":"Contractinformatie!$K$68","v":0},null,null,null,"*=Contractinformatie!$K$68"]
[null,{"$f":"SUM(B1:B713)","v":0}]

{"sheet":"Parameters","index":12,"n_rows":40,"n_cols":7,"rows_kept":40,"cut":false,"hidden":true,"merged":[[1,4,1,5]]}
[]
[null,"Kwartaal:",2,null,"HASHTOTALEN"]
[null,"Jaar:",2019,null,"Alle waarden tabblad specifieke informatie A",{"$f":"ROUND(SUM(alle_cellen_info_a),0)","v":{"$error":"#REF!"}},"Opm: kolom I..L"]
[null,"Wet:","ZVW",null,"Alle waarden tabblad specifieke informatie B",{"$f":"ROUND(SUM(alle_cellen_info_c),0)","v":130973},"Opm: kolom I..L"]
[null,"Document:",{"$f":"CONCATENATE(\"KS\",jaar_id,wet_id,\".\",kwartaal_id)","v":"KS2019ZVW.2"},null,"Alle waarden tabbladen specifieke informatie A en C",{"$f":"SUM(F3:F4)","v":{"$error":"#REF!"}},"Opm: kolom I..L"]
[null,"Revisie:","D"]
[null,"Revisiedatum:","2019-01-01"]
[null,"Versie:",{"$f":"CONCATENATE(document_id,revisie_id)","v":"KS2019ZVW.2D"}]
[]
[]
[]
[null,"NUMMER_UO","NAAM_UO","FORMAT_UO1"]
[null,"0000","KIES UW UZOVI-NUMMER",{"$f":"CONCATENATE(B13,\" \",C13)","v":"0000 KIES UW UZOVI-NUMMER"}]
[null,"0101","UNIVÉ ZORG","0101 UNIVÉ ZORG"]
[null,"0104","NATIONALE-NEDERLANDEN ZORG","0104 NATIONALE-NEDERLANDEN ZORG"]
[null,"0201","OHRA ZIEKTEKOSTENVERZEKERINGEN","0201 OHRA ZIEKTEKOSTENVERZEKERINGEN"]
[null,"0211","FBTO","0211 FBTO"]
[null,"0403","ASR ","0403 ASR "]
[null,"0420","CARES ","0420 CARES "]
[null,"0699","IZA","0699 IZA"]
[null,"0736","UMC","0736 UMC"]
[null,"3311","ZILVEREN KRUIS","3311 ZILVEREN KRUIS"]
[null,"3313","INTERPOLIS","3313 INTERPOLIS"]
[null,"3329","AVERO",{"$f":"CONCATENATE(B24,\" \",C24)","v":"3329 AVERO"}]
[null,"3332","MENZIS","3332 MENZIS"]
[null,"3333","ANDERZORG","3333 ANDERZORG"]
[null,"3343","ONVZ",{"$f":"CONCATENATE(B27,\" \",C27)","v":"3343 ONVZ"}]
[null,"3351","FBTO",{"$f":"CONCATENATE(B28,\" \",C28)","v":"3351 FBTO"}]
[null,"3352","IPTIQ",{"$f":"CONCATENATE(B29,\" \",C29)","v":"3352 IPTIQ"}]
[null,"3358","DE FRIESLAND",{"$f":"CONCATENATE(B30,\" \",C30)","v":"3358 DE FRIESLAND"}]
[null,"3359","EUCARE INSURANCE PCC LTD",{"$f":"CONCATENATE(B31,\" \",C31)","v":"3359 EUCARE INSURANCE PCC LTD"}]
[null,"7029","DSW","7029 DSW"]
[null,"7032","ENO","7032 ENO"]
[null,"7037","STAD HOLLAND","7037 STAD HOLLAND"]
[null,"7053","OHRA ZORGVERZEKERINGEN","7053 OHRA ZORGVERZEKERINGEN"]
[null,"7084","DE FRIESLAND","7084 DE FRIESLAND"]
[null,"7085","ZORG EN ZEKERHEID","7085 ZORG EN ZEKERHEID"]
[null,"7095","VGZ ZORGVERZEKERAAR","7095 VGZ ZORGVERZEKERAAR"]
[null,"7119","CZ","7119 CZ"]
[null,"9015","VGZ VOOR DE ZORG","9015 VGZ VOOR DE ZORG"]